Workbook

Sheet Cover
A3: TAG Data Book
A4: =Audit!A12 -> May 2026 v2.03
A6: Links:
A7: Contents
A9: Contact: | D9: N.B: Always unprotect for unhiding, and hide before protecting
A10: Transport Appraisal and Strategic Modelling (TASM) Division
A11: Department for Transport | C11: N.B: If macros are not working, this may be due to your network security policy: please save the Data Book to a trusted location (typically not the default ‘Downloads’ folder) and try again.
A12: Zone 1/3 Great Minster House
A13: 33 Horseferry Road
A14: London
A15: SW1P 4DR
A16: Click here to email TASM

Sheet Contents
E1: This Data Book has been prepared for transport modelling and appraisal purposes, and should be applied in accordance with wider guidance in TAG. It may not be appropriate for other purposes. Whilst every effort is made to ensure this data is correct, use of any part of the data comprising this Data Book is at the user’s sole risk and the DfT cannot be held liable for any loss or damage (including but not limited to, loss of profits, revenue or data) resulting from the use, or misuse, of the data, howsoever caused. For the avoidance of any doubt, the offer by the DfT of this data for use by third parties does not create a contractual relationship between the DfT and any party using it.
A3: TAG Data Book
A4: Data Book Contents
A7: Go to 'User Parameters' tab to change Price year or Initial forecast year.
A8: Click on cells in columns E/F to go to the desired table. | F8: Grey cells | G8: These act as hyperlinks. Click once on these to navigate directly, without scrolling.
A10: TAG Unit | B10: Section Title | C10: Unit Title | E10: Worksheet | G10: Table Title
E11: Cover | G11: Department for Transport contact information
E12: User Parameters | G12: User - defined price year and initial forecast year
E13: Audit | G13: Version log
E14: TAG1 | G14: TAG1 table look-up
E15: Annual Parameters | G15: Forecast annual economic and demographic parameters
A16: A 1.1 | B16: Cost Benefit Analysis | E16: A 1.1.1 | G16: Discount rates
A17: A 1.2 | B17: Scheme costs | E17: A 1.2.1 | G17: Cost inflation series
A18: A 1.3 | B18: User & | C18: Values of time | E18: A 1.3.1 | G18: Values of time per person (working and non-working)
B19: Provider | E19: A 1.3.2 | G19: Forecast values of time per person (working and non-working)
B20: Impacts | E20: A 1.3.3 | G20: Car and vehicle occupancies (2000); Annual percentage change in car passenger occupancy up to 2036
E21: A 1.3.4 | G21: Proportion of travel and trips in work and non-work time
E22: A 1.3.5 | G22: Market price values of time per vehicle based on distance travelled
E23: A 1.3.6 | G23: Forecast market price values of time per vehicle based on distance travelled
C24: Operating costs | E24: A 1.3.7 | G24: Fuel and electricity prices and components
E25: A 1.3.8 | G25: Fuel / energy consumption parameter values
E26: A 1.3.9 | G26: Forecast proportion of car, LGV and other vehicle kilometres using petrol / diesel / electricity
E27: A 1.3.10 | G27: Forecast assumed vehicle fuel efficiency improvements to 2050
E28: A 1.3.11 | G28: Forecast fuel / energy consumption parameters
E29: A 1.3.12 | G29: Forecast vehicle fuel / energy cost formulae parameters (work)
E30: A 1.3.13 | G30: Forecast vehicle fuel / energy cost formulae parameters (non-work)
E31: A 1.3.14 | G31: Non-fuel resource vehicle operating costs
E32: A 1.3.15 | G32: Forecast non-fuel resource car operating costs to 2045
C33: Social Impact of buses | E33: A 1.3.16 | G33: Proportion of bus trips by car ownership, trip purpose and concessionary travel pass status.
E34: A 1.3.17 | G34: Proportion of bus trips by that would “not go” if bus not available.
E35: A 1.3.18 | G35: Value of the social impact per return bus trip
A36: A 3.1 | B36: Environmental | C36: Noise Impacts | E36: A 3.1 | G36: Monetary valuation of changes in noise
A37: A 3.2 | B37: Impacts | C37: Air Quality Impacts | E37: A 3.2 | G37: Damage cost values by pollutant
A38: A 3.3 | C38: Greenhouse Gases | E38: A 3.3 | G38: Carbon dioxide emissions per litre of fuel burnt / kWh used
A39: A 3.4 | E39: A 3.4 | G39: Forecast non-traded, £ per tonne of CO2e
A40: A 4.1 | B40: Social & | C40: Social Impact | E40: A 4.1.1 | G40: Average value of prevention per casualty by severity and element of cost
B41: Distributional | C41: Appraisal | E41: A 4.1.2 | G41: Average value of prevention per road casualty by class of road user
B42: Impacts | E42: A 4.1.3 | G42: Average value of prevention of road accidents by severity and element of cost
E43: A 4.1.4 | G43: Average value of prevention per road accident by severity & class of road: all hours
E44: A 4.1.5 | G44: Rail injury classification, weights and values
E45: A 4.1.6 | G45: Value of journey quality benefit of cycle facilities, relative to no facilities
E46: A 4.1.7 | G46: Values of aspects of pedestrian environment, used in valuation of London Strategic Walk Network
E47: A 4.1.8 | G47: Option and non-use values
A48: A 5.2 | B48: Uni-Modal Appraisal | C48: Aviation Appraisal | E48: A 5.2.1 | G48: CORSIA price series
A49: A 5.3 | C49: Rail Appraisal | E49: A 5.3.1 | G49: Operating cost and revenue forecasting series
E50: A 5.3.2 | G50: Journey purpose / ticket type splits by flow category
A51: A 5.4 | C51: Marginal External | E51: A 5.4.1 | G51: Proportion of total traffic by region, congestion band, area type & road type
C52: Congestion Costs | E52: A 5.4.2 | G52: Marginal external costs by road type and congestion band: core scenario
E53: A 5.4.3 | G53: Car traffic shares by time of day
E54: A 5.4.4 | G54: Marginal external costs by region and time of day
E55: A 5.4.5 | G55: Car diversion factors by PDFH flow category
E56: A5.4.6 | G56: Bus diversion factors by recipient/source mode
E57: A5.4.7 | G57: Cycling diversion factors by recipient/source mode
A58: M 2.1 | B58: Variable Demand Modelling | E58: M 2.1 | G58: Values of time by income band for non-work purposes (£/hr)
A59: M 2.2 | E59: M 2.2 | G59: Values of time by income band for work purposes (£/hr)
A60: M 3.2 | B60: Assignment Modelling | E60: M 3.2.1 | G60: Segmented values of bus quality interventions (generalised minutes)
A61: M 4.2 | B61: Model Forecasting & Uncertainty | E61: M 4.2.1 | G61: Forecast fuel price and income adjustment factors
E62: M 4.2.2 | G62: Car cost series for rail demand forecasting
E63: M 4.2.3 | G63: Car and bus journey time series for rail demand forecasting
E64: M 4.2.4 | G64: Rail forecasting parameters
A65: COBALT | B65: Accidents & Casualties | E65: COBALT 1 | G65: Costs per accident / casualty
E66: COBALT 2 | G66: Annual rates of growth of accident values
E67: COBALT 3 | G67: Link & Combined Link / Junction: accident rates & change factors
E68: COBALT 4 | G68: Severity rates (Link / Combined)
E69: COBALT 5 | G69: Link & Combined Link / Junction: casualty rates & change factors
E70: COBALT 6 | G70: Junction only: accident parameters
E71: COBALT 7 | G71: Junction only: accident change factors
E72: COBALT 8 | G72: Severity rates (Junction only)
E73: COBALT 9 | G73: Junction only: casualty rates & change factors
A74: Source Data | E74: Default Pars | G74: Default price year, initial forecast year and value year
E75: Annual Parameters Source | G75: Forecast annual economic and demographic parameters
E76: Discount % | G76: Discount rates, source: Green Book, HMT (2026)
E77: Indirect tax correction | G77: VAT rates by year
E78: Cost inflation | G78: Construction Output Prices Index and Uncertainty Range RCF series
E79: Forecast occupancies | G79: Intermediate calculations for vehicle operating costs: Forecast vehicle occupancies
C80: Values of Time | E80: Source VoT | G80: Values of time per person (working and non-working), source: DfT (2000)
E81: VoT2 | G81: Car occupancies, source: DfT (2000)
E82: VoT3 | G82: Vehicle occupancies, source: DfT (2000)
E83: A 1.3.3.2 | G83: =CONCATENATE("Vehicle occupancies based on vehicle kilometres travelled (",'Default Pars'!L19,")") -> Vehicle occupancies based on vehicle kilometres travelled (2023)
E84: VoT4 | G84: Annual percentage change in car passenger occupancy up to 2036, source: DfT (2000)
E85: VoT5 | G85: Proportion of travel in work and non-work time, source: DfT (2000)
E86: VoT6 | G86: Proportion of trips in work and non-work time, source: DfT (2000)
E87: VoT7 | G87: LGV and OGV VoT growth rates
C88: Vehicle Operating Costs | E88: Fuel consumption | G88: Fuel / energy consumption parameter values, source: DfT (2010 / 2011 respectively)
E89: VoC Efficiency | G89: Forecast assumed vehicle fuel efficiency improvements to 2035, source: DfT (2010)
E90: VoC Mileage % | G90: Forecast proportion of car, LGV and other vehicle kilometres using petrol / diesel / electricity, 2000-2030, source: DfT
E91: VoC Fuel | G91: Fuel and electricity prices and components, source: DfT (2010 prices)
E92: VoC Non-Fuel | G92: Non-fuel resource vehicle operating costs, source: DfT (2010 prices and values)
E93: Bus Social Impacts | G93: Social Impacts of buses
C94: Environment | E94: Noise | G94: Annoyance response relationships for road and rail traffic noise and
G95: Monetary valuation of changes in noise level, source: DfT (2002 prices and values)
E96: NOx damage | G96: NOx damage cost values, source: Defra (2010 values and prices)
E97: PM10 damage | G97: Marginal annual air quality cost, source: DfT (2010 values and prices)
E98: CO2 | G98: Carbon dioxide emissions per litre of fuel burnt / kWh used
E99: GHG | G99: Forecast traded & non-traded, £ per tonne of CO2e, 2009-2100, source: DECC (2010 prices)
E100: Electricity | G100: Road and rail electricity prices & carbon components
E101: CORSIA | G101: CORSIA price series
C102: Social | E102: Casualty costs | G102: Average value of prevention per casualty by severity and element of cost, source: DfT (2010 prices and values)
E103: Accident costs | G103: Accident related costs, by severity, road type and cost element, source: DfT (2010 prices and values)
E104: Casualty data | G104: Total injuries by type of road accident, by severity, source: Police (2010)
E105: Accident data | G105: Reported accidents by daylight / darkness, road type and severity, source: DfT (2011)
E106: Rail | G106: Rail injury classification, weights and values, source DfT (2010 values and prices)
E107: Option values | G107: Option and non-use values, source: various papers, source: various papers (2002)
E108: Cycling | G108: Value of journey ambience benefit of cycle facilities, source: various papers (2010 prices and values)
E109: Walking | G109: Values of aspects in pedestrian environment, source: Heuman (2005)
C110: Marginal external costs | E110: Total - Traffic % | G110: Proportion of Total Traffic in each congestion band for different regions, area types and road types
E111: Car - MECs | G111: Marginal External Costs & Indirect Tax - Cars
E112: Car Traffic Shares | G112: Car Traffic Shares %
E113: MECs - time of day | G113: Marginal External Congestion Costs by time of day
C114: Forecasting | E114: Adjustment Factors | G114: Fuel price and income forecast adjustment factors, source: DfT (2010)
E115: Car speeds | G115: Average speeds, and Car cost series for rail demand forecasting
C118: COBALT Accidents | E118: COBALT 1 | G118: COBALT Discount rates, costs per accident / casualty, number of damage only accidents (2002)
E119: COBALT 2 | G119: COBALT Compound annual rates of growth of accident values, 2002-2061+
E120: COBALT 3 | G120: COBALT Accident proportions (junction, link and combined)
E121: COBALT 4 | G121: COBALT Accident parameters (junction only)
E122: COBALT 5 | G122: COBALT Accident change factors (junction only)
E123: COBALT 6 | G123: COBALT Accident rates and change factors (link and link and junction combined)
E124: COBALT 7 | G124: COBALT Casualty rates and change factors (junction only)
E125: COBALT 8 | G125: COBALT Casualty rates and change factors (link and link and junction combined)

Sheet User Parameters
A3: TAG Data Book
A4: User-defined parameters
A6: Links:
A7: Contents
A9: NOTE: Users can change parameter values in the "Value" column L (using drop-down menus), or reset default values using buttons in column M.
A10: Parameter | C10: Parameter description | L10: Value | M10: Defaults
A11: Reset all defaults | M11: Reset
A13: Price year | C13: Price base year for presentation of values. | L13: 2023 | M13: Reset
C14: Note that at present, TAG recommends presentation of monetary values in 2023 prices.
A16: Initial forecast year | C16: In forecasting sheets (in which values are presented over a series of years), this is the first year for which values are displayed. | L16: 2010 | M16: Reset
C17: Values are usually presented over a period of 80 years where possible.
A19: Value year | C19: Base year for valuations presented in single-year tables. | L19: 2023 | M19: Reset

Sheet Default Pars (hidden)
A3: TAG Data Book
A4: DfT-defined default parameters
A6: Links:
A7: Contents
A10: Parameter | C10: Parameter description | L10: Value | M10: Drop down menus
M11: Price Yr | N11: Initial Yr
M12: 1990 | N12: 2002
A13: Price year | C13: Price base year for presentation of values. | L13: 2023 | M13: 1991 | N13: 2003
C14: Note that at present, TAG recommends presentation of monetary values in 2023 prices. | M14: 1992 | N14: 2004
M15: 1993 | N15: 2005
A16: Initial forecast year | C16: In forecasting sheets (in which values are presented over a series of years), this is the first year for which values are displayed. | L16: 2010 | M16: 1994 | N16: 2006
C17: Values are usually presented over a period of 80 years where possible. | M17: 1995 | N17: 2007
M18: 1996 | N18: 2008
A19: Value year | C19: Base year for valuations presented in single-year tables. | L19: 2023 | M19: 1997 | N19: 2009
M20: 1998 | N20: 2010
M21: 1999
A22: Indirect taxation factor | C22: IMPORTANT NOTE - this can be overridden for individual years in the following sheet: | I22: Indirect tax correction | L22: 0.19 | M22: 2000
M23: 2001
A24: Work VOT elasticity | C24: Elasticity of in-work-time value of time to GDP/head (Used in Annual Parameters Source) | L24: 1 | M24: 2002
A25: Non-work VOT elasticity | C25: Elasticity of non-work-time value of time to GDP/head (Used in Annual Parameters Source) | L25: 1 | M25: 2003
M26: 2004
C27: The Reset cells in column M of the User Parameters tab uses macros to reset to the values in column L of this tab. | M27: 2005
C28: The Drop down menus in columns M and N of this tab are used in column L of the User Parameters tab. | M28: 2006
M29: 2007
C30: See Flow chart to see which tabs are affected by these cells. | M30: 2008
M31: 2009
M32: 2010
M33: 2011
M34: 2012
M35: 2013
M36: 2014
M37: 2015
M38: 2016
M39: 2017
M40: 2018
M41: 2019
M42: 2020
M43: 2021
M44: 2022
M45: 2023
M46: 2024
M47: 2025
M48: 2026
M49: 2027
M50: 2028
M51: 2029
M52: 2030
M53: 2031
M54: 2032
M55: 2033
M56: 2034
M57: 2035
M58: 2036
M59: 2037
M60: 2038
M61: 2039
M62: 2040

Sheet Audit
A3: TAG Data Book
A4: Audit sheet
A6: Links: | D6: DISCLAIMER: In general, all values in the Data Book are liable to minor revisions with each version of the Data Book, as whenever the data in the Annual Parameters tab
A7: Contents | D7: is updated this flows through into price and value base adjustments. Please refer to the hidden tab 'Flow chart' for details of inter-dependencies within the Data Book.
D8: Please make sure you are using the most up to date version of the Data Book, available at: https://www.gov.uk/guidance/transport-analysis-guidance-TAG#TAG-data-book
A10: This version
A11: Version | C11: Date | D11: Changes from previous version
A12: May 2026 v2.03 | C12: 2026-05-01 | D12: Updated Annual Parameters and A5.3.1 with March 2026 OBR EFO data and latest ONS outturn data
D13: Updated A1.3.3 and A1.3.4 with latest available NTS data. Added London Underground to A1.3.4
D14: Updated A1.3.9 with updated proportion of vehicles per fuel type (only 2004 onwards)
D15: Updated A1.3.10 with updated forecast assumed vehicle fuel efficiency improvements
D16: Updated A3.2 with updated air quality damage costs (A3.2.1), concentration change costs (A3.2.2) and PM2.5/PM10 conversion factors (A3.2.3)
A17: Previous versions (in reverse date order)
A18: December 2025 v2.03FC | C18: 2025-12-01 | D18: Updated Annual Parameters with addition of VoT uprating series for LGVs and OGVs, based on new source tab 'VoT7'
A19: Forthcoming Change: Road freight values of travel time | D19: Updated A1.3.1 with updated road freight values of travel time; this impacts tables A1.3.2, A1.3.5 and A1.3.6
D20: Updated A1.3.4 with updated LGV journey purpose data; this impacts table A1.3.3
D21: Updated A1.3.14 to add LGV (services) and remove the b1 parameter for LGV (freight) and OGV
D22: Updated A5.4.2 and A5.4.4 with updated Marginal External Costs
A23: November 2025 v2.02 | C23: 2025-11-01 | D23: Updated A1.3.1 to ensure source VoTs use 2014 prices and values as per Arup et al (2015) study.
D24: Updated M2.1 and M2.2 to ensure source VoTs and income bands use 2014 prices and values as per Arup et al (2015) study.
D25: Updated M2.1 to use car VoTs only, and corrected M2.2 to use all mode 0-50km distance EB values for PSV passengers.
D26: Updated Annual Parameters, A1.2.1 and A5.3.1 with June 2025 OBR Long-term Economic Determinants, ONS outturn household data, ONS COPI data and Nov 2025 OBR EFO data.
D27: Corrected A1.3.11 to reflect correct underlying PSV Electric efficiency series
D28: Updated A1.3.7 to reflect the latest fuel duty policy and RPI forecasts.
A29: May 2025 v2.01 | C29: 2025-05-01 | D29: Updated A3.5 d/e to reflect new non-exhaust emission values (except for motorcycles)
D30: Corrected A1.3.1 to use the appraisal VoT growth indices to grow the values over time
D31: Updated Annual Parameters, A1.2.1 and A5.3.1 with spring 2025 ONS outturn GDP, population and inflation, March 2025 OBR EFO forecasts and Feb 2025 ONS COPI data.
D32: Addition of table A5.2.1 - CORSIA price series
D33: Updated A3.4 with new DESNZ value of traded carbon for modelling
A34: November 2024 v2.0FC | C34: 2024-11-01 | D34: Default price base year (and value year for single-year tables) updated from 2010 to 2023
A35: Forthcoming change: Base year and operating costs | D35: Updated A5.4.2 to reflect latest economic parameters, fuel prices, fleet assumptions and greenhouse gas guidance.
D36: Updated A1.3.7 to add Non-variable Costs (NVCs) series
D37: Updated A1.3.8 to reflect latest electric vehicle energy consumption parameter values.
D38: Updated A1.3.9 to reflect latest fleet mix by fuel type forecasts.
D39: Updated A1.3.10 to reflect latest vehicle fuel efficiency improvement forecasts.
A40: November 2024 v1.24 | C40: 2024-11-01 | D40: Corrected uprating formula in A4.1.4 to appropriately apply income elasticity of marginal utility of income of -1.3
D41: Updated A3.3 liquid fuel emissions factors to reflect latest biofuel blend rates and forecasts
D42: Updated Annual Parameters and A5.3.1 with ONS outturn population, May 2024 OBR LRD and Oct 2024 EFO data
A43: May 2024 v1.23 | C43: 2024-05-01 | D43: Updated Annual Parameters to include choice of GDP base year.
D44: Updated A1.3.7 to include latest DESNZ fuel and electricity prices.
D45: Updated A3.3 electricity emissions factors to reflect latest DESNZ supplementary guidance
D46: Updated Annual Parameters and A5.3.1 with spring 2024 ONS outturn GDP, population, households and inflation, and March 2024 OBR EFO forecasts.
D47: Corrected error in Annual Parameters tab, shifting High and Low Population series back by one year to match underlying ONS projections
D48: Updated A1.2.1 to include latest ONS COPI release.
D49: Updated A3.4 to add adjusted appraisal values for valuing traded (UK ETS) emissions.
A50: November 2023 v1.22 | C50: 2023-11-01 | D50: Updated Annual Parameters and A5.3.1 with June 23 OBR LRD and Nov 23 EFO data
D51: Addition of table A1.2.1 - Cost inflation series
D52: Updated A1.3.1 to reflect latest data from ONS Annual Survey of Hours and Earnings.
D53: Updated A5.4.2 to reflect latest economic parameters, air quality and greenhouse gas guidance, and included additional table with marginal tonnes CO2.
D54: Updated A4.1.6 following a review of the relevant literature.
D55: Updated A3.4 to add carbon values in market price unit of account
A56: May 2023 v1.21 | C56: 2023-05-01 | D56: Updated A5.4.1, A5.4.2, A5.4.3, A5.4.4 to reflect updated underpinning NTMv2 runs and economic parameters.
D57: Removal of A5.4.2.1 and A5.4.2.2 with introduction of the Common Analytical Scenario MECs.
D58: Updated A3.3 electricity emissions factors to reflect latest DESNZ supplementary guidance
D59: Updated Annual Parameters and A5.3.1 with spring 2023 ONS outturn GDP, population, inflation and households data, and March 2023 OBR EFO.
D60: Updated A3.2 to reflect latest values from Defra. This includes the removal of PM10 Damage Costs and Abatement Costs, and presentation of concentration-based values in per capita terms.
A61: January 2023 v1.20.2 | C61: 2023-01-11 | D61: Updated A1.3.7 with 2023 BEIS fuel and electricity price data
A62: November 2022 v1.20.1 | C62: 2022-11-01 | D62: Updated Annual Parameters and A5.3.1 with July 2022 OBR Fiscal Risk Sustainability data and November 2022 OBR EFO data
A63: Interim release prior to energy price update | D63: Updated A1.3.10 to reflect latest bio energy penalty information (relevant to petrol and diesel car only)
D64: Updated A3.3 liquid fuel emissions factors to reflect latest biofuel blend rates and forecasts
D65: Updated A5.4.7 with latest cycling diversion factors
D66: Updated M4.2.2 and M4.2.3 with car costs and car and bus journey times from NTMv2R (NRTP 2022 runs)
A67: May 2022 v1.19 | C67: 2022-05-01 | D67: Updated table A1.3.8 (plus calculations in A1.3.11 and A1.3.12) to reflect latest electric vehicle energy consumption parameter values.
A68: Forthcoming Change: fleet assumptions | D68: Updated table A1.3.9 to reflect latest fleet mix by fuel type forecasts.
D69: Updated table A1.3.10 to reflect latest vehicle fuel efficiency improvement forecasts.
A70: May 2022 v1.18 | C70: 2022-05-01 | D70: Updated Annual Parameters and A5.3.1 with Spring 2022 ONS outturn GDP and inflation data, March 2022 ONS Households data, and March 2022 OBR EFO.
D71: Updated table A4.1.5 to align approach to uprating over time with road accident values
A72: November 2021 v1.17 | C72: 2021-11-01 | D72: Updated table A3.3 with 2021 BEIS emissions factors
D73: Updated table A1.3.7 with 2021 BEIS fuel and electricity price data
D74: Updated Annual Parameters and A5.3.1 with March 2021 OBR Long-Term Economic Determinants data, June 2021 ONS Population data, and October 2021 OBR EFO data
A75: September 2021 v1.16 | C75: 2021-09-01 | D75: Updated table A3.4 with 2021 BEIS carbon values.
A76: Forthcoming Change: carbon values | D76: Updated tables A5.4.2, A5.4.2.1 and A5.4.2.2 with 2021 BEIS carbon values.
D77: Corrected error in tables A5.4.2.1 (2015 only) and A5.4.2.2 (years 2025, 2035-2050) which adjusted for inflation incorrectly.
D78: Corrected error present in A5.4.2 tables for all years except 2015, causing minor impact on air quality MECs.
D79: Corrected error in A5.4.2 tables. Accident MECs for car and LGV were incorrectly picking up accident MECs for LGV and Rigids respectively.
A80: July 2021 v1.15 | C80: 2021-07-01 | D80: Updated 'Annual parameters' tab to include revised economic and demographic projections in line with OBR EFO March 2021 and latest ONS data
D81: Added user notice in Annual Parameters highlighting new changes to appraisal accounting.
D82: Updated table A5.3.1 in line with OBR EFO March 2021 and latest outturn ONS data.
D83: Fixed tables A1.3.11, A1.3.12 and A1.3.13 to correctly pick up changes in efficiency and fleet mix from 2035-50
D84: Updated 'Casualty data' and 'Accident data' to include latest data from Reported Road Casualties Great Britain 2019
D85: Updated NOx and PM damage costs in table A3.2 to reflect latest Defra air quality appraisal guidance (March 2021).
D86: Added Green Book health discount rate to table A1.1.1
D87: Fixed cell K156 in sheet A5.4.2.1. Incorrect formula was used to interpolate MEC value.
D88: Updated COBALT2 sheet to reflect changes to appraisal accounting guidance described in Unit A4.1
A89: July 2020 v1.14 | C89: 2020-07-01 | D89: Updated 'Annual parameters' tab to include revised economic and demographic projections in line with OBR EFO March 2020 & FSR July 2020 (central scenario).
A90: Sensitivity test version | D90: Updated table A1.3.8 to reflect latest electric vehicle energy consumption parameter values.
D91: Updated table A1.3.9 to reflect latest fleet mix by fuel type forecasts.
D92: Updated table A1.3.10 to reflect latest vehicle fuel efficiency improvement forecasts.
D93: Updated table A5.3.1 in line with OBR EFO March 2020, FSR July 2020 (central scenario) and outturn ONS data.
D94: Updated MECs tables A5.4.2, A5.4.2.1 and A5.4.2.2 to reflect revised annual parameters and fleet assumptions. Corrections to Mon-Fri, Sat-Sun and all-week average calculations.
A95: July 2020 v1.13.1 | C95: 2020-07-01 | D95: Corrected Annual Parameters source notes to refer to source material referenced in November 2019 forthcoming change.
A96: Correction to May 2020 v1.13 | D96: Corrected table A5.4.1 to give correct weighted average of congestion bands.
D97: Corrected table A5.4.4 to give correct values for Scotland.
D98: Corrected table A1.3.9 to give correct fleet splits by fuel type.
D99: Corrected table A1.3.7 to give correct fuel and electricity price forecasts.
D100: Corrected table A4.1.1 to calculate the average value of accident prevention per casualty severity.
D101: Corrected tables A5.4.2, A5.4.2.1 and A5.4.2.2 to contain MECs for band 5 London motorways for years where they were missing before.
D102: Added outturn data for number of households, GDP deflator and real GDP based on ONS publications from May 2020.
A103: May 2020 v1.13 | C103: 2020-05-01 | D103: Updated A1.3.15 sheet formulae to allow calculations out to 2050 to be made (previously stopped at 2035)
D104: Updated 'Annual parameters' tab to include revised economic and demographic projections in line with OBR EFO March 2019 and outturn ONS data
D105: Updated Marginal External Costs to adjust forecast period to 2015-2050.
D106: Added low and high scenario MECs
D107: Updated the 'Cost and rev series' tabs in line with OBR EFO March 2019 and outturn ONS data
D108: Updated 'Casualty data' and 'Accident data' to include latest data from Reported Road Casualties Great Britain 2018
A109: May 2019 v1.12 | C109: 2019-05-01 | D109: Update to the car vehicle kilometre projections following internal modelling
D110: Updated the fuel consumption parameter values following the publication of the update by Ricardo AEA. Emissions curves for Nox and PM are now included in the source sheet.
D111: Updated with BEIS's updates of traded & non-traded carbon values and emissions factors (from road fuel and electricity)
D112: Inclusion of new journeys per season ticket assumptions following the publication release by the Department.
D113: Updated with Defra's published damage costs and impact pathways for Nox, PM and NO2. Fixed user parameters lookups in certain sheets
D114: Updated 'Annual parameters' tab to include revised economic and demographic projections in line with OBR EFO March 2019 and outturn ONS data
D115: Updated the 'Cost and rev series' tabs in line with OBR EFO March 2019 and outturn ONS data
D116: Updated inputs in the 'VoC fuel' tab to reflect BEIS's update of the IAG tables covering forecast road fuel prices
A117: Nov 2018 v1.11 | C117: 2018-11-01 | D117: Updated 'Annual parameters' tab to include revised economic and demographic projections in line with OBR EFO October 2018 and outturn ONS data
D118: Updated the 'Cost and rev series' tabs in line with OBR EFO October 2018 and outturn ONS data
D119: Corrected formulae for 'Car costs (CPI)', 'Car costs (RPI)' and 'Car and bus journey time' tabs
D120: Updated 'VoC' fuel tab to adjust for revisions to the GDP deflator index
D121: Updated accident and casualty data based on RRCGB 2018 publication
A122: June 2018 v1.10.1 | C122: 2018-06-01 | D122: Corrected table M4.2.1 to add fuel cost adjustment factor series, which was omitted due to a processing error.
A123: Correction to May 2018 release | D123: Corrected explanatory text in notes for table A1.3.5.
A124: May 2018 v1.10 | C124: 2018-05-01 | D124: Adoption of data from the March 2018 EFO and accompanying updated long-term economic determinants. Updates to annual parameters and cost & rev series tabs.
D125: Updated tables A1.3.8, A1.3.9 and A1.3.10 with updated fleet forecasts from the Environmental Analysis team, reflecting the assumptions used in the latest BEIS EEP publication.
D126: Added table M4.2.4 containing rail demand forecasting parameters.
D127: Added CPI based car costs to table M4.2.2, along with forecast CPI growth in table A5.3.1.
D128: Updated car cost, car time and bus time series’ based on updated projections from the Department’s National Transport Model.
D129: Added of tables A5.4.6 and A5.4.7 containing recommended diversion factors for bus and cycling interventions.
D130: Updated MECs to reflect new economic parameters, fuel costs, fleet mix data and minor processing errors related to indirect tax.
A131: December 2017 v1.9.1 | C131: 2017-12-01 | D131: Updated 'Annual parameters' tab to include revised economic and demographic projections in line with OBR data from the November 2017 EFO
D132: Updated 'Annual parameters' tab to include revised economic and demographic outturns in line with the latest available ONS data.
D133: Updated inputs in the 'VoC fuel', 'Electricity', 'CO2' and 'GHG' tabs to reflect BEIS's Forthcoming January 2018 update of the IAG tables
D134: Updated accident and casualty data based on RRCGB 2016 publication
D135: Added rigid, artic and PSV MECs in hidden tabs, as well as updates to car MECs to reflect the latest CO2 and fuel price projections from BEIS
A136: October 2017 v1.8.2 | C136: 2017-10-01 | D136: Added forecast fuel cost parameters for electric LGVs to tables A1.3.11, A1.3.12 and A1.3.13, in line with the update to electric LGV fuel consumption & efficiency parameters in v1.8.1
A137: Correction to August 2017 release
A138: August 2017 v1.8.1 | C138: 2017-08-01 | D138: Updated electric car and LGV consumption parameters in table A1.3.8
A139: Correction to July 2017 release | D139: Updated electric car and LGV forecast efficiency improvements in table A1.3.10
D140: Added non-fuel VOCs for electric LGVs in table A1.3.14
A141: July 2017 v1.8 | C141: 2017-07-01 | D141: Updated accident and casualty data based on RRCGB 2015 publication
D142: Updated table A4.1.4 to include average cost across all accidents
D143: Updated 'Annual parameters' tab to include revised economic and demographic projections in line with OBR data from the January 2017 FSR and March 2017 EFO.
D144: Updated 'Annual parameters' tab to include revised economic and demographic outturns in line with the latest available ONS data.
D145: Updated table A1.3.8 to reflect calibration of base year fuel consumption curves to DUKES fuel sales data in the NTM.
D146: Updated table A1.3.10 to reflect revised fuel efficiency assumed improvements, based on ICCT analysis of the gap between test cycle and 'real world' emissions
D147: Updated 'VoC fuel', 'Electricity', 'CO2' and 'GHG' tabs to reflect BEIS's March 2017 update of the IAG tables
D148: Updated the 'car speeds' and 'car and bus journey time' tabs to be consistent with RTF Scenario 1 (including the RIS 1 package of schemes)
D149: Updated the 'car speeds' and 'car and bus journey time' tabs to include a new PDFH flow group 'PTE internal' based on the 'GB x London - Urban' NTM outputs
D150: Introduced new rail tabs A5.3.2 and A5.4.5, reflecting recommended default journey purpose / ticket type splits and car diversion factors by flow category
D151: Updated the 'Cost and rev series' tabs to incorporate revised OBR projections (from the March 2017 EFO) and ONS outturn data
D152: Updated the MEC tables (A5.4.2 and A5.4.4) to correct a minor error identified in the uprating over time, and reflect the latest fuel price projections from BEIS
D153: Updated traffic weights underpinning MECs in A5.4.2 to be consistent with NTM traffic forecasts, which has a minor effect on all values
D154: Updated fleet fuel mix splits in tab A1.3.9, to reflect the latest EEP policy reference scenario
D155: Corrected price and value updating formula in tabs M2.1 and M2.2
A156: March 2017 v1.7 | C156: 2017-03-01 | D156: Updated table A1.3.1 to reflect new values of time. This also affects tables A1.3.5 and A1.3.6.
D157: Updated table A1.3.3 with new refreshed occupancy data for 2010, and a new assumption of 0% change per annum in occupancy from 2010 onwards.
D158: Updated table A1.3.4 with new journey purpose splits.
D159: Updated tables M2.1 and M2.2 to reflect new values of time.
A160: Spring 2016 v1.6 | C160: 2016-07-01 | D160: Updated with new values of time
A161: Forthcoming Change: Values of Time
A162: Spring 2016 v1.5 | C162: 2016-07-01 | D162: Updates to GDP and GDP deflator series in Annual Parameters with latest OBR forecasts (2016 Budget)
D163: Updated forecasts of GDP, GDP deflator and RPI (OBR and ONS, 2016)
D164: Updated OGV 1 and OGV 2 Fuel Consumption Parameters.
D165: Updated Car MECs to reflect indirect tax correction and new values of time
D166: Updated Average Earnings Data with latest OBR Outturn and Forecast data
A167: Autumn 2015 v1.4 | C167: 2016-01-01 | D167: Corrected hard-coding of price base year in tables A1.3.7 and A3.4, corrected references in 'VOC fuel', 'Electricity' and 'A1.3.7' tabs.
C168: 2015-12-01 | D168: Extend user parameters price and value year series to 2040.
D169: Inclusion of Defra noise values on health-basis (noise and A3.1)
D170: Revise calculation of car cost series to be in real terms against RPI, consistent with elasticities used in forecasting (car speeds, M4.2.2 and Adjustment Factors
D171: Updates to cost and rev series (table A5.3.1) with latest OBR forecasts for the GDP deflator, RPI and average earnings. (2015 summer budget and FSR)
D172: Updates to GDP and GDP deflator series in Annual Parameters with latest OBR forecasts (2015 summer Budget and FSR)
D173: Updated population series with 2014 ONS MY estimate and principal ONS projections, consistent with latest OBR GDP forecasts.
D174: Updated household series with 2014 (and back series) from LFS
D175: Updated accident and casualty data (affecting A4.1 tables) with latest data from Road Safety team from RRCGB 2014
D176: Updated forecasts of GDP, GDP deflator and RPI (OBR and ONS, 2015)
D177: Updated population and household projections (ONS and DCLG, 2015)
D178: Updated road fuel and electricity price projections, GHG value projections and emissions factor projections (DECC, 2015)
A179: November 2014 v1.3 | C179: 2014-12-01 | D179: Removal of calculation of nominal fare increases from table A5.3.1
C180: 2014-11-10 | D180: Inclusion of operating cost and revenue forecasting series (table A5.3.1)
D181: Inclusion of car and bus journey time series for rail forecating (table M4.2.3)
D182: Update to PDFH flow categories in table M4.2.2 to match PDFHv5.1
D183: Updated casualty and accident data from Reported Road Casualties Great Britain 2013
D184: Updates to fuel consumption curves (A1.3.8) and forecast fuel efficiency improvements (A1.3.10), including addition of rail diesel biofuel energy penalty
D185: Updates to GDP and deflator forecasts (Annual Parameters table) with the latest OBR forecasts and ONS revisions to GDP
D186: Inclusion of Mid-Year Population estimates for 2013 from ONS (Annual Parameters table)
D187: Value year control for single year tables added to the User Parameters table
D188: Updates to the accident rates and beta factors for 'link only' and 'link and junction combined' in COBALT 3, 4 & 5
D189: Updates to fuel prices from the 2014 version of DECC / Supp. Green Book guidance on energy and GHGs
D190: Updates to GHG emission factors and values from the 2014 version of DECC / Supp. Green Book guidance on energy and GHGs
D191: Revisions to the historic GDP series published in the Q2 2014 Blue Book
A192: May 2014 v1.2 | C192: 2014-05-01 | D192: Updated emission factors (A3.3), carbon values (A3.4) and electricity prices (A1.3.7) from DECC IAG 2013 guidance
D193: Updated GDP deflator series and forecasts (HMT, Dec 2013, and OBR Mar 2014, July 2013)
D194: Updated GDP series and forecasts (Final estimate for Q4 2013 ABMI, Mar 2014 and July 2013 OBR forecasts)
D195: Updated population series and projections (ONS, 2013)
D196: Updated historic household series (ONS, 2013)
D197: Updated price year to include up to 2014
D198: Updated fuel price forecasts, using IAG 2013 fossil fuel prices and Budget 2014 duty announcements
D199: Beta factors for junction accidents on COBALT7 corrected
D200: Correction to treatment of non-fuel costs in Table M4.2.2, re-structured calculations with use of cagr interpolation and added additional flow categories
D201: Bus Social Impact tables added (A1.3.16-18)
A202: January 2014 v1.1 | C202: 2014-01-01 | D202: Correction to resets on user parameters tab; and bus quality factors in table M3.2.1
A203: Autumn 2013 v1.0 | C203: 2013-10-01 | D203: This is the first release, as part of the restructured TAG guidance.

Sheet TAG1
A3: TAG Data Book
A4: TAG1 Look-up
A6: Links:
A7: Contents
A10: TAG1 | I10: Data Book
A11: Unit | B11: Table No. | C11: Table Title | I11: Worksheet
A12: 3.3.2 | B12: 1 | C12: Annoyance response relationships for road and rail traffic noise | I12: A 3.1
A13: 3.3.2 | B13: 2 | C13: Monetary valuation of changes in noise level (per household) | I13: A 3.1
A14: 3.3.3 | B14: 4 | C14: Damage cost and marginal abatement cost values by pollutant | I14: A 3.2
A15: 3.3.5 | B15: 1 | C15: Carbon dioxide emissions per litre of fuel burnt / kWh used | I15: A 3.3
A16: 3.3.5 | B16: 2a | C16: Forecast traded & non-traded, £ per tonne of CO2e (2010-2050) | I16: A 3.4
A17: 3.3.5 | B17: 2b | C17: Forecast traded & non-traded, £ per tonne of CO2e (2050-2100) | I17: A 3.4
A18: 3.4.1 | B18: 1 | C18: Average value of prevention per casualty by severity and element of cost | I18: A 4.1.1
A19: 3.4.1 | B19: 2 | C19: Average value of prevention per road casualty by class of road user | I19: A 4.1.2
A20: 3.4.1 | B20: 3 | C20: Average value of prevention of road accidents by severity and element of cost | I20: A 4.1.3
A21: 3.4.1 | B21: 4a | C21: Average value of prevention per road accident by severity and class of road: all hours | I21: A 4.1.4
A22: 3.4.1 | B22: 4b | C22: Average value of prevention per road accident by severity and class of road: daylight hours | I22: Deleted
A23: 3.4.1 | B23: 4c | C23: Average value of prevention per road accident by severity and class of road: darkness hours | I23: Deleted
A24: 3.4.1 | B24: 5 | C24: Rail injury classification, weights and values | I24: A 4.1.5
A25: 3.5.4 | B25: 1 | C25: Green book discount rates | I25: A 1.1.1
A26: 3.5.6 | B26: 1 | C26: Values of Working (Employers' Business) Time by mode per person | I26: A 1.3.1
A27: 3.5.6 | B27: 2 | C27: Values of Non-Working Time by Trip Purpose | I27: A 1.3.1
A28: 3.5.6 | B28: 1 & 2 | C28: (New) Forecast values of time per person (working and non-working) | I28: A 1.3.2
A29: 3.5.6 | B29: 3a | C29: Forecast growth in real GDP, population and households | I29: Annual Parameters
A30: 3.5.6 | B30: 3b | C30: Forecast growth in working and non-working values of time | I30: Annual Parameters
A31: 3.5.6 | B31: 4 | C31: Car occupancies (2000) | I31: A 1.3.3
A32: 3.5.6 | B32: 5 | C32: Vehicle occupancies (2000) | I32: A 1.3.3
A33: 3.5.6 | B33: 6 | C33: Annual percentage change in car passenger occupancy to 2036 | I33: A 1.3.3
A34: 3.5.6 | B34: 4 & 5 & 6 | C34: (New) Vehicle occupancies based on vehicle kilometres travelled | I34: A 1.3.3.2
A35: 3.5.6 | B35: 7 | C35: Proportion of travel in work and non-work time | I35: A 1.3.4
A36: 3.5.6 | B36: 8 | C36: Proportion of trips made in work and non-work time | I36: A 1.3.4
A37: 3.5.6 | B37: 9 | C37: Market price values of time per vehicle based on distance travelled | I37: A 1.3.5
A38: 3.5.6 | B38: 9 | C38: (New) Forecast market price values of time per vehicle based on distance travelled | I38: A 1.3.6
A39: 3.5.6 | B39: 10 | C39: Fuel / energy consumption parameter values | I39: A 1.3.8
A40: 3.5.6 | B40: 10 | C40: (New) Forecast fuel / energy consumption parameter values | I40: A 1.3.11
A41: 3.5.6 | B41: 10a | C41: Average vehicle fuel / energy cost formulae parameter values (Work) | I41: A 1.3.12
A42: 3.5.6 | B42: 10b | C42: Average vehicle fuel / energy cost formulae parameter values (Non-work) | I42: A 1.3.13
A43: 3.5.6 | B43: 11a | C43: Fuel and electricity prices and components | I43: A 1.3.7
A44: 3.5.6 | B44: 11b | C44: Fuel and electricity prices and components | I44: A 1.3.7
A45: 3.5.6 | B45: 12 | C45: Forecast proportion of cars, LGV and other vehicle kilometres using petrol / diesel / electricity | I45: A 1.3.9
A46: 3.5.6 | B46: 13 | C46: Forecast assumed vehicle fuel efficiency improvements to 2035 | I46: A 1.3.10
A47: 3.5.6 | B47: 14 | C47: Average Car / LGV fuel cost formulae parameter values (Work) | I47: A 1.3.12
A48: 3.5.6 | B48: 14 | C48: Average Car / LGV fuel cost formulae parameter values (Non-work) | I48: A 1.3.13
A49: 3.5.6 | B49: 15 | C49: Non-fuel resource vehicle operating costs | I49: A 1.3.14
A50: 3.5.6 | B50: 16 | C50: Forecast non-fuel resource car operating costs to 2035 | I50: A 1.3.15
A51: 3.6.1 | B51: 2 | C51: Option and non-use values | I51: A 4.1.8
A52: 3.13.2 | B52: Spreadsheet 1 | C52: Proportion of Total Traffic by congestion band, region, area and road types | I52: A 5.4.1
A53: 3.13.2 | B53: Spreadsheet 2 | C53: Marginal External Costs by road type and congestion band | I53: A 5.4.2
A54: 3.13.2 | B54: Spreadsheet 3 | C54: Car traffic shares by time of day | I54: A 5.4.3
A55: 3.13.2 | B55: Spreadsheet 3 | C55: Marginal External Costs by region and time of day | I55: A 5.4.4
A56: 3.14.1 | B56: 4 | C56: Value of journey ambience benefit of cycle facilities | I56: A 4.1.6
A57: 3.14.1 | B57: 5 | C57: Values of aspects in pedestrian environment | I57: A 4.1.7
A58: 3.15.2 | B58: 1 | C58: Fuel price and income forecast adjustment factors | I58: M 4.2.1

Sheet Development versions (hidden)
A3: TAG Data Book
A4: Development versions
A6: Links:
A7: Contents
A9: This version
A10: Version | C10: Date | D10: Changes from previous version
A11: May 2021 v1.15 Forthcoming Change version | C11: 2021-04-01 | D11: Updated 'Annual parameters' tab to include revised economic and demographic projections in line with OBR EFO Nov 2020 and latest ONS data
D12: Updated table A5.3.1 in line with OBR EFO Nov 2020 and latest outturn ONS data.
D13: Fixed tables A1.3.11, A1.3.12 and A1.3.13 to correctly pick up changes in efficiency and fleet mix from 2035-50
D14: Updated 'Casualty data' and 'Accident data' to include latest data from Reported Road Casualties Great Britain 2019
D15: Fixed cell K156 in sheet A5.4.2.1. Incorrect formula was used to interpolate MEC value.
D16: Added Green Book health discount rate to table A1.1.1
A17: Previous versions (in reverse date order)
A18: July 2020 v1.14 - sensitivity test data book | C18: 2020-07-01 | D18: Updated 'Annual parameters' tab to include revised economic and demographic projections in line with OBR EFO March 2020 & FSR July 2020 (central scenario).
D19: Updated table A1.3.8 to reflect latest electric vehicle energy consumption parameter values.
D20: Updated table A1.3.9 to reflect latest fleet mix by fuel type forecasts.
D21: Updated table A1.3.10 to reflect latest vehicle fuel efficiency improvement forecasts.
D22: Updated table A5.3.1 in line with OBR EFO March 2020, FSR July 2020 (central scenario) and outturn ONS data.
D23: Updated MECs tables A5.4.2, A5.4.2.1 and A5.4.2.2 to reflect revised annual parameters and fleet assumptions. Corrections to Mon-Fri, Sat-Sun and all-week average calculations.
A24: June 2020 v.13.1 | C24: 2020-06-01 | D24: Corrected Annual Parameters source notes to refer to source material referenced in November 2019 forthcoming change.
A25: (correction to May 2020 release) | D25: Corrected table A5.4.1 to give correct weighted average of congestion bands.
D26: Corrected table A5.4.4 to give correct values for Scotland.
D27: Corrected table A1.3.9 to give correct fleet splits by fuel type.
D28: Corrected table A1.3.7 to give correct fuel and electricity price forecasts.
D29: Corrected table A4.1.1 to calculate the average value of accident prevention per casualty severity.
D30: Corrected tables A5.4.2, A5.4.2.1 and A5.4.2.2 to contain MECs for band 5 London motorways for years where they were missing before.
D31: Added outturn data for number of households, GDP deflator and real GDP based on ONS publications from May 2020.
A32: May 2020 v1.13 | C32: 2020-05-29 | D32: Updated A1.3.15 sheet formulae to allow calculations out to 2050 to be made (previously stopped at 2035)
D33: Updated 'Annual parameters' tab to include revised economic and demographic projections in line with OBR EFO March 2019 and outturn ONS data
D34: Updated Marginal External Costs to adjust forecast period to 2015-2050.
D35: Added low and high scenario MECs
D36: Updated the 'Cost and rev series' tabs in line with OBR EFO March 2019 and outturn ONS data
D37: Updated 'Casualty data' and 'Accident data' to include latest data from Reported Road Casualties Great Britain 2018
A38: May 2019 v1.12 | C38: 2019-05-01 | D38: Update to the car vehicle kilometre projections following internal modelling
D39: Updated the fuel consumption parameter values following the publication of the update by Ricardo AEA. Emissions curves for Nox and PM are now included in the source sheet.
D40: Updated with BEIS's updates of traded & non-traded carbon values and emissions factors (from road fuel and electricity)
D41: Inclusion of new journeys per season ticket assumptions following the publication release by the Department.
D42: Updated with Defra's published damage costs and impact pathways for Nox, PM and NO2. Fixed user parameters lookups in certain sheets
D43: Updated 'Annual parameters' tab to include revised economic and demographic projections in line with OBR EFO March 2019 and outturn ONS data
D44: Updated the 'Cost and rev series' tabs in line with OBR EFO March 2019 and outturn ONS data
D45: Updated inputs in the 'VoC fuel' tab to reflect BEIS's update of the IAG tables covering forecast road fuel prices
A46: November 2018 release v1.11 | C46: 2018-11-01 | D46: Updated 'Annual parameters' tab to include revised economic and demographic projections in line with OBR EFO October 2018 and outturn ONS data
D47: Updated the 'Cost and rev series' tabs in line with OBR EFO October 2018 and outturn ONS data
D48: Corrected formulae for 'Car costs (CPI)', 'Car costs (RPI)' and 'Car and bus journey time' tabs
D49: Updated 'VoC' fuel tab to adjust for revisions to the GDP deflator index
D50: Updated accident and casualty data based on RRCGB 2018 publication
A51: June 2018 v1.10.1 | C51: 2018-06-01 | D51: Corrected table M4.2.1 to add fuel cost adjustment factor series, which was omitted due to a processing error.
A52: (correction to May 2018 release) | D52: Corrected explanatory text in notes for table A1.3.5.
A53: May 2018 v1.10 | C53: 2018-05-01 | D53: Adoption of data from the March 2018 EFO and accompanying updated long-term economic determinants. Updates to annual parameters and cost & rev series tabs.
D54: Updated tables A1.3.8, A1.3.9 and A1.3.10 with updated fleet forecasts from the Environmental Analysis team, reflecting the assumptions used in the latest EEP publication.
D55: Added table M4.2.4 containing rail demand forecasting parameters
D56: Added CPI based car costs to table M4.2.2, along with forecast CPI growth in table A5.3.1
D57: Updated car cost, car time and bus time series’ based on updated projections from the Department’s National Transport Model.
D58: Added of tables A5.4.6 and A5.4.7 containing recommended diversion factors for bus and cycling interventions.
D59: Updated MECs to reflect new economic parameters, fuel costs, fleet mix data and minor processing errors related to indirect tax.
A60: December 2017 release v1.9.1 | C60: 2017-12-01 | D60: Updated 'Annual parameters' tab to include revised economic and demographic projections in line with OBR data from the November 2017 EFO
D61: Updated 'Annual parameters' tab to include revised economic and demographic outturns in line with the latest available ONS data.
D62: Updated inputs in the 'VoC fuel', 'Electricity', 'CO2' and 'GHG' tabs to reflect BEIS's Forthcoming January 2018 update of the IAG tables
D63: Updated accident and casualty data based on RRCGB 2016 publication
D64: Added rigid, artic and PSV MECs in hidden tabs, as well as updates to car MECs to reflect the latest CO2 and fuel price projections from BEIS
A65: October 2017 release 1.8.2 | C65: 2017-10-01 | D65: Added forecast fuel cost parameters for electric LGVs to tables A1.3.11, A1.3.12 and A1.3.13, in line with the update to electric LGV fuel consumption & efficiency parameters in v1.8.1
A66: (correction to August 2017 release)
A67: August 2017 release v1.8.1 | C67: 2017-08-01 | D67: Updated electric car and LGV consumption parameters in table A1.3.8
A68: (correction to July 2017 release) | D68: Updated electric car and LGV forecast efficiency improvements in table A1.3.10
D69: Added non-fuel VOCs for electric LGVs in table A1.3.14
A70: July 2017 release v1.8 | C70: 2017-07-01 | D70: Updated accident and casualty data based on RRCGB 2015 publication
D71: Updated table A4.1.4 to include average cost across all accidents
D72: Updated 'Annual parameters source' tab to include revised economic and demographic projections in line with OBR data from the January 2017 FSR and March 2017 EFO.
D73: Updated 'Annual parameters source' tab to include revised economic and demographic outturns in line with the latest available ONS data.
D74: Updated 'Fuel consumption' tab to reflect calibration of base year fuel consumption curves to DUKES fuel sales data in the NTM.
D75: Updated 'VoC efficiency' tab to reflect revised fuel efficiency assumed improvements, based on ICCT analysis of the gap between test cycle and 'real world' emissions
D76: Updated 'VoC fuel', 'Electricity', 'CO2' and 'GHG' tabs to reflect BEIS's March 2017 update of the IAG tables
D77: Updated the 'car speeds' and 'car and bus journey time' tabs to be consistent with RTF Scenario 1 (including the RIS 1 package of schemes)
D78: Updated the 'car speeds' and 'car and bus journey time' tabs to include a new PDFH flow group 'PTE internal' based on the 'GB x London - Urban' NTM outputs
D79: Introduced new rail tabs A5.3.2 and A5.4.5, reflecting recommended default journey purpose / ticket type splits and car diversion factors by flow category
D80: Updated the 'Cost and rev series' tabs to incorporate revised OBR projections (from the March 2017 EFO) and ONS outturn data
D81: Updated the MEC tables (A5.4.2 and A5.4.4) to correct a minor error identified in the uprating over time, and reflect the latest fuel price projections from BEIS
D82: Updated traffic weights underpinning MECs in A5.4.2 to be consistent with NTM traffic forecasts, which has a minor effect on all values
D83: Updated fleet fuel mix splits in tab A1.3.9, to reflect the latest EEP policy reference scenario
D84: Corrected price and value updating formula in tabs M2.1 and M2.2
A85: March 2017 release v1.7 | C85: 2017-03-01 | D85: Updated table A1.3.1 to reflect updated values of time. This also affects tables A1.3.5 and A1.3.6.
D86: Updated table A1.3.3 with new refreshed occupancy data for 2010, and a new assumption of 0% change per annum in occupancy from 2010 onwards.
D87: Updated table A1.3.4 with new journey purpose splits.
D88: Updated tables M2.1 and M2.2 to reflect new values of time.
A89: Spring 2016 release | C89: 2016-07-01 | D89: Updates to GDP and GDP deflator series in Annual Parameters with latest OBR forecasts (2016 Budget)
C90: 2016-07-01 | D90: Updated forecasts of GDP, GDP deflator and RPI (OBR and ONS, 2016)
C91: 2016-07-01 | D91: Updated OGV 1 and OGV 2 Fuel Consumption Parameters.
C92: 2016-07-01 | D92: Updated Car MECs to reflect indirect tax correction and new values of time
C93: 2016-07-01 | D93: Updated Average Earnings Data with latest OBR Outturn and Forecast data
A94: v1.4 | C94: 2015-09-21 | D94: Extend user parameters price and value year series to 2040.
C95: 2015-09-21 | D95: Inclusion of Defra noise values on health-basis (noise and A3.1)
C96: 2015-09-21 | D96: Revise calculation of car cost series to be in real terms against RPI, consistent with elasticities used in forecasting (car speeds, M4.2.2 and Adjustment Factors
C97: 2015-09-21 | D97: Updates to cost and rev series (table A5.3.1) with latest OBR forecasts for the GDP deflator, RPI and average earnings. (2015 summer budget and FSR)
C98: 2015-09-21 | D98: Updates to GDP and GDP deflator series in Annual Parameters with latest OBR forecasts (2015 summer Budget and FSR)
C99: 2015-09-21 | D99: Updated population series with 2014 ONS MY estimate and principal ONS projections, consistent with latest OBR GDP forecasts.
C100: 2015-09-21 | D100: Updated household series with 2014 (and back series) from LFS
C101: 2015-09-22 | D101: Updated accident and casualty data (affecting A4.1 tables) with latest data from Road Safety team from RRCGB 2014
C102: 2015-12-16 | D102: Updated forecasts of GDP, GDP deflator and RPI (OBR and ONS, 2015)
C103: 2015-12-17 | D103: Updated population and household projections (ONS and DCLG, 2015)
C104: 2015-12-18 | D104: Updated road fuel and electricity price projections, GHG value projections and emissions factor projections (DECC, 2015)
C105: 2016-01-08 | D105: Corrected hard-coding of price base year in tables A1.3.7 and A3.4, corrected references in 'VOC fuel', 'Electricity' and 'A1.3.7' tabs.
A107: v1.3 | C107: 2014-11-01 | D107: Car and bus JT for rail forecasting
D108: Inflation factors for rail revenue and op cost forecasting
A110: v1.2 | C110: 2014-05-01 | D110: Updated emission factors (A3.3) and carbon values (A3.4) from DECC IAG 2013 guidance on valuing energy and GHG emissions
D111: Updated GDP deflator series and forecasts, including basing index on specified price year (HMT, Dec 2013, and OBR Mar 2014, July 2013)
D112: Updated GDP series and forecasts (Final estimate for Q4 2103 ABMI, Mar 2014 OBR forecasts for 2014-2018)
D113: Updated population series and projections (ONS, 2013)
D114: Updated historic household series (ONS, 2013)
D115: Updated price year to include up to 2014
D116: Notes updated and initial forecast year control added to COBALT2 tab
D117: Damage only accidents per pia added to COBALT1 tab
D118: Beta factors for junction accidents on COBALT7 corrected
D119: Correction to treatment of non-fuel costs in Table M4.2.2, re-structured calculations with use of cagr interpolation and added additional flow categories
D120: Bus Social Impact tables added (A1.3.16-18)
D121: DECC IAG emission factors
D122: DECC IAG 2013 electricity prices
D123: Fuel price forecasts from v2.8 of DfT fuel price model, using IAG 2013 fossil fuel prices and Budget 2014 duty announcements
A125: v1.1 | C125: 2014-01-01 | D125: Reset macro re-added to user parameters; correction to table M3.2.1 - bus quality factors
A126: v0.11 | C126: 2013-09-27 | D126: MECC values revised following QA - This was the October 2013 release version
A127: v0.10 | C127: 2013-08-22 | D127: Includes updated values of time for work and non-work purposes, segmented values of time in M2.1 and M2.2 and adjusted MECs in A5.4.2 and A5.4.4
A130: v0.9 | C130: 2013-07-22 | D130: Changes made to reflect "in draft" changes in TAG 2013 - includes DECC IAG 2012 carbon values and fuel prices (including gas oil and separate electricity for road and rail)
D131: Updated and automated TEMPRO adjustment factors (M4.2.1) and introduced car cost series for rail forecasting (M4.2.2)
D132: Updated GDP and GDP deflator historic series (July ONS/HMT releases) and forecasts (based on Budget 2013 and July 2013 OBR Fiscal Sustainability Report)

Sheet Annual Parameters
A3: TAG Data Book
A4: Annual Parameters
A6: This version: | E6: Notes
A7: =Audit!A12 -> May 2026 v2.03 | E7: Sources
A8: =Audit!C12 -> 2026-05-01 | E8: 1. GDP Deflator | F8: ='Annual Parameters Source'!F8 -> 1990-2025 from ONS MNF2 series, published 12/02/2026
A9: Links: | F9: ='Annual Parameters Source'!F9 -> 2026-2030 from OBR EFO March 2026 supplementary economy table 1.7, published 3/3/2026
A10: Contents | F10: ='Annual Parameters Source'!F10 -> 2031-2073 from OBR Jun 25 Long-term Economic Determinants published 19/06/2025
A11: TAG Unit 3.5.6 | F11: ='Annual Parameters Source'!F11 -> 2074 onwards: annual growth assumed to be equal to final OBR forecast year.
A12: TAG Unit A 1.3 | E12: 2. Real GDP | F12: ='Annual Parameters Source'!F12 -> 1990-2025 from ONS ABMI series, published 12/02/2026 (£m, chained volume measure with a 2023 base)
A13: Parameters: | F13: ='Annual Parameters Source'!F13 -> 2026-2030 from OBR EFO March 26 Table TA.1, published 3/3/2026
A14: Price year: | B14: ='User Parameters'!L13 -> 2023 | F14: ='Annual Parameters Source'!F14 -> 2031-2073 from OBR Jun 25 Long-term Economic Determinants published 19/06/2025
A15: Appraisal year | B15: 2026 | F15: ='Annual Parameters Source'!F15 -> 2074 onwards: based on trends in real GDP and public sector workforce growth from OBR June 25 Long-Term Economic Determinants and expected growth in working age population from ONS 2022-based migration category variant population projection
A16: GDP Base Year | B16: 2023 | E16: 3. Population | F16: ='Annual Parameters Source'!F16 -> 1990-2025 from mid-year population estimates - UKPOP series (all ages, '000s), published 27/11/2025
A17: Sheet Navigation: | F17: ='Annual Parameters Source'!F17 -> 2026-2030 based on population implied by GDP and GDP per capita growth from OBR March 2026 EFO Table TA.1, published 3/3/2026. For this period, according to OBR, this should be in line with the ONS 2022-based population projection 'migration category' variant.
F18: ='Annual Parameters Source'!F18 -> 2031-2073 from OBR Jun 25 Long-term Economic Determinants (ONS 2022-based migration category variant population projection) published 19/06/2025.
F19: ='Annual Parameters Source'!F19 -> 2074 onwards: from ONS 2022-based migration category variant population projection
F20: ='Annual Parameters Source'!F20 -> High and Low Growth series: 2026 onwards from ONS 2022-based population projection 'High Population' and 'Low Population' variants, published 28/01/2025
E21: 4. Households | F21: ='Annual Parameters Source'!F21 -> 1996-2024 from Labour Force Survey (UK households, '000s) published 23/07/2025
F22: ='Annual Parameters Source'!F22 -> 2025-2039 uses ONS projections of UK households last updated 29/06/2020
F23: ='Annual Parameters Source'!F23 -> Post-2039, household growth is assumed to equal population growth
F24: ='Annual Parameters Source'!F24 -> For 2025 and beyond, the series has been constructed to be consistent with the population forecast, by constraining the average household size in each forecast year to that implied by the ONS 2022-based migration category variant population projection
F25: ='Annual Parameters Source'!F25 -> This is necessary because changes in population must entail household growth, all else equal, but ONS have not produced a household forecast to accompany the aforementioned projection.
E26: If using historic values of Real GDP, GDP per person or GDP per household, users can edit the base year of Real GDP using the input cell B16 (otherwise set to latest ONS base year).
E27: VoT elasticities are set in Default Pars. The VoT index and growth p.a have been interpolated from 2019-2022 to account for short-term fluctuations due to Covid-19.
E29: Important notice for users (May 2021)
E30: - Following changes to appraisal accounting detailed in a Forthcoming Change to TAG Unit A1.3 (May 2021), the VoT indices in columns V-Z should now be used for modelling purposes only. A separate set of VoT indices for appraisal purposes is provided alongside cols X-AA).
E31: - For appraisal purposes, all non-heath values formerly assumed to grow in line with annual OBR GDP forecasts should now be uprated by 1.5% each year from the appraisal year onwards, in line with the long-term OBR growth rate.
E32: - As a consequence, users should first enter the correct appraisal year in the input cell B15 before using the appraisal VoT indices in columns X-AA (as the two are now linked).
E33: - Please also note that all VoT growth indices (cols V, W, Z and AA) have been interpolated between 2019-2022 to mitigate the impact of short-term fluctuations due to Covid-19 on values used for modelling/appraisal - this is particularly relevant for appraisals starting in this period.
E35: These tables feed Annual Parameters, and hence: 1.3.1, 1.3.2, 1.3.6, 1.3.7, 1.3.12, 1.3.13, 1.3.14, 1.3.15, 3.1, 3.2, 3.4, 4.1.1, 4.1.2, 4.1.4, 4.1.5, 4.1.6, 4.1.7, 4.1.8, 5.4.2, 5.4.4, COBALT1, COBALT2.
E36: Where a longer appraisal period is used for the purpose of sensitivity testing, relevant series' should be assumed to continue to grow at the same rate from the end of the period for which data is provided.
E37: TAG1: Unit 3.5.6 (Table 3)
A39: Annual Parameters
D40: GDP deflator1 | E40: Real GDP2 | H40: Population3 | K40: Households4 | N40: Average GDP per person | Q40: Average GDP per household | T40: Work & Non-Work VoT For modelling purposes only | X40: Work & Non-Work VoT For appraisal purposes only | AB40: LGV & OGV VoT | AJ40: Population Scenarios3
X41: Appraisal start year | Z41: =$B$15 -> 2026 | AB41: Modelling only | AD41: Appraisal only | AF41: Modelling and appraisal
D42: =_xlfn.CONCAT("(",B14,"=100)") -> (2023=100) | E42: Historic Value | F42: Annual | G42: Index | H42: Historic | I42: Annual | J42: Index | K42: Historic | L42: Annual | M42: Index | N42: Historic Value | O42: Annual | P42: Index | Q42: Historic Value | R42: Annual | S42: Index | T42: Work | U42: Non-Work | V42: Work | W42: Non-work | X42: Work | Y42: Non-Work | Z42: Work | AA42: Non-work | AB42: Average LGV | AC42: Average LGV | AD42: Average LGV | AE42: Average LGV | AF42: LGV Freight | AG42: OGV | AH42: LGV Freight | AI42: OGV | AJ42: High | AK42: Low
E43: Base Year = | F43: Growth | G43: 1990 = 100 | H43: Value | I43: Growth | J43: 1990 = 100 | K43: Value | L43: Growth | M43: 1996 = 100 | N43: Base Year = | O43: Growth | P43: 1990 = 100 | Q43: Base Year = | R43: Growth | S43: 1996 = 100 | T43: VoT Growth | U43: VoT Growth | V43: Index | W43: Index | X43: VoT Growth | Y43: VoT Growth | Z43: Index | AA43: Index | AB43: VoT Growth | AC43: Index | AD43: VoT Growth | AE43: Index | AF43: VoT Growth | AG43: VoT Growth | AH43: Index | AI43: Index | AJ43: Growth | AK43: Growth
B44: Year | E44: =B16 -> 2023 | F44: (%pa) | I44: (%pa) | L44: (%pa) | N44: =B16 -> 2023 | O44: (%pa) | Q44: =B16 -> 2023 | R44: (%pa) | T44: (% pa) | U44: (% pa) | V44: 2002 = 100 | W44: 2002 = 100 | X44: (% pa) | Y44: (% pa) | Z44: 2002 = 100 | AA44: 2002 = 100 | AB44: (% pa) | AC44: 2010 = 100 | AD44: (% pa) | AE44: 2010 = 100 | AF44: (% pa) | AG44: (% pa) | AH44: 2010 = 100 | AI44: 2010 = 100 | AJ44: (%pa) | AK44: (%pa)
B45: 1990 | D45: =IF('Annual Parameters Source'!D42="","-",'Annual Parameters Source'!D42/VLOOKUP($B$14,'Annual Parameters Source'!$B$42:$D$152,3,1)*100) -> 44.41914593 | E45: =IF('Annual Parameters Source'!E42="","-",VLOOKUP($B$16,'Annual Parameters Source'!$B$42:$AH$156,33,FALSE)/VLOOKUP($B$16,'Annual Parameters Source'!$B$42:$AH$156,4,FALSE)*'Annual Parameters Source'!E42) -> 1515202 | F45: =IF('Annual Parameters Source'!F42="","-",'Annual Parameters Source'!F42) -> - | G45: =IF('Annual Parameters Source'!G42="","-",'Annual Parameters Source'!G42) -> 100 | H45: =IF('Annual Parameters Source'!H42="","-",'Annual Parameters Source'!H42) -> 57237.5 | I45: =IF('Annual Parameters Source'!I42="","-",'Annual Parameters Source'!I42) -> - | J45: =IF('Annual Parameters Source'!L42="","-",'Annual Parameters Source'!L42) -> 100 | K45: =IF('Annual Parameters Source'!M42="","-",'Annual Parameters Source'!M42) -> - | L45: =IF('Annual Parameters Source'!N42="","-",'Annual Parameters Source'!N42) -> - | M45: =IF('Annual Parameters Source'!O42="","-",'Annual Parameters Source'!O42) -> - | N45: =IF('Annual Parameters Source'!P42="","-",'Annual Parameters Source'!P42) -> 26472.19043 | O45: =IF('Annual Parameters Source'!Q42="","-",'Annual Parameters Source'!Q42) -> - | P45: =IF('Annual Parameters Source'!R42="","-",'Annual Parameters Source'!R42) -> 100 | Q45: =IF('Annual Parameters Source'!S42="","-",'Annual Parameters Source'!S42) -> - | R45: =IF('Annual Parameters Source'!T42="","-",'Annual Parameters Source'!T42) -> - | S45: =IF('Annual Parameters Source'!U42="","-",'Annual Parameters Source'!U42) -> - | T45: =IF('Annual Parameters Source'!V42="","-",'Annual Parameters Source'!V42) -> - | U45: =IF('Annual Parameters Source'!W42="","-",'Annual Parameters Source'!W42) -> - | V45: =IF('Annual Parameters Source'!X42="","-",'Annual Parameters Source'!X42) -> - | W45: =IF('Annual Parameters Source'!Y42="","-",'Annual Parameters Source'!Y42) -> - | X45: =IF('Annual Parameters Source'!AD42="","-",'Annual Parameters Source'!AD42) -> - | Y45: =IF('Annual Parameters Source'!AE42="","-",'Annual Parameters Source'!AE42) -> - | Z45: =IF('Annual Parameters Source'!AF42="","-",'Annual Parameters Source'!AF42) -> - | AA45: =IF('Annual Parameters Source'!AG42="","-",'Annual Parameters Source'!AG42) -> - | AB45: =_xlfn.IFNA(INDEX('VoT7'!$U$38:$U$127,MATCH('Annual Parameters'!B45,'VoT7'!$A$38:$A$127,0)),"-") -> - | AC45: =_xlfn.IFNA(INDEX('VoT7'!$V$38:$V$127,MATCH('Annual Parameters'!B45,'VoT7'!$A$38:$A$127,0)),"-") -> - | AD45: =_xlfn.IFNA(INDEX('VoT7'!$AF$38:$AF$127,MATCH('Annual Parameters'!B45,'VoT7'!$A$38:$A$127,0)),"-") -> - | AE45: =_xlfn.IFNA(INDEX('VoT7'!$AG$38:$AG$127,MATCH('Annual Parameters'!B45,'VoT7'!$A$38:$A$127,0)),"-") -> - | AF45: =_xlfn.IFNA(INDEX('VoT7'!$E$38:$E$127,MATCH('Annual Parameters'!B45,'VoT7'!$A$38:$A$127,0)),"-") -> - | AG45: =_xlfn.IFNA(INDEX('VoT7'!$J$38:$J$127,MATCH('Annual Parameters'!B45,'VoT7'!$A$38:$A$127,0)),"-") -> - | AH45: =_xlfn.IFNA(INDEX('VoT7'!$F$38:$F$127,MATCH('Annual Parameters'!B45,'VoT7'!$A$38:$A$127,0)),"-") -> - | AI45: =_xlfn.IFNA(INDEX('VoT7'!$K$38:$K$127,MATCH('Annual Parameters'!B45,'VoT7'!$A$38:$A$127,0)),"-") -> - | AJ45: =IF('Annual Parameters Source'!J42="","-",'Annual Parameters Source'!J42) -> - | AK45: =IF('Annual Parameters Source'!K42="","-",'Annual Parameters Source'!K42) -> -
B46: 1991 | D46: =IF('Annual Parameters Source'!D43="","-",'Annual Parameters Source'!D43/VLOOKUP($B$14,'Annual Parameters Source'!$B$42:$D$152,3,1)*100) -> 47.39739017 | E46: =IF('Annual Parameters Source'!E43="","-",VLOOKUP($B$16,'Annual Parameters Source'!$B$42:$AH$156,33,FALSE)/VLOOKUP($B$16,'Annual Parameters Source'!$B$42:$AH$156,4,FALSE)*'Annual Parameters Source'!E43) -> 1493903 | F46: =IF('Annual Parameters Source'!F43="","-",'Annual Parameters Source'!F43) -> -1.405687163 | G46: =IF('Annual Parameters Source'!G43="","-",'Annual Parameters Source'!G43) -> 98.59431284 | H46: =IF('Annual Parameters Source'!H43="","-",'Annual Parameters Source'!H43) -> 57438.7 | I46: =IF('Annual Parameters Source'!I43="","-",'Annual Parameters Source'!I43) -> 0.3515177986 | J46: =IF('Annual Parameters Source'!L43="","-",'Annual Parameters Source'!L43) -> 100.3515178 | K46: =IF('Annual Parameters Source'!M43="","-",'Annual Parameters Source'!M43) -> - | L46: =IF('Annual Parameters Source'!N43="","-",'Annual Parameters Source'!N43) -> - | M46: =IF('Annual Parameters Source'!O43="","-",'Annual Parameters Source'!O43) -> - | N46: =IF('Annual Parameters Source'!P43="","-",'Annual Parameters Source'!P43) -> 26008.64922 | O46: =IF('Annual Parameters Source'!Q43="","-",'Annual Parameters Source'!Q43) -> -1.75104971 | P46: =IF('Annual Parameters Source'!R43="","-",'Annual Parameters Source'!R43) -> 98.24895029 | Q46: =IF('Annual Parameters Source'!S43="","-",'Annual Parameters Source'!S43) -> - | R46: =IF('Annual Parameters Source'!T43="","-",'Annual Parameters Source'!T43) -> - | S46: =IF('Annual Parameters Source'!U43="","-",'Annual Parameters Source'!U43) -> - | T46: =IF('Annual Parameters Source'!V43="","-",'Annual Parameters Source'!V43) -> - | U46: =IF('Annual Parameters Source'!W43="","-",'Annual Parameters Source'!W43) -> - | V46: =IF('Annual Parameters Source'!X43="","-",'Annual Parameters Source'!X43) -> - | W46: =IF('Annual Parameters Source'!Y43="","-",'Annual Parameters Source'!Y43) -> - | X46: =IF('Annual Parameters Source'!AD43="","-",'Annual Parameters Source'!AD43) -> - | Y46: =IF('Annual Parameters Source'!AE43="","-",'Annual Parameters Source'!AE43) -> - | Z46: =IF('Annual Parameters Source'!AF43="","-",'Annual Parameters Source'!AF43) -> - | AA46: =IF('Annual Parameters Source'!AG43="","-",'Annual Parameters Source'!AG43) -> - | AB46: =_xlfn.IFNA(INDEX('VoT7'!$U$38:$U$127,MATCH('Annual Parameters'!B46,'VoT7'!$A$38:$A$127,0)),"-") -> - | AC46: =_xlfn.IFNA(INDEX('VoT7'!$V$38:$V$127,MATCH('Annual Parameters'!B46,'VoT7'!$A$38:$A$127,0)),"-") -> - | AD46: =_xlfn.IFNA(INDEX('VoT7'!$AF$38:$AF$127,MATCH('Annual Parameters'!B46,'VoT7'!$A$38:$A$127,0)),"-") -> - | AE46: =_xlfn.IFNA(INDEX('VoT7'!$AG$38:$AG$127,MATCH('Annual Parameters'!B46,'VoT7'!$A$38:$A$127,0)),"-") -> - | AF46: =_xlfn.IFNA(INDEX('VoT7'!$E$38:$E$127,MATCH('Annual Parameters'!B46,'VoT7'!$A$38:$A$127,0)),"-") -> - | AG46: =_xlfn.IFNA(INDEX('VoT7'!$J$38:$J$127,MATCH('Annual Parameters'!B46,'VoT7'!$A$38:$A$127,0)),"-") -> - | AH46: =_xlfn.IFNA(INDEX('VoT7'!$F$38:$F$127,MATCH('Annual Parameters'!B46,'VoT7'!$A$38:$A$127,0)),"-") -> - | AI46: =_xlfn.IFNA(INDEX('VoT7'!$K$38:$K$127,MATCH('Annual Parameters'!B46,'VoT7'!$A$38:$A$127,0)),"-") -> - | AJ46: =IF('Annual Parameters Source'!J43="","-",'Annual Parameters Source'!J43) -> - | AK46: =IF('Annual Parameters Source'!K43="","-",'Annual Parameters Source'!K43) -> -
B47: 1992 | D47: =IF('Annual Parameters Source'!D44="","-",'Annual Parameters Source'!D44/VLOOKUP($B$14,'Annual Parameters Source'!$B$42:$D$152,3,1)*100) -> 48.94464619 | E47: =IF('Annual Parameters Source'!E44="","-",VLOOKUP($B$16,'Annual Parameters Source'!$B$42:$AH$156,33,FALSE)/VLOOKUP($B$16,'Annual Parameters Source'!$B$42:$AH$156,4,FALSE)*'Annual Parameters Source'!E44) -> 1498023 | F47: =IF('Annual Parameters Source'!F44="","-",'Annual Parameters Source'!F44) -> 0.2757876515 | G47: =IF('Annual Parameters Source'!G44="","-",'Annual Parameters Source'!G44) -> 98.86622378 | H47: =IF('Annual Parameters Source'!H44="","-",'Annual Parameters Source'!H44) -> 57584.5 | I47: =IF('Annual Parameters Source'!I44="","-",'Annual Parameters Source'!I44) -> 0.2538358285 | J47: =IF('Annual Parameters Source'!L44="","-",'Annual Parameters Source'!L44) -> 100.6062459 | K47: =IF('Annual Parameters Source'!M44="","-",'Annual Parameters Source'!M44) -> - | L47: =IF('Annual Parameters Source'!N44="","-",'Annual Parameters Source'!N44) -> - | M47: =IF('Annual Parameters Source'!O44="","-",'Annual Parameters Source'!O44) -> - | N47: =IF('Annual Parameters Source'!P44="","-",'Annual Parameters Source'!P44) -> 26014.34414 | O47: =IF('Annual Parameters Source'!Q44="","-",'Annual Parameters Source'!Q44) -> 0.02189624258 | P47: =IF('Annual Parameters Source'!R44="","-",'Annual Parameters Source'!R44) -> 98.27046312 | Q47: =IF('Annual Parameters Source'!S44="","-",'Annual Parameters Source'!S44) -> - | R47: =IF('Annual Parameters Source'!T44="","-",'Annual Parameters Source'!T44) -> - | S47: =IF('Annual Parameters Source'!U44="","-",'Annual Parameters Source'!U44) -> - | T47: =IF('Annual Parameters Source'!V44="","-",'Annual Parameters Source'!V44) -> - | U47: =IF('Annual Parameters Source'!W44="","-",'Annual Parameters Source'!W44) -> - | V47: =IF('Annual Parameters Source'!X44="","-",'Annual Parameters Source'!X44) -> - | W47: =IF('Annual Parameters Source'!Y44="","-",'Annual Parameters Source'!Y44) -> - | X47: =IF('Annual Parameters Source'!AD44="","-",'Annual Parameters Source'!AD44) -> - | Y47: =IF('Annual Parameters Source'!AE44="","-",'Annual Parameters Source'!AE44) -> - | Z47: =IF('Annual Parameters Source'!AF44="","-",'Annual Parameters Source'!AF44) -> - | AA47: =IF('Annual Parameters Source'!AG44="","-",'Annual Parameters Source'!AG44) -> - | AB47: =_xlfn.IFNA(INDEX('VoT7'!$U$38:$U$127,MATCH('Annual Parameters'!B47,'VoT7'!$A$38:$A$127,0)),"-") -> - | AC47: =_xlfn.IFNA(INDEX('VoT7'!$V$38:$V$127,MATCH('Annual Parameters'!B47,'VoT7'!$A$38:$A$127,0)),"-") -> - | AD47: =_xlfn.IFNA(INDEX('VoT7'!$AF$38:$AF$127,MATCH('Annual Parameters'!B47,'VoT7'!$A$38:$A$127,0)),"-") -> - | AE47: =_xlfn.IFNA(INDEX('VoT7'!$AG$38:$AG$127,MATCH('Annual Parameters'!B47,'VoT7'!$A$38:$A$127,0)),"-") -> - | AF47: =_xlfn.IFNA(INDEX('VoT7'!$E$38:$E$127,MATCH('Annual Parameters'!B47,'VoT7'!$A$38:$A$127,0)),"-") -> - | AG47: =_xlfn.IFNA(INDEX('VoT7'!$J$38:$J$127,MATCH('Annual Parameters'!B47,'VoT7'!$A$38:$A$127,0)),"-") -> - | AH47: =_xlfn.IFNA(INDEX('VoT7'!$F$38:$F$127,MATCH('Annual Parameters'!B47,'VoT7'!$A$38:$A$127,0)),"-") -> - | AI47: =_xlfn.IFNA(INDEX('VoT7'!$K$38:$K$127,MATCH('Annual Parameters'!B47,'VoT7'!$A$38:$A$127,0)),"-") -> - | AJ47: =IF('Annual Parameters Source'!J44="","-",'Annual Parameters Source'!J44) -> - | AK47: =IF('Annual Parameters Source'!K44="","-",'Annual Parameters Source'!K44) -> -
B48: 1993 | D48: =IF('Annual Parameters Source'!D45="","-",'Annual Parameters Source'!D45/VLOOKUP($B$14,'Annual Parameters Source'!$B$42:$D$152,3,1)*100) -> 50.41076258 | E48: =IF('Annual Parameters Source'!E45="","-",VLOOKUP($B$16,'Annual Parameters Source'!$B$42:$AH$156,33,FALSE)/VLOOKUP($B$16,'Annual Parameters Source'!$B$42:$AH$156,4,FALSE)*'Annual Parameters Source'!E45) -> 1532082 | F48: =IF('Annual Parameters Source'!F45="","-",'Annual Parameters Source'!F45) -> 2.2735966 | G48: =IF('Annual Parameters Source'!G45="","-",'Annual Parameters Source'!G45) -> 101.1140429 | H48: =IF('Annual Parameters Source'!H45="","-",'Annual Parameters Source'!H45) -> 57713.9 | I48: =IF('Annual Parameters Source'!I45="","-",'Annual Parameters Source'!I45) -> 0.2247132475 | J48: =IF('Annual Parameters Source'!L45="","-",'Annual Parameters Source'!L45) -> 100.8323215 | K48: =IF('Annual Parameters Source'!M45="","-",'Annual Parameters Source'!M45) -> - | L48: =IF('Annual Parameters Source'!N45="","-",'Annual Parameters Source'!N45) -> - | M48: =IF('Annual Parameters Source'!O45="","-",'Annual Parameters Source'!O45) -> - | N48: =IF('Annual Parameters Source'!P45="","-",'Annual Parameters Source'!P45) -> 26546.15266 | O48: =IF('Annual Parameters Source'!Q45="","-",'Annual Parameters Source'!Q45) -> 2.044289563 | P48: =IF('Annual Parameters Source'!R45="","-",'Annual Parameters Source'!R45) -> 100.2793959 | Q48: =IF('Annual Parameters Source'!S45="","-",'Annual Parameters Source'!S45) -> - | R48: =IF('Annual Parameters Source'!T45="","-",'Annual Parameters Source'!T45) -> - | S48: =IF('Annual Parameters Source'!U45="","-",'Annual Parameters Source'!U45) -> - | T48: =IF('Annual Parameters Source'!V45="","-",'Annual Parameters Source'!V45) -> - | U48: =IF('Annual Parameters Source'!W45="","-",'Annual Parameters Source'!W45) -> - | V48: =IF('Annual Parameters Source'!X45="","-",'Annual Parameters Source'!X45) -> - | W48: =IF('Annual Parameters Source'!Y45="","-",'Annual Parameters Source'!Y45) -> - | X48: =IF('Annual Parameters Source'!AD45="","-",'Annual Parameters Source'!AD45) -> - | Y48: =IF('Annual Parameters Source'!AE45="","-",'Annual Parameters Source'!AE45) -> - | Z48: =IF('Annual Parameters Source'!AF45="","-",'Annual Parameters Source'!AF45) -> - | AA48: =IF('Annual Parameters Source'!AG45="","-",'Annual Parameters Source'!AG45) -> - | AB48: =_xlfn.IFNA(INDEX('VoT7'!$U$38:$U$127,MATCH('Annual Parameters'!B48,'VoT7'!$A$38:$A$127,0)),"-") -> - | AC48: =_xlfn.IFNA(INDEX('VoT7'!$V$38:$V$127,MATCH('Annual Parameters'!B48,'VoT7'!$A$38:$A$127,0)),"-") -> - | AD48: =_xlfn.IFNA(INDEX('VoT7'!$AF$38:$AF$127,MATCH('Annual Parameters'!B48,'VoT7'!$A$38:$A$127,0)),"-") -> - | AE48: =_xlfn.IFNA(INDEX('VoT7'!$AG$38:$AG$127,MATCH('Annual Parameters'!B48,'VoT7'!$A$38:$A$127,0)),"-") -> - | AF48: =_xlfn.IFNA(INDEX('VoT7'!$E$38:$E$127,MATCH('Annual Parameters'!B48,'VoT7'!$A$38:$A$127,0)),"-") -> - | AG48: =_xlfn.IFNA(INDEX('VoT7'!$J$38:$J$127,MATCH('Annual Parameters'!B48,'VoT7'!$A$38:$A$127,0)),"-") -> - | AH48: =_xlfn.IFNA(INDEX('VoT7'!$F$38:$F$127,MATCH('Annual Parameters'!B48,'VoT7'!$A$38:$A$127,0)),"-") -> - | AI48: =_xlfn.IFNA(INDEX('VoT7'!$K$38:$K$127,MATCH('Annual Parameters'!B48,'VoT7'!$A$38:$A$127,0)),"-") -> - | AJ48: =IF('Annual Parameters Source'!J45="","-",'Annual Parameters Source'!J45) -> - | AK48: =IF('Annual Parameters Source'!K45="","-",'Annual Parameters Source'!K45) -> -
B49: 1994 | D49: =IF('Annual Parameters Source'!D46="","-",'Annual Parameters Source'!D46/VLOOKUP($B$14,'Annual Parameters Source'!$B$42:$D$152,3,1)*100) -> 51.34176697 | E49: =IF('Annual Parameters Source'!E46="","-",VLOOKUP($B$16,'Annual Parameters Source'!$B$42:$AH$156,33,FALSE)/VLOOKUP($B$16,'Annual Parameters Source'!$B$42:$AH$156,4,FALSE)*'Annual Parameters Source'!E46) -> 1584459 | F49: =IF('Annual Parameters Source'!F46="","-",'Annual Parameters Source'!F46) -> 3.418681246 | G49: =IF('Annual Parameters Source'!G46="","-",'Annual Parameters Source'!G46) -> 104.5708097 | H49: =IF('Annual Parameters Source'!H46="","-",'Annual Parameters Source'!H46) -> 57862.1 | I49: =IF('Annual Parameters Source'!I46="","-",'Annual Parameters Source'!I46) -> 0.2567838943 | J49: =IF('Annual Parameters Source'!L46="","-",'Annual Parameters Source'!L46) -> 101.0912426 | K49: =IF('Annual Parameters Source'!M46="","-",'Annual Parameters Source'!M46) -> - | L49: =IF('Annual Parameters Source'!N46="","-",'Annual Parameters Source'!N46) -> - | M49: =IF('Annual Parameters Source'!O46="","-",'Annual Parameters Source'!O46) -> - | N49: =IF('Annual Parameters Source'!P46="","-",'Annual Parameters Source'!P46) -> 27383.36493 | O49: =IF('Annual Parameters Source'!Q46="","-",'Annual Parameters Source'!Q46) -> 3.153798904 | P49: =IF('Annual Parameters Source'!R46="","-",'Annual Parameters Source'!R46) -> 103.4420064 | Q49: =IF('Annual Parameters Source'!S46="","-",'Annual Parameters Source'!S46) -> - | R49: =IF('Annual Parameters Source'!T46="","-",'Annual Parameters Source'!T46) -> - | S49: =IF('Annual Parameters Source'!U46="","-",'Annual Parameters Source'!U46) -> - | T49: =IF('Annual Parameters Source'!V46="","-",'Annual Parameters Source'!V46) -> - | U49: =IF('Annual Parameters Source'!W46="","-",'Annual Parameters Source'!W46) -> - | V49: =IF('Annual Parameters Source'!X46="","-",'Annual Parameters Source'!X46) -> - | W49: =IF('Annual Parameters Source'!Y46="","-",'Annual Parameters Source'!Y46) -> - | X49: =IF('Annual Parameters Source'!AD46="","-",'Annual Parameters Source'!AD46) -> - | Y49: =IF('Annual Parameters Source'!AE46="","-",'Annual Parameters Source'!AE46) -> - | Z49: =IF('Annual Parameters Source'!AF46="","-",'Annual Parameters Source'!AF46) -> - | AA49: =IF('Annual Parameters Source'!AG46="","-",'Annual Parameters Source'!AG46) -> - | AB49: =_xlfn.IFNA(INDEX('VoT7'!$U$38:$U$127,MATCH('Annual Parameters'!B49,'VoT7'!$A$38:$A$127,0)),"-") -> - | AC49: =_xlfn.IFNA(INDEX('VoT7'!$V$38:$V$127,MATCH('Annual Parameters'!B49,'VoT7'!$A$38:$A$127,0)),"-") -> - | AD49: =_xlfn.IFNA(INDEX('VoT7'!$AF$38:$AF$127,MATCH('Annual Parameters'!B49,'VoT7'!$A$38:$A$127,0)),"-") -> - | AE49: =_xlfn.IFNA(INDEX('VoT7'!$AG$38:$AG$127,MATCH('Annual Parameters'!B49,'VoT7'!$A$38:$A$127,0)),"-") -> - | AF49: =_xlfn.IFNA(INDEX('VoT7'!$E$38:$E$127,MATCH('Annual Parameters'!B49,'VoT7'!$A$38:$A$127,0)),"-") -> - | AG49: =_xlfn.IFNA(INDEX('VoT7'!$J$38:$J$127,MATCH('Annual Parameters'!B49,'VoT7'!$A$38:$A$127,0)),"-") -> - | AH49: =_xlfn.IFNA(INDEX('VoT7'!$F$38:$F$127,MATCH('Annual Parameters'!B49,'VoT7'!$A$38:$A$127,0)),"-") -> - | AI49: =_xlfn.IFNA(INDEX('VoT7'!$K$38:$K$127,MATCH('Annual Parameters'!B49,'VoT7'!$A$38:$A$127,0)),"-") -> - | AJ49: =IF('Annual Parameters Source'!J46="","-",'Annual Parameters Source'!J46) -> - | AK49: =IF('Annual Parameters Source'!K46="","-",'Annual Parameters Source'!K46) -> -
B50: 1995 | D50: =IF('Annual Parameters Source'!D47="","-",'Annual Parameters Source'!D47/VLOOKUP($B$14,'Annual Parameters Source'!$B$42:$D$152,3,1)*100) -> 52.68493475 | E50: =IF('Annual Parameters Source'!E47="","-",VLOOKUP($B$16,'Annual Parameters Source'!$B$42:$AH$156,33,FALSE)/VLOOKUP($B$16,'Annual Parameters Source'!$B$42:$AH$156,4,FALSE)*'Annual Parameters Source'!E47) -> 1622576 | F50: =IF('Annual Parameters Source'!F47="","-",'Annual Parameters Source'!F47) -> 2.405679162 | G50: =IF('Annual Parameters Source'!G47="","-",'Annual Parameters Source'!G47) -> 107.0864479 | H50: =IF('Annual Parameters Source'!H47="","-",'Annual Parameters Source'!H47) -> 58024.8 | I50: =IF('Annual Parameters Source'!I47="","-",'Annual Parameters Source'!I47) -> 0.2811857848 | J50: =IF('Annual Parameters Source'!L47="","-",'Annual Parameters Source'!L47) -> 101.3754968 | K50: =IF('Annual Parameters Source'!M47="","-",'Annual Parameters Source'!M47) -> - | L50: =IF('Annual Parameters Source'!N47="","-",'Annual Parameters Source'!N47) -> - | M50: =IF('Annual Parameters Source'!O47="","-",'Annual Parameters Source'!O47) -> - | N50: =IF('Annual Parameters Source'!P47="","-",'Annual Parameters Source'!P47) -> 27963.49147 | O50: =IF('Annual Parameters Source'!Q47="","-",'Annual Parameters Source'!Q47) -> 2.118536355 | P50: =IF('Annual Parameters Source'!R47="","-",'Annual Parameters Source'!R47) -> 105.6334629 | Q50: =IF('Annual Parameters Source'!S47="","-",'Annual Parameters Source'!S47) -> - | R50: =IF('Annual Parameters Source'!T47="","-",'Annual Parameters Source'!T47) -> - | S50: =IF('Annual Parameters Source'!U47="","-",'Annual Parameters Source'!U47) -> - | T50: =IF('Annual Parameters Source'!V47="","-",'Annual Parameters Source'!V47) -> - | U50: =IF('Annual Parameters Source'!W47="","-",'Annual Parameters Source'!W47) -> - | V50: =IF('Annual Parameters Source'!X47="","-",'Annual Parameters Source'!X47) -> - | W50: =IF('Annual Parameters Source'!Y47="","-",'Annual Parameters Source'!Y47) -> - | X50: =IF('Annual Parameters Source'!AD47="","-",'Annual Parameters Source'!AD47) -> - | Y50: =IF('Annual Parameters Source'!AE47="","-",'Annual Parameters Source'!AE47) -> - | Z50: =IF('Annual Parameters Source'!AF47="","-",'Annual Parameters Source'!AF47) -> - | AA50: =IF('Annual Parameters Source'!AG47="","-",'Annual Parameters Source'!AG47) -> - | AB50: =_xlfn.IFNA(INDEX('VoT7'!$U$38:$U$127,MATCH('Annual Parameters'!B50,'VoT7'!$A$38:$A$127,0)),"-") -> - | AC50: =_xlfn.IFNA(INDEX('VoT7'!$V$38:$V$127,MATCH('Annual Parameters'!B50,'VoT7'!$A$38:$A$127,0)),"-") -> - | AD50: =_xlfn.IFNA(INDEX('VoT7'!$AF$38:$AF$127,MATCH('Annual Parameters'!B50,'VoT7'!$A$38:$A$127,0)),"-") -> - | AE50: =_xlfn.IFNA(INDEX('VoT7'!$AG$38:$AG$127,MATCH('Annual Parameters'!B50,'VoT7'!$A$38:$A$127,0)),"-") -> - | AF50: =_xlfn.IFNA(INDEX('VoT7'!$E$38:$E$127,MATCH('Annual Parameters'!B50,'VoT7'!$A$38:$A$127,0)),"-") -> - | AG50: =_xlfn.IFNA(INDEX('VoT7'!$J$38:$J$127,MATCH('Annual Parameters'!B50,'VoT7'!$A$38:$A$127,0)),"-") -> - | AH50: =_xlfn.IFNA(INDEX('VoT7'!$F$38:$F$127,MATCH('Annual Parameters'!B50,'VoT7'!$A$38:$A$127,0)),"-") -> - | AI50: =_xlfn.IFNA(INDEX('VoT7'!$K$38:$K$127,MATCH('Annual Parameters'!B50,'VoT7'!$A$38:$A$127,0)),"-") -> - | AJ50: =IF('Annual Parameters Source'!J47="","-",'Annual Parameters Source'!J47) -> - | AK50: =IF('Annual Parameters Source'!K47="","-",'Annual Parameters Source'!K47) -> -
B51: 1996 | D51: =IF('Annual Parameters Source'!D48="","-",'Annual Parameters Source'!D48/VLOOKUP($B$14,'Annual Parameters Source'!$B$42:$D$152,3,1)*100) -> 54.86676077 | E51: =IF('Annual Parameters Source'!E48="","-",VLOOKUP($B$16,'Annual Parameters Source'!$B$42:$AH$156,33,FALSE)/VLOOKUP($B$16,'Annual Parameters Source'!$B$42:$AH$156,4,FALSE)*'Annual Parameters Source'!E48) -> 1665005 | F51: =IF('Annual Parameters Source'!F48="","-",'Annual Parameters Source'!F48) -> 2.614916035 | G51: =IF('Annual Parameters Source'!G48="","-",'Annual Parameters Source'!G48) -> 109.8866686 | H51: =IF('Annual Parameters Source'!H48="","-",'Annual Parameters Source'!H48) -> 58164.4 | I51: =IF('Annual Parameters Source'!I48="","-",'Annual Parameters Source'!I48) -> 0.2405867836 | J51: =IF('Annual Parameters Source'!L48="","-",'Annual Parameters Source'!L48) -> 101.6193929 | K51: =IF('Annual Parameters Source'!M48="","-",'Annual Parameters Source'!M48) -> 23738 | L51: =IF('Annual Parameters Source'!N48="","-",'Annual Parameters Source'!N48) -> - | M51: =IF('Annual Parameters Source'!O48="","-",'Annual Parameters Source'!O48) -> 100 | N51: =IF('Annual Parameters Source'!P48="","-",'Annual Parameters Source'!P48) -> 28625.8433 | O51: =IF('Annual Parameters Source'!Q48="","-",'Annual Parameters Source'!Q48) -> 2.368630639 | P51: =IF('Annual Parameters Source'!R48="","-",'Annual Parameters Source'!R48) -> 108.1355295 | Q51: =IF('Annual Parameters Source'!S48="","-",'Annual Parameters Source'!S48) -> 70140.9133 | R51: =IF('Annual Parameters Source'!T48="","-",'Annual Parameters Source'!T48) -> - | S51: =IF('Annual Parameters Source'!U48="","-",'Annual Parameters Source'!U48) -> 100 | T51: =IF('Annual Parameters Source'!V48="","-",'Annual Parameters Source'!V48) -> - | U51: =IF('Annual Parameters Source'!W48="","-",'Annual Parameters Source'!W48) -> - | V51: =IF('Annual Parameters Source'!X48="","-",'Annual Parameters Source'!X48) -> - | W51: =IF('Annual Parameters Source'!Y48="","-",'Annual Parameters Source'!Y48) -> - | X51: =IF('Annual Parameters Source'!AD48="","-",'Annual Parameters Source'!AD48) -> - | Y51: =IF('Annual Parameters Source'!AE48="","-",'Annual Parameters Source'!AE48) -> - | Z51: =IF('Annual Parameters Source'!AF48="","-",'Annual Parameters Source'!AF48) -> - | AA51: =IF('Annual Parameters Source'!AG48="","-",'Annual Parameters Source'!AG48) -> - | AB51: =_xlfn.IFNA(INDEX('VoT7'!$U$38:$U$127,MATCH('Annual Parameters'!B51,'VoT7'!$A$38:$A$127,0)),"-") -> - | AC51: =_xlfn.IFNA(INDEX('VoT7'!$V$38:$V$127,MATCH('Annual Parameters'!B51,'VoT7'!$A$38:$A$127,0)),"-") -> - | AD51: =_xlfn.IFNA(INDEX('VoT7'!$AF$38:$AF$127,MATCH('Annual Parameters'!B51,'VoT7'!$A$38:$A$127,0)),"-") -> - | AE51: =_xlfn.IFNA(INDEX('VoT7'!$AG$38:$AG$127,MATCH('Annual Parameters'!B51,'VoT7'!$A$38:$A$127,0)),"-") -> - | AF51: =_xlfn.IFNA(INDEX('VoT7'!$E$38:$E$127,MATCH('Annual Parameters'!B51,'VoT7'!$A$38:$A$127,0)),"-") -> - | AG51: =_xlfn.IFNA(INDEX('VoT7'!$J$38:$J$127,MATCH('Annual Parameters'!B51,'VoT7'!$A$38:$A$127,0)),"-") -> - | AH51: =_xlfn.IFNA(INDEX('VoT7'!$F$38:$F$127,MATCH('Annual Parameters'!B51,'VoT7'!$A$38:$A$127,0)),"-") -> - | AI51: =_xlfn.IFNA(INDEX('VoT7'!$K$38:$K$127,MATCH('Annual Parameters'!B51,'VoT7'!$A$38:$A$127,0)),"-") -> - | AJ51: =IF('Annual Parameters Source'!J48="","-",'Annual Parameters Source'!J48) -> - | AK51: =IF('Annual Parameters Source'!K48="","-",'Annual Parameters Source'!K48) -> -
B52: 1997 | D52: =IF('Annual Parameters Source'!D49="","-",'Annual Parameters Source'!D49/VLOOKUP($B$14,'Annual Parameters Source'!$B$42:$D$152,3,1)*100) -> 54.88820405 | E52: =IF('Annual Parameters Source'!E49="","-",VLOOKUP($B$16,'Annual Parameters Source'!$B$42:$AH$156,33,FALSE)/VLOOKUP($B$16,'Annual Parameters Source'!$B$42:$AH$156,4,FALSE)*'Annual Parameters Source'!E49) -> 1746257 | F52: =IF('Annual Parameters Source'!F49="","-",'Annual Parameters Source'!F49) -> 4.879985345 | G52: =IF('Annual Parameters Source'!G49="","-",'Annual Parameters Source'!G49) -> 115.2491219 | H52: =IF('Annual Parameters Source'!H49="","-",'Annual Parameters Source'!H49) -> 58314.2 | I52: =IF('Annual Parameters Source'!I49="","-",'Annual Parameters Source'!I49) -> 0.2575458528 | J52: =IF('Annual Parameters Source'!L49="","-",'Annual Parameters Source'!L49) -> 101.8811094 | K52: =IF('Annual Parameters Source'!M49="","-",'Annual Parameters Source'!M49) -> 23865 | L52: =IF('Annual Parameters Source'!N49="","-",'Annual Parameters Source'!N49) -> 0.5350071615 | M52: =IF('Annual Parameters Source'!O49="","-",'Annual Parameters Source'!O49) -> 100.5350072 | N52: =IF('Annual Parameters Source'!P49="","-",'Annual Parameters Source'!P49) -> 29945.65646 | O52: =IF('Annual Parameters Source'!Q49="","-",'Annual Parameters Source'!Q49) -> 4.610565173 | P52: =IF('Annual Parameters Source'!R49="","-",'Annual Parameters Source'!R49) -> 113.1211886 | Q52: =IF('Annual Parameters Source'!S49="","-",'Annual Parameters Source'!S49) -> 73172.30254 | R52: =IF('Annual Parameters Source'!T49="","-",'Annual Parameters Source'!T49) -> 4.321855945 | S52: =IF('Annual Parameters Source'!U49="","-",'Annual Parameters Source'!U49) -> 104.3218559 | T52: =IF('Annual Parameters Source'!V49="","-",'Annual Parameters Source'!V49) -> - | U52: =IF('Annual Parameters Source'!W49="","-",'Annual Parameters Source'!W49) -> - | V52: =IF('Annual Parameters Source'!X49="","-",'Annual Parameters Source'!X49) -> - | W52: =IF('Annual Parameters Source'!Y49="","-",'Annual Parameters Source'!Y49) -> - | X52: =IF('Annual Parameters Source'!AD49="","-",'Annual Parameters Source'!AD49) -> - | Y52: =IF('Annual Parameters Source'!AE49="","-",'Annual Parameters Source'!AE49) -> - | Z52: =IF('Annual Parameters Source'!AF49="","-",'Annual Parameters Source'!AF49) -> - | AA52: =IF('Annual Parameters Source'!AG49="","-",'Annual Parameters Source'!AG49) -> - | AB52: =_xlfn.IFNA(INDEX('VoT7'!$U$38:$U$127,MATCH('Annual Parameters'!B52,'VoT7'!$A$38:$A$127,0)),"-") -> - | AC52: =_xlfn.IFNA(INDEX('VoT7'!$V$38:$V$127,MATCH('Annual Parameters'!B52,'VoT7'!$A$38:$A$127,0)),"-") -> - | AD52: =_xlfn.IFNA(INDEX('VoT7'!$AF$38:$AF$127,MATCH('Annual Parameters'!B52,'VoT7'!$A$38:$A$127,0)),"-") -> - | AE52: =_xlfn.IFNA(INDEX('VoT7'!$AG$38:$AG$127,MATCH('Annual Parameters'!B52,'VoT7'!$A$38:$A$127,0)),"-") -> - | AF52: =_xlfn.IFNA(INDEX('VoT7'!$E$38:$E$127,MATCH('Annual Parameters'!B52,'VoT7'!$A$38:$A$127,0)),"-") -> - | AG52: =_xlfn.IFNA(INDEX('VoT7'!$J$38:$J$127,MATCH('Annual Parameters'!B52,'VoT7'!$A$38:$A$127,0)),"-") -> - | AH52: =_xlfn.IFNA(INDEX('VoT7'!$F$38:$F$127,MATCH('Annual Parameters'!B52,'VoT7'!$A$38:$A$127,0)),"-") -> - | AI52: =_xlfn.IFNA(INDEX('VoT7'!$K$38:$K$127,MATCH('Annual Parameters'!B52,'VoT7'!$A$38:$A$127,0)),"-") -> - | AJ52: =IF('Annual Parameters Source'!J49="","-",'Annual Parameters Source'!J49) -> - | AK52: =IF('Annual Parameters Source'!K49="","-",'Annual Parameters Source'!K49) -> -
B53: 1998 | D53: =IF('Annual Parameters Source'!D50="","-",'Annual Parameters Source'!D50/VLOOKUP($B$14,'Annual Parameters Source'!$B$42:$D$152,3,1)*100) -> 55.61792183 | E53: =IF('Annual Parameters Source'!E50="","-",VLOOKUP($B$16,'Annual Parameters Source'!$B$42:$AH$156,33,FALSE)/VLOOKUP($B$16,'Annual Parameters Source'!$B$42:$AH$156,4,FALSE)*'Annual Parameters Source'!E50) -> 1802946 | F53: =IF('Annual Parameters Source'!F50="","-",'Annual Parameters Source'!F50) -> 3.246314832 | G53: =IF('Annual Parameters Source'!G50="","-",'Annual Parameters Source'!G50) -> 118.9904712 | H53: =IF('Annual Parameters Source'!H50="","-",'Annual Parameters Source'!H50) -> 58474.9 | I53: =IF('Annual Parameters Source'!I50="","-",'Annual Parameters Source'!I50) -> 0.2755761032 | J53: =IF('Annual Parameters Source'!L50="","-",'Annual Parameters Source'!L50) -> 102.1618694 | K53: =IF('Annual Parameters Source'!M50="","-",'Annual Parameters Source'!M50) -> 24036 | L53: =IF('Annual Parameters Source'!N50="","-",'Annual Parameters Source'!N50) -> 0.716530484 | M53: =IF('Annual Parameters Source'!O50="","-",'Annual Parameters Source'!O50) -> 101.2553711 | N53: =IF('Annual Parameters Source'!P50="","-",'Annual Parameters Source'!P50) -> 30832.81887 | O53: =IF('Annual Parameters Source'!Q50="","-",'Annual Parameters Source'!Q50) -> 2.962574581 | P53: =IF('Annual Parameters Source'!R50="","-",'Annual Parameters Source'!R50) -> 116.4724882 | Q53: =IF('Annual Parameters Source'!S50="","-",'Annual Parameters Source'!S50) -> 75010.23465 | R53: =IF('Annual Parameters Source'!T50="","-",'Annual Parameters Source'!T50) -> 2.511786631 | S53: =IF('Annual Parameters Source'!U50="","-",'Annual Parameters Source'!U50) -> 106.9421984 | T53: =IF('Annual Parameters Source'!V50="","-",'Annual Parameters Source'!V50) -> - | U53: =IF('Annual Parameters Source'!W50="","-",'Annual Parameters Source'!W50) -> - | V53: =IF('Annual Parameters Source'!X50="","-",'Annual Parameters Source'!X50) -> - | W53: =IF('Annual Parameters Source'!Y50="","-",'Annual Parameters Source'!Y50) -> - | X53: =IF('Annual Parameters Source'!AD50="","-",'Annual Parameters Source'!AD50) -> - | Y53: =IF('Annual Parameters Source'!AE50="","-",'Annual Parameters Source'!AE50) -> - | Z53: =IF('Annual Parameters Source'!AF50="","-",'Annual Parameters Source'!AF50) -> - | AA53: =IF('Annual Parameters Source'!AG50="","-",'Annual Parameters Source'!AG50) -> - | AB53: =_xlfn.IFNA(INDEX('VoT7'!$U$38:$U$127,MATCH('Annual Parameters'!B53,'VoT7'!$A$38:$A$127,0)),"-") -> - | AC53: =_xlfn.IFNA(INDEX('VoT7'!$V$38:$V$127,MATCH('Annual Parameters'!B53,'VoT7'!$A$38:$A$127,0)),"-") -> - | AD53: =_xlfn.IFNA(INDEX('VoT7'!$AF$38:$AF$127,MATCH('Annual Parameters'!B53,'VoT7'!$A$38:$A$127,0)),"-") -> - | AE53: =_xlfn.IFNA(INDEX('VoT7'!$AG$38:$AG$127,MATCH('Annual Parameters'!B53,'VoT7'!$A$38:$A$127,0)),"-") -> - | AF53: =_xlfn.IFNA(INDEX('VoT7'!$E$38:$E$127,MATCH('Annual Parameters'!B53,'VoT7'!$A$38:$A$127,0)),"-") -> - | AG53: =_xlfn.IFNA(INDEX('VoT7'!$J$38:$J$127,MATCH('Annual Parameters'!B53,'VoT7'!$A$38:$A$127,0)),"-") -> - | AH53: =_xlfn.IFNA(INDEX('VoT7'!$F$38:$F$127,MATCH('Annual Parameters'!B53,'VoT7'!$A$38:$A$127,0)),"-") -> - | AI53: =_xlfn.IFNA(INDEX('VoT7'!$K$38:$K$127,MATCH('Annual Parameters'!B53,'VoT7'!$A$38:$A$127,0)),"-") -> - | AJ53: =IF('Annual Parameters Source'!J50="","-",'Annual Parameters Source'!J50) -> - | AK53: =IF('Annual Parameters Source'!K50="","-",'Annual Parameters Source'!K50) -> -
B54: 1999 | D54: =IF('Annual Parameters Source'!D51="","-",'Annual Parameters Source'!D51/VLOOKUP($B$14,'Annual Parameters Source'!$B$42:$D$152,3,1)*100) -> 56.39365107 | E54: =IF('Annual Parameters Source'!E51="","-",VLOOKUP($B$16,'Annual Parameters Source'!$B$42:$AH$156,33,FALSE)/VLOOKUP($B$16,'Annual Parameters Source'!$B$42:$AH$156,4,FALSE)*'Annual Parameters Source'!E51) -> 1856033 | F54: =IF('Annual Parameters Source'!F51="","-",'Annual Parameters Source'!F51) -> 2.94445868 | G54: =IF('Annual Parameters Source'!G51="","-",'Annual Parameters Source'!G51) -> 122.4940965 | H54: =IF('Annual Parameters Source'!H51="","-",'Annual Parameters Source'!H51) -> 58684.4 | I54: =IF('Annual Parameters Source'!I51="","-",'Annual Parameters Source'!I51) -> 0.3582733788 | J54: =IF('Annual Parameters Source'!L51="","-",'Annual Parameters Source'!L51) -> 102.5278882 | K54: =IF('Annual Parameters Source'!M51="","-",'Annual Parameters Source'!M51) -> 24209 | L54: =IF('Annual Parameters Source'!N51="","-",'Annual Parameters Source'!N51) -> 0.7197537028 | M54: =IF('Annual Parameters Source'!O51="","-",'Annual Parameters Source'!O51) -> 101.9841604 | N54: =IF('Annual Parameters Source'!P51="","-",'Annual Parameters Source'!P51) -> 31627.36605 | O54: =IF('Annual Parameters Source'!Q51="","-",'Annual Parameters Source'!Q51) -> 2.576952766 | P54: =IF('Annual Parameters Source'!R51="","-",'Annual Parameters Source'!R51) -> 119.4739292 | Q54: =IF('Annual Parameters Source'!S51="","-",'Annual Parameters Source'!S51) -> 76667.06597 | R54: =IF('Annual Parameters Source'!T51="","-",'Annual Parameters Source'!T51) -> 2.208807007 | S54: =IF('Annual Parameters Source'!U51="","-",'Annual Parameters Source'!U51) -> 109.3043451 | T54: =IF('Annual Parameters Source'!V51="","-",'Annual Parameters Source'!V51) -> - | U54: =IF('Annual Parameters Source'!W51="","-",'Annual Parameters Source'!W51) -> - | V54: =IF('Annual Parameters Source'!X51="","-",'Annual Parameters Source'!X51) -> - | W54: =IF('Annual Parameters Source'!Y51="","-",'Annual Parameters Source'!Y51) -> - | X54: =IF('Annual Parameters Source'!AD51="","-",'Annual Parameters Source'!AD51) -> - | Y54: =IF('Annual Parameters Source'!AE51="","-",'Annual Parameters Source'!AE51) -> - | Z54: =IF('Annual Parameters Source'!AF51="","-",'Annual Parameters Source'!AF51) -> - | AA54: =IF('Annual Parameters Source'!AG51="","-",'Annual Parameters Source'!AG51) -> - | AB54: =_xlfn.IFNA(INDEX('VoT7'!$U$38:$U$127,MATCH('Annual Parameters'!B54,'VoT7'!$A$38:$A$127,0)),"-") -> - | AC54: =_xlfn.IFNA(INDEX('VoT7'!$V$38:$V$127,MATCH('Annual Parameters'!B54,'VoT7'!$A$38:$A$127,0)),"-") -> - | AD54: =_xlfn.IFNA(INDEX('VoT7'!$AF$38:$AF$127,MATCH('Annual Parameters'!B54,'VoT7'!$A$38:$A$127,0)),"-") -> - | AE54: =_xlfn.IFNA(INDEX('VoT7'!$AG$38:$AG$127,MATCH('Annual Parameters'!B54,'VoT7'!$A$38:$A$127,0)),"-") -> - | AF54: =_xlfn.IFNA(INDEX('VoT7'!$E$38:$E$127,MATCH('Annual Parameters'!B54,'VoT7'!$A$38:$A$127,0)),"-") -> - | AG54: =_xlfn.IFNA(INDEX('VoT7'!$J$38:$J$127,MATCH('Annual Parameters'!B54,'VoT7'!$A$38:$A$127,0)),"-") -> - | AH54: =_xlfn.IFNA(INDEX('VoT7'!$F$38:$F$127,MATCH('Annual Parameters'!B54,'VoT7'!$A$38:$A$127,0)),"-") -> - | AI54: =_xlfn.IFNA(INDEX('VoT7'!$K$38:$K$127,MATCH('Annual Parameters'!B54,'VoT7'!$A$38:$A$127,0)),"-") -> - | AJ54: =IF('Annual Parameters Source'!J51="","-",'Annual Parameters Source'!J51) -> - | AK54: =IF('Annual Parameters Source'!K51="","-",'Annual Parameters Source'!K51) -> -
B55: 2000 | D55: =IF('Annual Parameters Source'!D52="","-",'Annual Parameters Source'!D52/VLOOKUP($B$14,'Annual Parameters Source'!$B$42:$D$152,3,1)*100) -> 56.94524961 | E55: =IF('Annual Parameters Source'!E52="","-",VLOOKUP($B$16,'Annual Parameters Source'!$B$42:$AH$156,33,FALSE)/VLOOKUP($B$16,'Annual Parameters Source'!$B$42:$AH$156,4,FALSE)*'Annual Parameters Source'!E52) -> 1940007 | F55: =IF('Annual Parameters Source'!F52="","-",'Annual Parameters Source'!F52) -> 4.524380763 | G55: =IF('Annual Parameters Source'!G52="","-",'Annual Parameters Source'!G52) -> 128.0361958 | H55: =IF('Annual Parameters Source'!H52="","-",'Annual Parameters Source'!H52) -> 58886.1 | I55: =IF('Annual Parameters Source'!I52="","-",'Annual Parameters Source'!I52) -> 0.3437029262 | J55: =IF('Annual Parameters Source'!L52="","-",'Annual Parameters Source'!L52) -> 102.8802795 | K55: =IF('Annual Parameters Source'!M52="","-",'Annual Parameters Source'!M52) -> 24396 | L55: =IF('Annual Parameters Source'!N52="","-",'Annual Parameters Source'!N52) -> 0.7724400017 | M55: =IF('Annual Parameters Source'!O52="","-",'Annual Parameters Source'!O52) -> 102.7719269 | N55: =IF('Annual Parameters Source'!P52="","-",'Annual Parameters Source'!P52) -> 32945.07532 | O55: =IF('Annual Parameters Source'!Q52="","-",'Annual Parameters Source'!Q52) -> 4.166357942 | P55: =IF('Annual Parameters Source'!R52="","-",'Annual Parameters Source'!R52) -> 124.4516407 | Q55: =IF('Annual Parameters Source'!S52="","-",'Annual Parameters Source'!S52) -> 79521.51992 | R55: =IF('Annual Parameters Source'!T52="","-",'Annual Parameters Source'!T52) -> 3.723181418 | S55: =IF('Annual Parameters Source'!U52="","-",'Annual Parameters Source'!U52) -> 113.3739442 | T55: =IF('Annual Parameters Source'!V52="","-",'Annual Parameters Source'!V52) -> - | U55: =IF('Annual Parameters Source'!W52="","-",'Annual Parameters Source'!W52) -> - | V55: =IF('Annual Parameters Source'!X52="","-",'Annual Parameters Source'!X52) -> - | W55: =IF('Annual Parameters Source'!Y52="","-",'Annual Parameters Source'!Y52) -> - | X55: =IF('Annual Parameters Source'!AD52="","-",'Annual Parameters Source'!AD52) -> - | Y55: =IF('Annual Parameters Source'!AE52="","-",'Annual Parameters Source'!AE52) -> - | Z55: =IF('Annual Parameters Source'!AF52="","-",'Annual Parameters Source'!AF52) -> - | AA55: =IF('Annual Parameters Source'!AG52="","-",'Annual Parameters Source'!AG52) -> - | AB55: =_xlfn.IFNA(INDEX('VoT7'!$U$38:$U$127,MATCH('Annual Parameters'!B55,'VoT7'!$A$38:$A$127,0)),"-") -> - | AC55: =_xlfn.IFNA(INDEX('VoT7'!$V$38:$V$127,MATCH('Annual Parameters'!B55,'VoT7'!$A$38:$A$127,0)),"-") -> - | AD55: =_xlfn.IFNA(INDEX('VoT7'!$AF$38:$AF$127,MATCH('Annual Parameters'!B55,'VoT7'!$A$38:$A$127,0)),"-") -> - | AE55: =_xlfn.IFNA(INDEX('VoT7'!$AG$38:$AG$127,MATCH('Annual Parameters'!B55,'VoT7'!$A$38:$A$127,0)),"-") -> - | AF55: =_xlfn.IFNA(INDEX('VoT7'!$E$38:$E$127,MATCH('Annual Parameters'!B55,'VoT7'!$A$38:$A$127,0)),"-") -> - | AG55: =_xlfn.IFNA(INDEX('VoT7'!$J$38:$J$127,MATCH('Annual Parameters'!B55,'VoT7'!$A$38:$A$127,0)),"-") -> - | AH55: =_xlfn.IFNA(INDEX('VoT7'!$F$38:$F$127,MATCH('Annual Parameters'!B55,'VoT7'!$A$38:$A$127,0)),"-") -> - | AI55: =_xlfn.IFNA(INDEX('VoT7'!$K$38:$K$127,MATCH('Annual Parameters'!B55,'VoT7'!$A$38:$A$127,0)),"-") -> - | AJ55: =IF('Annual Parameters Source'!J52="","-",'Annual Parameters Source'!J52) -> - | AK55: =IF('Annual Parameters Source'!K52="","-",'Annual Parameters Source'!K52) -> -
B56: 2001 | D56: =IF('Annual Parameters Source'!D53="","-",'Annual Parameters Source'!D53/VLOOKUP($B$14,'Annual Parameters Source'!$B$42:$D$152,3,1)*100) -> 57.91946381 | E56: =IF('Annual Parameters Source'!E53="","-",VLOOKUP($B$16,'Annual Parameters Source'!$B$42:$AH$156,33,FALSE)/VLOOKUP($B$16,'Annual Parameters Source'!$B$42:$AH$156,4,FALSE)*'Annual Parameters Source'!E53) -> 1986393 | F56: =IF('Annual Parameters Source'!F53="","-",'Annual Parameters Source'!F53) -> 2.3910223 | G56: =IF('Annual Parameters Source'!G53="","-",'Annual Parameters Source'!G53) -> 131.0975698 | H56: =IF('Annual Parameters Source'!H53="","-",'Annual Parameters Source'!H53) -> 59113 | I56: =IF('Annual Parameters Source'!I53="","-",'Annual Parameters Source'!I53) -> 0.385320135 | J56: =IF('Annual Parameters Source'!L53="","-",'Annual Parameters Source'!L53) -> 103.276698 | K56: =IF('Annual Parameters Source'!M53="","-",'Annual Parameters Source'!M53) -> 24535 | L56: =IF('Annual Parameters Source'!N53="","-",'Annual Parameters Source'!N53) -> 0.5697655353 | M56: =IF('Annual Parameters Source'!O53="","-",'Annual Parameters Source'!O53) -> 103.3574859 | N56: =IF('Annual Parameters Source'!P53="","-",'Annual Parameters Source'!P53) -> 33603.31907 | O56: =IF('Annual Parameters Source'!Q53="","-",'Annual Parameters Source'!Q53) -> 1.998003456 | P56: =IF('Annual Parameters Source'!R53="","-",'Annual Parameters Source'!R53) -> 126.9381888 | Q56: =IF('Annual Parameters Source'!S53="","-",'Annual Parameters Source'!S53) -> 80961.60587 | R56: =IF('Annual Parameters Source'!T53="","-",'Annual Parameters Source'!T53) -> 1.810938661 | S56: =IF('Annual Parameters Source'!U53="","-",'Annual Parameters Source'!U53) -> 115.4270768 | T56: =IF('Annual Parameters Source'!V53="","-",'Annual Parameters Source'!V53) -> - | U56: =IF('Annual Parameters Source'!W53="","-",'Annual Parameters Source'!W53) -> - | V56: =IF('Annual Parameters Source'!X53="","-",'Annual Parameters Source'!X53) -> - | W56: =IF('Annual Parameters Source'!Y53="","-",'Annual Parameters Source'!Y53) -> - | X56: =IF('Annual Parameters Source'!AD53="","-",'Annual Parameters Source'!AD53) -> - | Y56: =IF('Annual Parameters Source'!AE53="","-",'Annual Parameters Source'!AE53) -> - | Z56: =IF('Annual Parameters Source'!AF53="","-",'Annual Parameters Source'!AF53) -> - | AA56: =IF('Annual Parameters Source'!AG53="","-",'Annual Parameters Source'!AG53) -> - | AB56: =_xlfn.IFNA(INDEX('VoT7'!$U$38:$U$127,MATCH('Annual Parameters'!B56,'VoT7'!$A$38:$A$127,0)),"-") -> - | AC56: =_xlfn.IFNA(INDEX('VoT7'!$V$38:$V$127,MATCH('Annual Parameters'!B56,'VoT7'!$A$38:$A$127,0)),"-") -> - | AD56: =_xlfn.IFNA(INDEX('VoT7'!$AF$38:$AF$127,MATCH('Annual Parameters'!B56,'VoT7'!$A$38:$A$127,0)),"-") -> - | AE56: =_xlfn.IFNA(INDEX('VoT7'!$AG$38:$AG$127,MATCH('Annual Parameters'!B56,'VoT7'!$A$38:$A$127,0)),"-") -> - | AF56: =_xlfn.IFNA(INDEX('VoT7'!$E$38:$E$127,MATCH('Annual Parameters'!B56,'VoT7'!$A$38:$A$127,0)),"-") -> - | AG56: =_xlfn.IFNA(INDEX('VoT7'!$J$38:$J$127,MATCH('Annual Parameters'!B56,'VoT7'!$A$38:$A$127,0)),"-") -> - | AH56: =_xlfn.IFNA(INDEX('VoT7'!$F$38:$F$127,MATCH('Annual Parameters'!B56,'VoT7'!$A$38:$A$127,0)),"-") -> - | AI56: =_xlfn.IFNA(INDEX('VoT7'!$K$38:$K$127,MATCH('Annual Parameters'!B56,'VoT7'!$A$38:$A$127,0)),"-") -> - | AJ56: =IF('Annual Parameters Source'!J53="","-",'Annual Parameters Source'!J53) -> - | AK56: =IF('Annual Parameters Source'!K53="","-",'Annual Parameters Source'!K53) -> -
B57: 2002 | D57: =IF('Annual Parameters Source'!D54="","-",'Annual Parameters Source'!D54/VLOOKUP($B$14,'Annual Parameters Source'!$B$42:$D$152,3,1)*100) -> 59.12793767 | E57: =IF('Annual Parameters Source'!E54="","-",VLOOKUP($B$16,'Annual Parameters Source'!$B$42:$AH$156,33,FALSE)/VLOOKUP($B$16,'Annual Parameters Source'!$B$42:$AH$156,4,FALSE)*'Annual Parameters Source'!E54) -> 2020341 | F57: =IF('Annual Parameters Source'!F54="","-",'Annual Parameters Source'!F54) -> 1.709027368 | G57: =IF('Annual Parameters Source'!G54="","-",'Annual Parameters Source'!G54) -> 133.3380632 | H57: =IF('Annual Parameters Source'!H54="","-",'Annual Parameters Source'!H54) -> 59365.7 | I57: =IF('Annual Parameters Source'!I54="","-",'Annual Parameters Source'!I54) -> 0.4274863397 | J57: =IF('Annual Parameters Source'!L54="","-",'Annual Parameters Source'!L54) -> 103.7181917 | K57: =IF('Annual Parameters Source'!M54="","-",'Annual Parameters Source'!M54) -> 24792 | L57: =IF('Annual Parameters Source'!N54="","-",'Annual Parameters Source'!N54) -> 1.047483187 | M57: =IF('Annual Parameters Source'!O54="","-",'Annual Parameters Source'!O54) -> 104.4401382 | N57: =IF('Annual Parameters Source'!P54="","-",'Annual Parameters Source'!P54) -> 34032.1263 | O57: =IF('Annual Parameters Source'!Q54="","-",'Annual Parameters Source'!Q54) -> 1.276085935 | P57: =IF('Annual Parameters Source'!R54="","-",'Annual Parameters Source'!R54) -> 128.5580291 | Q57: =IF('Annual Parameters Source'!S54="","-",'Annual Parameters Source'!S54) -> 81491.65053 | R57: =IF('Annual Parameters Source'!T54="","-",'Annual Parameters Source'!T54) -> 0.6546864499 | S57: =IF('Annual Parameters Source'!U54="","-",'Annual Parameters Source'!U54) -> 116.1827622 | T57: =IF('Annual Parameters Source'!V54="","-",'Annual Parameters Source'!V54) -> - | U57: =IF('Annual Parameters Source'!W54="","-",'Annual Parameters Source'!W54) -> - | V57: =IF('Annual Parameters Source'!X54="","-",'Annual Parameters Source'!X54) -> 100 | W57: =IF('Annual Parameters Source'!Y54="","-",'Annual Parameters Source'!Y54) -> 100 | X57: =IF('Annual Parameters Source'!AD54="","-",'Annual Parameters Source'!AD54) -> - | Y57: =IF('Annual Parameters Source'!AE54="","-",'Annual Parameters Source'!AE54) -> - | Z57: =IF('Annual Parameters Source'!AF54="","-",'Annual Parameters Source'!AF54) -> 100 | AA57: =IF('Annual Parameters Source'!AG54="","-",'Annual Parameters Source'!AG54) -> 100 | AB57: =_xlfn.IFNA(INDEX('VoT7'!$U$38:$U$127,MATCH('Annual Parameters'!B57,'VoT7'!$A$38:$A$127,0)),"-") -> - | AC57: =_xlfn.IFNA(INDEX('VoT7'!$V$38:$V$127,MATCH('Annual Parameters'!B57,'VoT7'!$A$38:$A$127,0)),"-") -> - | AD57: =_xlfn.IFNA(INDEX('VoT7'!$AF$38:$AF$127,MATCH('Annual Parameters'!B57,'VoT7'!$A$38:$A$127,0)),"-") -> - | AE57: =_xlfn.IFNA(INDEX('VoT7'!$AG$38:$AG$127,MATCH('Annual Parameters'!B57,'VoT7'!$A$38:$A$127,0)),"-") -> - | AF57: =_xlfn.IFNA(INDEX('VoT7'!$E$38:$E$127,MATCH('Annual Parameters'!B57,'VoT7'!$A$38:$A$127,0)),"-") -> - | AG57: =_xlfn.IFNA(INDEX('VoT7'!$J$38:$J$127,MATCH('Annual Parameters'!B57,'VoT7'!$A$38:$A$127,0)),"-") -> - | AH57: =_xlfn.IFNA(INDEX('VoT7'!$F$38:$F$127,MATCH('Annual Parameters'!B57,'VoT7'!$A$38:$A$127,0)),"-") -> - | AI57: =_xlfn.IFNA(INDEX('VoT7'!$K$38:$K$127,MATCH('Annual Parameters'!B57,'VoT7'!$A$38:$A$127,0)),"-") -> - | AJ57: =IF('Annual Parameters Source'!J54="","-",'Annual Parameters Source'!J54) -> - | AK57: =IF('Annual Parameters Source'!K54="","-",'Annual Parameters Source'!K54) -> -
B58: 2003 | D58: =IF('Annual Parameters Source'!D55="","-",'Annual Parameters Source'!D55/VLOOKUP($B$14,'Annual Parameters Source'!$B$42:$D$152,3,1)*100) -> 60.53565079 | E58: =IF('Annual Parameters Source'!E55="","-",VLOOKUP($B$16,'Annual Parameters Source'!$B$42:$AH$156,33,FALSE)/VLOOKUP($B$16,'Annual Parameters Source'!$B$42:$AH$156,4,FALSE)*'Annual Parameters Source'!E55) -> 2085366 | F58: =IF('Annual Parameters Source'!F55="","-",'Annual Parameters Source'!F55) -> 3.218516082 | G58: =IF('Annual Parameters Source'!G55="","-",'Annual Parameters Source'!G55) -> 137.6295702 | H58: =IF('Annual Parameters Source'!H55="","-",'Annual Parameters Source'!H55) -> 59636.7 | I58: =IF('Annual Parameters Source'!I55="","-",'Annual Parameters Source'!I55) -> 0.4564925538 | J58: =IF('Annual Parameters Source'!L55="","-",'Annual Parameters Source'!L55) -> 104.1916576 | K58: =IF('Annual Parameters Source'!M55="","-",'Annual Parameters Source'!M55) -> 24917 | L58: =IF('Annual Parameters Source'!N55="","-",'Annual Parameters Source'!N55) -> 0.5041949016 | M58: =IF('Annual Parameters Source'!O55="","-",'Annual Parameters Source'!O55) -> 104.96672 | N58: =IF('Annual Parameters Source'!P55="","-",'Annual Parameters Source'!P55) -> 34967.83021 | O58: =IF('Annual Parameters Source'!Q55="","-",'Annual Parameters Source'!Q55) -> 2.749472392 | P58: =IF('Annual Parameters Source'!R55="","-",'Annual Parameters Source'!R55) -> 132.0926967 | Q58: =IF('Annual Parameters Source'!S55="","-",'Annual Parameters Source'!S55) -> 83692.4991 | R58: =IF('Annual Parameters Source'!T55="","-",'Annual Parameters Source'!T55) -> 2.700704367 | S58: =IF('Annual Parameters Source'!U55="","-",'Annual Parameters Source'!U55) -> 119.3205152 | T58: =IF('Annual Parameters Source'!V55="","-",'Annual Parameters Source'!V55) -> 2.749472392 | U58: =IF('Annual Parameters Source'!W55="","-",'Annual Parameters Source'!W55) -> 2.749472392 | V58: =IF('Annual Parameters Source'!X55="","-",'Annual Parameters Source'!X55) -> 102.7494724 | W58: =IF('Annual Parameters Source'!Y55="","-",'Annual Parameters Source'!Y55) -> 102.7494724 | X58: =IF('Annual Parameters Source'!AD55="","-",'Annual Parameters Source'!AD55) -> 2.749472392 | Y58: =IF('Annual Parameters Source'!AE55="","-",'Annual Parameters Source'!AE55) -> 2.749472392 | Z58: =IF('Annual Parameters Source'!AF55="","-",'Annual Parameters Source'!AF55) -> 102.7494724 | AA58: =IF('Annual Parameters Source'!AG55="","-",'Annual Parameters Source'!AG55) -> 102.7494724 | AB58: =_xlfn.IFNA(INDEX('VoT7'!$U$38:$U$127,MATCH('Annual Parameters'!B58,'VoT7'!$A$38:$A$127,0)),"-") -> - | AC58: =_xlfn.IFNA(INDEX('VoT7'!$V$38:$V$127,MATCH('Annual Parameters'!B58,'VoT7'!$A$38:$A$127,0)),"-") -> - | AD58: =_xlfn.IFNA(INDEX('VoT7'!$AF$38:$AF$127,MATCH('Annual Parameters'!B58,'VoT7'!$A$38:$A$127,0)),"-") -> - | AE58: =_xlfn.IFNA(INDEX('VoT7'!$AG$38:$AG$127,MATCH('Annual Parameters'!B58,'VoT7'!$A$38:$A$127,0)),"-") -> - | AF58: =_xlfn.IFNA(INDEX('VoT7'!$E$38:$E$127,MATCH('Annual Parameters'!B58,'VoT7'!$A$38:$A$127,0)),"-") -> - | AG58: =_xlfn.IFNA(INDEX('VoT7'!$J$38:$J$127,MATCH('Annual Parameters'!B58,'VoT7'!$A$38:$A$127,0)),"-") -> - | AH58: =_xlfn.IFNA(INDEX('VoT7'!$F$38:$F$127,MATCH('Annual Parameters'!B58,'VoT7'!$A$38:$A$127,0)),"-") -> - | AI58: =_xlfn.IFNA(INDEX('VoT7'!$K$38:$K$127,MATCH('Annual Parameters'!B58,'VoT7'!$A$38:$A$127,0)),"-") -> - | AJ58: =IF('Annual Parameters Source'!J55="","-",'Annual Parameters Source'!J55) -> - | AK58: =IF('Annual Parameters Source'!K55="","-",'Annual Parameters Source'!K55) -> -
B59: 2004 | D59: =IF('Annual Parameters Source'!D56="","-",'Annual Parameters Source'!D56/VLOOKUP($B$14,'Annual Parameters Source'!$B$42:$D$152,3,1)*100) -> 62.19001541 | E59: =IF('Annual Parameters Source'!E56="","-",VLOOKUP($B$16,'Annual Parameters Source'!$B$42:$AH$156,33,FALSE)/VLOOKUP($B$16,'Annual Parameters Source'!$B$42:$AH$156,4,FALSE)*'Annual Parameters Source'!E56) -> 2133872 | F59: =IF('Annual Parameters Source'!F56="","-",'Annual Parameters Source'!F56) -> 2.32601855 | G59: =IF('Annual Parameters Source'!G56="","-",'Annual Parameters Source'!G56) -> 140.8308595 | H59: =IF('Annual Parameters Source'!H56="","-",'Annual Parameters Source'!H56) -> 59950.4 | I59: =IF('Annual Parameters Source'!I56="","-",'Annual Parameters Source'!I56) -> 0.5260183746 | J59: =IF('Annual Parameters Source'!L56="","-",'Annual Parameters Source'!L56) -> 104.7397248 | K59: =IF('Annual Parameters Source'!M56="","-",'Annual Parameters Source'!M56) -> 24993 | L59: =IF('Annual Parameters Source'!N56="","-",'Annual Parameters Source'!N56) -> 0.305012642 | M59: =IF('Annual Parameters Source'!O56="","-",'Annual Parameters Source'!O56) -> 105.2868818 | N59: =IF('Annual Parameters Source'!P56="","-",'Annual Parameters Source'!P56) -> 35593.95767 | O59: =IF('Annual Parameters Source'!Q56="","-",'Annual Parameters Source'!Q56) -> 1.790581389 | P59: =IF('Annual Parameters Source'!R56="","-",'Annual Parameters Source'!R56) -> 134.4579239 | Q59: =IF('Annual Parameters Source'!S56="","-",'Annual Parameters Source'!S56) -> 85378.78606 | R59: =IF('Annual Parameters Source'!T56="","-",'Annual Parameters Source'!T56) -> 2.01486033 | S59: =IF('Annual Parameters Source'!U56="","-",'Annual Parameters Source'!U56) -> 121.7246569 | T59: =IF('Annual Parameters Source'!V56="","-",'Annual Parameters Source'!V56) -> 1.790581389 | U59: =IF('Annual Parameters Source'!W56="","-",'Annual Parameters Source'!W56) -> 1.790581389 | V59: =IF('Annual Parameters Source'!X56="","-",'Annual Parameters Source'!X56) -> 104.5892853 | W59: =IF('Annual Parameters Source'!Y56="","-",'Annual Parameters Source'!Y56) -> 104.5892853 | X59: =IF('Annual Parameters Source'!AD56="","-",'Annual Parameters Source'!AD56) -> 1.790581389 | Y59: =IF('Annual Parameters Source'!AE56="","-",'Annual Parameters Source'!AE56) -> 1.790581389 | Z59: =IF('Annual Parameters Source'!AF56="","-",'Annual Parameters Source'!AF56) -> 104.5892853 | AA59: =IF('Annual Parameters Source'!AG56="","-",'Annual Parameters Source'!AG56) -> 104.5892853 | AB59: =_xlfn.IFNA(INDEX('VoT7'!$U$38:$U$127,MATCH('Annual Parameters'!B59,'VoT7'!$A$38:$A$127,0)),"-") -> - | AC59: =_xlfn.IFNA(INDEX('VoT7'!$V$38:$V$127,MATCH('Annual Parameters'!B59,'VoT7'!$A$38:$A$127,0)),"-") -> - | AD59: =_xlfn.IFNA(INDEX('VoT7'!$AF$38:$AF$127,MATCH('Annual Parameters'!B59,'VoT7'!$A$38:$A$127,0)),"-") -> - | AE59: =_xlfn.IFNA(INDEX('VoT7'!$AG$38:$AG$127,MATCH('Annual Parameters'!B59,'VoT7'!$A$38:$A$127,0)),"-") -> - | AF59: =_xlfn.IFNA(INDEX('VoT7'!$E$38:$E$127,MATCH('Annual Parameters'!B59,'VoT7'!$A$38:$A$127,0)),"-") -> - | AG59: =_xlfn.IFNA(INDEX('VoT7'!$J$38:$J$127,MATCH('Annual Parameters'!B59,'VoT7'!$A$38:$A$127,0)),"-") -> - | AH59: =_xlfn.IFNA(INDEX('VoT7'!$F$38:$F$127,MATCH('Annual Parameters'!B59,'VoT7'!$A$38:$A$127,0)),"-") -> - | AI59: =_xlfn.IFNA(INDEX('VoT7'!$K$38:$K$127,MATCH('Annual Parameters'!B59,'VoT7'!$A$38:$A$127,0)),"-") -> - | AJ59: =IF('Annual Parameters Source'!J56="","-",'Annual Parameters Source'!J56) -> - | AK59: =IF('Annual Parameters Source'!K56="","-",'Annual Parameters Source'!K56) -> -
B60: 2005 | D60: =IF('Annual Parameters Source'!D57="","-",'Annual Parameters Source'!D57/VLOOKUP($B$14,'Annual Parameters Source'!$B$42:$D$152,3,1)*100) -> 63.97013028 | E60: =IF('Annual Parameters Source'!E57="","-",VLOOKUP($B$16,'Annual Parameters Source'!$B$42:$AH$156,33,FALSE)/VLOOKUP($B$16,'Annual Parameters Source'!$B$42:$AH$156,4,FALSE)*'Annual Parameters Source'!E57) -> 2193421 | F60: =IF('Annual Parameters Source'!F57="","-",'Annual Parameters Source'!F57) -> 2.790654735 | G60: =IF('Annual Parameters Source'!G57="","-",'Annual Parameters Source'!G57) -> 144.7609626 | H60: =IF('Annual Parameters Source'!H57="","-",'Annual Parameters Source'!H57) -> 60413.3 | I60: =IF('Annual Parameters Source'!I57="","-",'Annual Parameters Source'!I57) -> 0.772138301 | J60: =IF('Annual Parameters Source'!L57="","-",'Annual Parameters Source'!L57) -> 105.5484604 | K60: =IF('Annual Parameters Source'!M57="","-",'Annual Parameters Source'!M57) -> 25217 | L60: =IF('Annual Parameters Source'!N57="","-",'Annual Parameters Source'!N57) -> 0.8962509503 | M60: =IF('Annual Parameters Source'!O57="","-",'Annual Parameters Source'!O57) -> 106.2305165 | N60: =IF('Annual Parameters Source'!P57="","-",'Annual Parameters Source'!P57) -> 36306.92248 | O60: =IF('Annual Parameters Source'!Q57="","-",'Annual Parameters Source'!Q57) -> 2.003050117 | P60: =IF('Annual Parameters Source'!R57="","-",'Annual Parameters Source'!R57) -> 137.1511835 | Q60: =IF('Annual Parameters Source'!S57="","-",'Annual Parameters Source'!S57) -> 86981.83765 | R60: =IF('Annual Parameters Source'!T57="","-",'Annual Parameters Source'!T57) -> 1.877575992 | S60: =IF('Annual Parameters Source'!U57="","-",'Annual Parameters Source'!U57) -> 124.0101298 | T60: =IF('Annual Parameters Source'!V57="","-",'Annual Parameters Source'!V57) -> 2.003050117 | U60: =IF('Annual Parameters Source'!W57="","-",'Annual Parameters Source'!W57) -> 2.003050117 | V60: =IF('Annual Parameters Source'!X57="","-",'Annual Parameters Source'!X57) -> 106.6842611 | W60: =IF('Annual Parameters Source'!Y57="","-",'Annual Parameters Source'!Y57) -> 106.6842611 | X60: =IF('Annual Parameters Source'!AD57="","-",'Annual Parameters Source'!AD57) -> 2.003050117 | Y60: =IF('Annual Parameters Source'!AE57="","-",'Annual Parameters Source'!AE57) -> 2.003050117 | Z60: =IF('Annual Parameters Source'!AF57="","-",'Annual Parameters Source'!AF57) -> 106.6842611 | AA60: =IF('Annual Parameters Source'!AG57="","-",'Annual Parameters Source'!AG57) -> 106.6842611 | AB60: =_xlfn.IFNA(INDEX('VoT7'!$U$38:$U$127,MATCH('Annual Parameters'!B60,'VoT7'!$A$38:$A$127,0)),"-") -> - | AC60: =_xlfn.IFNA(INDEX('VoT7'!$V$38:$V$127,MATCH('Annual Parameters'!B60,'VoT7'!$A$38:$A$127,0)),"-") -> - | AD60: =_xlfn.IFNA(INDEX('VoT7'!$AF$38:$AF$127,MATCH('Annual Parameters'!B60,'VoT7'!$A$38:$A$127,0)),"-") -> - | AE60: =_xlfn.IFNA(INDEX('VoT7'!$AG$38:$AG$127,MATCH('Annual Parameters'!B60,'VoT7'!$A$38:$A$127,0)),"-") -> - | AF60: =_xlfn.IFNA(INDEX('VoT7'!$E$38:$E$127,MATCH('Annual Parameters'!B60,'VoT7'!$A$38:$A$127,0)),"-") -> - | AG60: =_xlfn.IFNA(INDEX('VoT7'!$J$38:$J$127,MATCH('Annual Parameters'!B60,'VoT7'!$A$38:$A$127,0)),"-") -> - | AH60: =_xlfn.IFNA(INDEX('VoT7'!$F$38:$F$127,MATCH('Annual Parameters'!B60,'VoT7'!$A$38:$A$127,0)),"-") -> - | AI60: =_xlfn.IFNA(INDEX('VoT7'!$K$38:$K$127,MATCH('Annual Parameters'!B60,'VoT7'!$A$38:$A$127,0)),"-") -> - | AJ60: =IF('Annual Parameters Source'!J57="","-",'Annual Parameters Source'!J57) -> - | AK60: =IF('Annual Parameters Source'!K57="","-",'Annual Parameters Source'!K57) -> -
B61: 2006 | D61: =IF('Annual Parameters Source'!D58="","-",'Annual Parameters Source'!D58/VLOOKUP($B$14,'Annual Parameters Source'!$B$42:$D$152,3,1)*100) -> 65.94043296 | E61: =IF('Annual Parameters Source'!E58="","-",VLOOKUP($B$16,'Annual Parameters Source'!$B$42:$AH$156,33,FALSE)/VLOOKUP($B$16,'Annual Parameters Source'!$B$42:$AH$156,4,FALSE)*'Annual Parameters Source'!E58) -> 2241453 | F61: =IF('Annual Parameters Source'!F58="","-",'Annual Parameters Source'!F58) -> 2.189821288 | G61: =IF('Annual Parameters Source'!G58="","-",'Annual Parameters Source'!G58) -> 147.9309689 | H61: =IF('Annual Parameters Source'!H58="","-",'Annual Parameters Source'!H58) -> 60827 | I61: =IF('Annual Parameters Source'!I58="","-",'Annual Parameters Source'!I58) -> 0.6847829865 | J61: =IF('Annual Parameters Source'!L58="","-",'Annual Parameters Source'!L58) -> 106.2712383 | K61: =IF('Annual Parameters Source'!M58="","-",'Annual Parameters Source'!M58) -> 25379 | L61: =IF('Annual Parameters Source'!N58="","-",'Annual Parameters Source'!N58) -> 0.6424237617 | M61: =IF('Annual Parameters Source'!O58="","-",'Annual Parameters Source'!O58) -> 106.9129666 | N61: =IF('Annual Parameters Source'!P58="","-",'Annual Parameters Source'!P58) -> 36849.63914 | O61: =IF('Annual Parameters Source'!Q58="","-",'Annual Parameters Source'!Q58) -> 1.494802151 | P61: =IF('Annual Parameters Source'!R58="","-",'Annual Parameters Source'!R58) -> 139.2013224 | Q61: =IF('Annual Parameters Source'!S58="","-",'Annual Parameters Source'!S58) -> 88319.20091 | R61: =IF('Annual Parameters Source'!T58="","-",'Annual Parameters Source'!T58) -> 1.537520132 | S61: =IF('Annual Parameters Source'!U58="","-",'Annual Parameters Source'!U58) -> 125.9168105 | T61: =IF('Annual Parameters Source'!V58="","-",'Annual Parameters Source'!V58) -> 1.494802151 | U61: =IF('Annual Parameters Source'!W58="","-",'Annual Parameters Source'!W58) -> 1.494802151 | V61: =IF('Annual Parameters Source'!X58="","-",'Annual Parameters Source'!X58) -> 108.2789798 | W61: =IF('Annual Parameters Source'!Y58="","-",'Annual Parameters Source'!Y58) -> 108.2789798 | X61: =IF('Annual Parameters Source'!AD58="","-",'Annual Parameters Source'!AD58) -> 1.494802151 | Y61: =IF('Annual Parameters Source'!AE58="","-",'Annual Parameters Source'!AE58) -> 1.494802151 | Z61: =IF('Annual Parameters Source'!AF58="","-",'Annual Parameters Source'!AF58) -> 108.2789798 | AA61: =IF('Annual Parameters Source'!AG58="","-",'Annual Parameters Source'!AG58) -> 108.2789798 | AB61: =_xlfn.IFNA(INDEX('VoT7'!$U$38:$U$127,MATCH('Annual Parameters'!B61,'VoT7'!$A$38:$A$127,0)),"-") -> - | AC61: =_xlfn.IFNA(INDEX('VoT7'!$V$38:$V$127,MATCH('Annual Parameters'!B61,'VoT7'!$A$38:$A$127,0)),"-") -> - | AD61: =_xlfn.IFNA(INDEX('VoT7'!$AF$38:$AF$127,MATCH('Annual Parameters'!B61,'VoT7'!$A$38:$A$127,0)),"-") -> - | AE61: =_xlfn.IFNA(INDEX('VoT7'!$AG$38:$AG$127,MATCH('Annual Parameters'!B61,'VoT7'!$A$38:$A$127,0)),"-") -> - | AF61: =_xlfn.IFNA(INDEX('VoT7'!$E$38:$E$127,MATCH('Annual Parameters'!B61,'VoT7'!$A$38:$A$127,0)),"-") -> - | AG61: =_xlfn.IFNA(INDEX('VoT7'!$J$38:$J$127,MATCH('Annual Parameters'!B61,'VoT7'!$A$38:$A$127,0)),"-") -> - | AH61: =_xlfn.IFNA(INDEX('VoT7'!$F$38:$F$127,MATCH('Annual Parameters'!B61,'VoT7'!$A$38:$A$127,0)),"-") -> - | AI61: =_xlfn.IFNA(INDEX('VoT7'!$K$38:$K$127,MATCH('Annual Parameters'!B61,'VoT7'!$A$38:$A$127,0)),"-") -> - | AJ61: =IF('Annual Parameters Source'!J58="","-",'Annual Parameters Source'!J58) -> - | AK61: =IF('Annual Parameters Source'!K58="","-",'Annual Parameters Source'!K58) -> -
B62: 2007 | D62: =IF('Annual Parameters Source'!D59="","-",'Annual Parameters Source'!D59/VLOOKUP($B$14,'Annual Parameters Source'!$B$42:$D$152,3,1)*100) -> 67.25364482 | E62: =IF('Annual Parameters Source'!E59="","-",VLOOKUP($B$16,'Annual Parameters Source'!$B$42:$AH$156,33,FALSE)/VLOOKUP($B$16,'Annual Parameters Source'!$B$42:$AH$156,4,FALSE)*'Annual Parameters Source'!E59) -> 2307148 | F62: =IF('Annual Parameters Source'!F59="","-",'Annual Parameters Source'!F59) -> 2.930911333 | G62: =IF('Annual Parameters Source'!G59="","-",'Annual Parameters Source'!G59) -> 152.2666945 | H62: =IF('Annual Parameters Source'!H59="","-",'Annual Parameters Source'!H59) -> 61319.1 | I62: =IF('Annual Parameters Source'!I59="","-",'Annual Parameters Source'!I59) -> 0.8090157331 | J62: =IF('Annual Parameters Source'!L59="","-",'Annual Parameters Source'!L59) -> 107.1309893 | K62: =IF('Annual Parameters Source'!M59="","-",'Annual Parameters Source'!M59) -> 25609 | L62: =IF('Annual Parameters Source'!N59="","-",'Annual Parameters Source'!N59) -> 0.906261082 | M62: =IF('Annual Parameters Source'!O59="","-",'Annual Parameters Source'!O59) -> 107.8818772 | N62: =IF('Annual Parameters Source'!P59="","-",'Annual Parameters Source'!P59) -> 37625.275 | O62: =IF('Annual Parameters Source'!Q59="","-",'Annual Parameters Source'!Q59) -> 2.104866895 | P62: =IF('Annual Parameters Source'!R59="","-",'Annual Parameters Source'!R59) -> 142.1313249 | Q62: =IF('Annual Parameters Source'!S59="","-",'Annual Parameters Source'!S59) -> 90091.29603 | R62: =IF('Annual Parameters Source'!T59="","-",'Annual Parameters Source'!T59) -> 2.006466427 | S62: =IF('Annual Parameters Source'!U59="","-",'Annual Parameters Source'!U59) -> 128.4432891 | T62: =IF('Annual Parameters Source'!V59="","-",'Annual Parameters Source'!V59) -> 2.104866895 | U62: =IF('Annual Parameters Source'!W59="","-",'Annual Parameters Source'!W59) -> 2.104866895 | V62: =IF('Annual Parameters Source'!X59="","-",'Annual Parameters Source'!X59) -> 110.5581082 | W62: =IF('Annual Parameters Source'!Y59="","-",'Annual Parameters Source'!Y59) -> 110.5581082 | X62: =IF('Annual Parameters Source'!AD59="","-",'Annual Parameters Source'!AD59) -> 2.104866895 | Y62: =IF('Annual Parameters Source'!AE59="","-",'Annual Parameters Source'!AE59) -> 2.104866895 | Z62: =IF('Annual Parameters Source'!AF59="","-",'Annual Parameters Source'!AF59) -> 110.5581082 | AA62: =IF('Annual Parameters Source'!AG59="","-",'Annual Parameters Source'!AG59) -> 110.5581082 | AB62: =_xlfn.IFNA(INDEX('VoT7'!$U$38:$U$127,MATCH('Annual Parameters'!B62,'VoT7'!$A$38:$A$127,0)),"-") -> - | AC62: =_xlfn.IFNA(INDEX('VoT7'!$V$38:$V$127,MATCH('Annual Parameters'!B62,'VoT7'!$A$38:$A$127,0)),"-") -> - | AD62: =_xlfn.IFNA(INDEX('VoT7'!$AF$38:$AF$127,MATCH('Annual Parameters'!B62,'VoT7'!$A$38:$A$127,0)),"-") -> - | AE62: =_xlfn.IFNA(INDEX('VoT7'!$AG$38:$AG$127,MATCH('Annual Parameters'!B62,'VoT7'!$A$38:$A$127,0)),"-") -> - | AF62: =_xlfn.IFNA(INDEX('VoT7'!$E$38:$E$127,MATCH('Annual Parameters'!B62,'VoT7'!$A$38:$A$127,0)),"-") -> - | AG62: =_xlfn.IFNA(INDEX('VoT7'!$J$38:$J$127,MATCH('Annual Parameters'!B62,'VoT7'!$A$38:$A$127,0)),"-") -> - | AH62: =_xlfn.IFNA(INDEX('VoT7'!$F$38:$F$127,MATCH('Annual Parameters'!B62,'VoT7'!$A$38:$A$127,0)),"-") -> - | AI62: =_xlfn.IFNA(INDEX('VoT7'!$K$38:$K$127,MATCH('Annual Parameters'!B62,'VoT7'!$A$38:$A$127,0)),"-") -> - | AJ62: =IF('Annual Parameters Source'!J59="","-",'Annual Parameters Source'!J59) -> - | AK62: =IF('Annual Parameters Source'!K59="","-",'Annual Parameters Source'!K59) -> -
B63: 2008 | D63: =IF('Annual Parameters Source'!D60="","-",'Annual Parameters Source'!D60/VLOOKUP($B$14,'Annual Parameters Source'!$B$42:$D$152,3,1)*100) -> 69.4955982 | E63: =IF('Annual Parameters Source'!E60="","-",VLOOKUP($B$16,'Annual Parameters Source'!$B$42:$AH$156,33,FALSE)/VLOOKUP($B$16,'Annual Parameters Source'!$B$42:$AH$156,4,FALSE)*'Annual Parameters Source'!E60) -> 2306008 | F63: =IF('Annual Parameters Source'!F60="","-",'Annual Parameters Source'!F60) -> -0.04941165456 | G63: =IF('Annual Parameters Source'!G60="","-",'Annual Parameters Source'!G60) -> 152.191457 | H63: =IF('Annual Parameters Source'!H60="","-",'Annual Parameters Source'!H60) -> 61823.8 | I63: =IF('Annual Parameters Source'!I60="","-",'Annual Parameters Source'!I60) -> 0.823071441 | J63: =IF('Annual Parameters Source'!L60="","-",'Annual Parameters Source'!L60) -> 108.0127539 | K63: =IF('Annual Parameters Source'!M60="","-",'Annual Parameters Source'!M60) -> 25875 | L63: =IF('Annual Parameters Source'!N60="","-",'Annual Parameters Source'!N60) -> 1.038697333 | M63: =IF('Annual Parameters Source'!O60="","-",'Annual Parameters Source'!O60) -> 109.0024433 | N63: =IF('Annual Parameters Source'!P60="","-",'Annual Parameters Source'!P60) -> 37299.68071 | O63: =IF('Annual Parameters Source'!Q60="","-",'Annual Parameters Source'!Q60) -> -0.86536056 | P63: =IF('Annual Parameters Source'!R60="","-",'Annual Parameters Source'!R60) -> 140.9013765 | Q63: =IF('Annual Parameters Source'!S60="","-",'Annual Parameters Source'!S60) -> 89121.08213 | R63: =IF('Annual Parameters Source'!T60="","-",'Annual Parameters Source'!T60) -> -1.076923017 | S63: =IF('Annual Parameters Source'!U60="","-",'Annual Parameters Source'!U60) -> 127.0600537 | T63: =IF('Annual Parameters Source'!V60="","-",'Annual Parameters Source'!V60) -> -0.86536056 | U63: =IF('Annual Parameters Source'!W60="","-",'Annual Parameters Source'!W60) -> -0.86536056 | V63: =IF('Annual Parameters Source'!X60="","-",'Annual Parameters Source'!X60) -> 109.6013819 | W63: =IF('Annual Parameters Source'!Y60="","-",'Annual Parameters Source'!Y60) -> 109.6013819 | X63: =IF('Annual Parameters Source'!AD60="","-",'Annual Parameters Source'!AD60) -> -0.86536056 | Y63: =IF('Annual Parameters Source'!AE60="","-",'Annual Parameters Source'!AE60) -> -0.86536056 | Z63: =IF('Annual Parameters Source'!AF60="","-",'Annual Parameters Source'!AF60) -> 109.6013819 | AA63: =IF('Annual Parameters Source'!AG60="","-",'Annual Parameters Source'!AG60) -> 109.6013819 | AB63: =_xlfn.IFNA(INDEX('VoT7'!$U$38:$U$127,MATCH('Annual Parameters'!B63,'VoT7'!$A$38:$A$127,0)),"-") -> - | AC63: =_xlfn.IFNA(INDEX('VoT7'!$V$38:$V$127,MATCH('Annual Parameters'!B63,'VoT7'!$A$38:$A$127,0)),"-") -> - | AD63: =_xlfn.IFNA(INDEX('VoT7'!$AF$38:$AF$127,MATCH('Annual Parameters'!B63,'VoT7'!$A$38:$A$127,0)),"-") -> - | AE63: =_xlfn.IFNA(INDEX('VoT7'!$AG$38:$AG$127,MATCH('Annual Parameters'!B63,'VoT7'!$A$38:$A$127,0)),"-") -> - | AF63: =_xlfn.IFNA(INDEX('VoT7'!$E$38:$E$127,MATCH('Annual Parameters'!B63,'VoT7'!$A$38:$A$127,0)),"-") -> - | AG63: =_xlfn.IFNA(INDEX('VoT7'!$J$38:$J$127,MATCH('Annual Parameters'!B63,'VoT7'!$A$38:$A$127,0)),"-") -> - | AH63: =_xlfn.IFNA(INDEX('VoT7'!$F$38:$F$127,MATCH('Annual Parameters'!B63,'VoT7'!$A$38:$A$127,0)),"-") -> - | AI63: =_xlfn.IFNA(INDEX('VoT7'!$K$38:$K$127,MATCH('Annual Parameters'!B63,'VoT7'!$A$38:$A$127,0)),"-") -> - | AJ63: =IF('Annual Parameters Source'!J60="","-",'Annual Parameters Source'!J60) -> - | AK63: =IF('Annual Parameters Source'!K60="","-",'Annual Parameters Source'!K60) -> -
B64: 2009 | D64: =IF('Annual Parameters Source'!D61="","-",'Annual Parameters Source'!D61/VLOOKUP($B$14,'Annual Parameters Source'!$B$42:$D$152,3,1)*100) -> 70.87432518 | E64: =IF('Annual Parameters Source'!E61="","-",VLOOKUP($B$16,'Annual Parameters Source'!$B$42:$AH$156,33,FALSE)/VLOOKUP($B$16,'Annual Parameters Source'!$B$42:$AH$156,4,FALSE)*'Annual Parameters Source'!E61) -> 2200222 | F64: =IF('Annual Parameters Source'!F61="","-",'Annual Parameters Source'!F61) -> -4.587408196 | G64: =IF('Annual Parameters Source'!G61="","-",'Annual Parameters Source'!G61) -> 145.2098136 | H64: =IF('Annual Parameters Source'!H61="","-",'Annual Parameters Source'!H61) -> 62260.5 | I64: =IF('Annual Parameters Source'!I61="","-",'Annual Parameters Source'!I61) -> 0.7063622747 | J64: =IF('Annual Parameters Source'!L61="","-",'Annual Parameters Source'!L61) -> 108.7757152 | K64: =IF('Annual Parameters Source'!M61="","-",'Annual Parameters Source'!M61) -> 26042 | L64: =IF('Annual Parameters Source'!N61="","-",'Annual Parameters Source'!N61) -> 0.645410628 | M64: =IF('Annual Parameters Source'!O61="","-",'Annual Parameters Source'!O61) -> 109.7059567 | N64: =IF('Annual Parameters Source'!P61="","-",'Annual Parameters Source'!P61) -> 35338.97094 | O64: =IF('Annual Parameters Source'!Q61="","-",'Annual Parameters Source'!Q61) -> -5.256639552 | P64: =IF('Annual Parameters Source'!R61="","-",'Annual Parameters Source'!R61) -> 133.494699 | Q64: =IF('Annual Parameters Source'!S61="","-",'Annual Parameters Source'!S61) -> 84487.44336 | R64: =IF('Annual Parameters Source'!T61="","-",'Annual Parameters Source'!T61) -> -5.199262233 | S64: =IF('Annual Parameters Source'!U61="","-",'Annual Parameters Source'!U61) -> 120.4538683 | T64: =IF('Annual Parameters Source'!V61="","-",'Annual Parameters Source'!V61) -> -5.256639552 | U64: =IF('Annual Parameters Source'!W61="","-",'Annual Parameters Source'!W61) -> -5.256639552 | V64: =IF('Annual Parameters Source'!X61="","-",'Annual Parameters Source'!X61) -> 103.8400323 | W64: =IF('Annual Parameters Source'!Y61="","-",'Annual Parameters Source'!Y61) -> 103.8400323 | X64: =IF('Annual Parameters Source'!AD61="","-",'Annual Parameters Source'!AD61) -> -5.256639552 | Y64: =IF('Annual Parameters Source'!AE61="","-",'Annual Parameters Source'!AE61) -> -5.256639552 | Z64: =IF('Annual Parameters Source'!AF61="","-",'Annual Parameters Source'!AF61) -> 103.8400323 | AA64: =IF('Annual Parameters Source'!AG61="","-",'Annual Parameters Source'!AG61) -> 103.8400323 | AB64: =_xlfn.IFNA(INDEX('VoT7'!$U$38:$U$127,MATCH('Annual Parameters'!B64,'VoT7'!$A$38:$A$127,0)),"-") -> - | AC64: =_xlfn.IFNA(INDEX('VoT7'!$V$38:$V$127,MATCH('Annual Parameters'!B64,'VoT7'!$A$38:$A$127,0)),"-") -> - | AD64: =_xlfn.IFNA(INDEX('VoT7'!$AF$38:$AF$127,MATCH('Annual Parameters'!B64,'VoT7'!$A$38:$A$127,0)),"-") -> - | AE64: =_xlfn.IFNA(INDEX('VoT7'!$AG$38:$AG$127,MATCH('Annual Parameters'!B64,'VoT7'!$A$38:$A$127,0)),"-") -> - | AF64: =_xlfn.IFNA(INDEX('VoT7'!$E$38:$E$127,MATCH('Annual Parameters'!B64,'VoT7'!$A$38:$A$127,0)),"-") -> - | AG64: =_xlfn.IFNA(INDEX('VoT7'!$J$38:$J$127,MATCH('Annual Parameters'!B64,'VoT7'!$A$38:$A$127,0)),"-") -> - | AH64: =_xlfn.IFNA(INDEX('VoT7'!$F$38:$F$127,MATCH('Annual Parameters'!B64,'VoT7'!$A$38:$A$127,0)),"-") -> - | AI64: =_xlfn.IFNA(INDEX('VoT7'!$K$38:$K$127,MATCH('Annual Parameters'!B64,'VoT7'!$A$38:$A$127,0)),"-") -> - | AJ64: =IF('Annual Parameters Source'!J61="","-",'Annual Parameters Source'!J61) -> - | AK64: =IF('Annual Parameters Source'!K61="","-",'Annual Parameters Source'!K61) -> -
B65: 2010 | D65: =IF('Annual Parameters Source'!D62="","-",'Annual Parameters Source'!D62/VLOOKUP($B$14,'Annual Parameters Source'!$B$42:$D$152,3,1)*100) -> 71.81427325 | E65: =IF('Annual Parameters Source'!E62="","-",VLOOKUP($B$16,'Annual Parameters Source'!$B$42:$AH$156,33,FALSE)/VLOOKUP($B$16,'Annual Parameters Source'!$B$42:$AH$156,4,FALSE)*'Annual Parameters Source'!E62) -> 2249959 | F65: =IF('Annual Parameters Source'!F62="","-",'Annual Parameters Source'!F62) -> 2.260544618 | G65: =IF('Annual Parameters Source'!G62="","-",'Annual Parameters Source'!G62) -> 148.4923462 | H65: =IF('Annual Parameters Source'!H62="","-",'Annual Parameters Source'!H62) -> 62759.5 | I65: =IF('Annual Parameters Source'!I62="","-",'Annual Parameters Source'!I62) -> 0.8014712378 | J65: =IF('Annual Parameters Source'!L62="","-",'Annual Parameters Source'!L62) -> 109.6475213 | K65: =IF('Annual Parameters Source'!M62="","-",'Annual Parameters Source'!M62) -> 26240 | L65: =IF('Annual Parameters Source'!N62="","-",'Annual Parameters Source'!N62) -> 0.760310268 | M65: =IF('Annual Parameters Source'!O62="","-",'Annual Parameters Source'!O62) -> 110.5400623 | N65: =IF('Annual Parameters Source'!P62="","-",'Annual Parameters Source'!P62) -> 35850.49275 | O65: =IF('Annual Parameters Source'!Q62="","-",'Annual Parameters Source'!Q62) -> 1.447472306 | P65: =IF('Annual Parameters Source'!R62="","-",'Annual Parameters Source'!R62) -> 135.4269978 | Q65: =IF('Annual Parameters Source'!S62="","-",'Annual Parameters Source'!S62) -> 85745.38872 | R65: =IF('Annual Parameters Source'!T62="","-",'Annual Parameters Source'!T62) -> 1.488913984 | S65: =IF('Annual Parameters Source'!U62="","-",'Annual Parameters Source'!U62) -> 122.2473228 | T65: =IF('Annual Parameters Source'!V62="","-",'Annual Parameters Source'!V62) -> 1.447472306 | U65: =IF('Annual Parameters Source'!W62="","-",'Annual Parameters Source'!W62) -> 1.447472306 | V65: =IF('Annual Parameters Source'!X62="","-",'Annual Parameters Source'!X62) -> 105.343088 | W65: =IF('Annual Parameters Source'!Y62="","-",'Annual Parameters Source'!Y62) -> 105.343088 | X65: =IF('Annual Parameters Source'!AD62="","-",'Annual Parameters Source'!AD62) -> 1.447472306 | Y65: =IF('Annual Parameters Source'!AE62="","-",'Annual Parameters Source'!AE62) -> 1.447472306 | Z65: =IF('Annual Parameters Source'!AF62="","-",'Annual Parameters Source'!AF62) -> 105.343088 | AA65: =IF('Annual Parameters Source'!AG62="","-",'Annual Parameters Source'!AG62) -> 105.343088 | AB65: =_xlfn.IFNA(INDEX('VoT7'!$U$38:$U$127,MATCH('Annual Parameters'!B65,'VoT7'!$A$38:$A$127,0)),"-") -> 0 | AC65: =_xlfn.IFNA(INDEX('VoT7'!$V$38:$V$127,MATCH('Annual Parameters'!B65,'VoT7'!$A$38:$A$127,0)),"-") -> 100 | AD65: =_xlfn.IFNA(INDEX('VoT7'!$AF$38:$AF$127,MATCH('Annual Parameters'!B65,'VoT7'!$A$38:$A$127,0)),"-") -> 0 | AE65: =_xlfn.IFNA(INDEX('VoT7'!$AG$38:$AG$127,MATCH('Annual Parameters'!B65,'VoT7'!$A$38:$A$127,0)),"-") -> 100 | AF65: =_xlfn.IFNA(INDEX('VoT7'!$E$38:$E$127,MATCH('Annual Parameters'!B65,'VoT7'!$A$38:$A$127,0)),"-") -> 0 | AG65: =_xlfn.IFNA(INDEX('VoT7'!$J$38:$J$127,MATCH('Annual Parameters'!B65,'VoT7'!$A$38:$A$127,0)),"-") -> 0 | AH65: =_xlfn.IFNA(INDEX('VoT7'!$F$38:$F$127,MATCH('Annual Parameters'!B65,'VoT7'!$A$38:$A$127,0)),"-") -> 100 | AI65: =_xlfn.IFNA(INDEX('VoT7'!$K$38:$K$127,MATCH('Annual Parameters'!B65,'VoT7'!$A$38:$A$127,0)),"-") -> 100 | AJ65: =IF('Annual Parameters Source'!J62="","-",'Annual Parameters Source'!J62) -> - | AK65: =IF('Annual Parameters Source'!K62="","-",'Annual Parameters Source'!K62) -> -
B66: 2011 | D66: =IF('Annual Parameters Source'!D63="","-",'Annual Parameters Source'!D63/VLOOKUP($B$14,'Annual Parameters Source'!$B$42:$D$152,3,1)*100) -> 73.59320281 | E66: =IF('Annual Parameters Source'!E63="","-",VLOOKUP($B$16,'Annual Parameters Source'!$B$42:$AH$156,33,FALSE)/VLOOKUP($B$16,'Annual Parameters Source'!$B$42:$AH$156,4,FALSE)*'Annual Parameters Source'!E63) -> 2269116 | F66: =IF('Annual Parameters Source'!F63="","-",'Annual Parameters Source'!F63) -> 0.8514377373 | G66: =IF('Annual Parameters Source'!G63="","-",'Annual Parameters Source'!G63) -> 149.7566661 | H66: =IF('Annual Parameters Source'!H63="","-",'Annual Parameters Source'!H63) -> 63285.1 | I66: =IF('Annual Parameters Source'!I63="","-",'Annual Parameters Source'!I63) -> 0.8374827715 | J66: =IF('Annual Parameters Source'!L63="","-",'Annual Parameters Source'!L63) -> 110.5658004 | K66: =IF('Annual Parameters Source'!M63="","-",'Annual Parameters Source'!M63) -> 26409 | L66: =IF('Annual Parameters Source'!N63="","-",'Annual Parameters Source'!N63) -> 0.644054878 | M66: =IF('Annual Parameters Source'!O63="","-",'Annual Parameters Source'!O63) -> 111.252001 | N66: =IF('Annual Parameters Source'!P63="","-",'Annual Parameters Source'!P63) -> 35855.45413 | O66: =IF('Annual Parameters Source'!Q63="","-",'Annual Parameters Source'!Q63) -> 0.01383906598 | P66: =IF('Annual Parameters Source'!R63="","-",'Annual Parameters Source'!R63) -> 135.4457396 | Q66: =IF('Annual Parameters Source'!S63="","-",'Annual Parameters Source'!S63) -> 85922.07202 | R66: =IF('Annual Parameters Source'!T63="","-",'Annual Parameters Source'!T63) -> 0.2060557472 | S66: =IF('Annual Parameters Source'!U63="","-",'Annual Parameters Source'!U63) -> 122.4992205 | T66: =IF('Annual Parameters Source'!V63="","-",'Annual Parameters Source'!V63) -> 0.01383906598 | U66: =IF('Annual Parameters Source'!W63="","-",'Annual Parameters Source'!W63) -> 0.01383906598 | V66: =IF('Annual Parameters Source'!X63="","-",'Annual Parameters Source'!X63) -> 105.3576665 | W66: =IF('Annual Parameters Source'!Y63="","-",'Annual Parameters Source'!Y63) -> 105.3576665 | X66: =IF('Annual Parameters Source'!AD63="","-",'Annual Parameters Source'!AD63) -> 0.01383906598 | Y66: =IF('Annual Parameters Source'!AE63="","-",'Annual Parameters Source'!AE63) -> 0.01383906598 | Z66: =IF('Annual Parameters Source'!AF63="","-",'Annual Parameters Source'!AF63) -> 105.3576665 | AA66: =IF('Annual Parameters Source'!AG63="","-",'Annual Parameters Source'!AG63) -> 105.3576665 | AB66: =_xlfn.IFNA(INDEX('VoT7'!$U$38:$U$127,MATCH('Annual Parameters'!B66,'VoT7'!$A$38:$A$127,0)),"-") -> -0.1413133796 | AC66: =_xlfn.IFNA(INDEX('VoT7'!$V$38:$V$127,MATCH('Annual Parameters'!B66,'VoT7'!$A$38:$A$127,0)),"-") -> 99.85868662 | AD66: =_xlfn.IFNA(INDEX('VoT7'!$AF$38:$AF$127,MATCH('Annual Parameters'!B66,'VoT7'!$A$38:$A$127,0)),"-") -> -0.1413133796 | AE66: =_xlfn.IFNA(INDEX('VoT7'!$AG$38:$AG$127,MATCH('Annual Parameters'!B66,'VoT7'!$A$38:$A$127,0)),"-") -> 99.85868662 | AF66: =_xlfn.IFNA(INDEX('VoT7'!$E$38:$E$127,MATCH('Annual Parameters'!B66,'VoT7'!$A$38:$A$127,0)),"-") -> -0.5095374723 | AG66: =_xlfn.IFNA(INDEX('VoT7'!$J$38:$J$127,MATCH('Annual Parameters'!B66,'VoT7'!$A$38:$A$127,0)),"-") -> -0.1606728728 | AH66: =_xlfn.IFNA(INDEX('VoT7'!$F$38:$F$127,MATCH('Annual Parameters'!B66,'VoT7'!$A$38:$A$127,0)),"-") -> 99.49046253 | AI66: =_xlfn.IFNA(INDEX('VoT7'!$K$38:$K$127,MATCH('Annual Parameters'!B66,'VoT7'!$A$38:$A$127,0)),"-") -> 99.83932713 | AJ66: =IF('Annual Parameters Source'!J63="","-",'Annual Parameters Source'!J63) -> - | AK66: =IF('Annual Parameters Source'!K63="","-",'Annual Parameters Source'!K63) -> -
B67: 2012 | D67: =IF('Annual Parameters Source'!D64="","-",'Annual Parameters Source'!D64/VLOOKUP($B$14,'Annual Parameters Source'!$B$42:$D$152,3,1)*100) -> 74.73131257 | E67: =IF('Annual Parameters Source'!E64="","-",VLOOKUP($B$16,'Annual Parameters Source'!$B$42:$AH$156,33,FALSE)/VLOOKUP($B$16,'Annual Parameters Source'!$B$42:$AH$156,4,FALSE)*'Annual Parameters Source'!E64) -> 2303794 | F67: =IF('Annual Parameters Source'!F64="","-",'Annual Parameters Source'!F64) -> 1.528260345 | G67: =IF('Annual Parameters Source'!G64="","-",'Annual Parameters Source'!G64) -> 152.0453378 | H67: =IF('Annual Parameters Source'!H64="","-",'Annual Parameters Source'!H64) -> 63710.5 | I67: =IF('Annual Parameters Source'!I64="","-",'Annual Parameters Source'!I64) -> 0.672196141 | J67: =IF('Annual Parameters Source'!L64="","-",'Annual Parameters Source'!L64) -> 111.3090194 | K67: =IF('Annual Parameters Source'!M64="","-",'Annual Parameters Source'!M64) -> 26620 | L67: =IF('Annual Parameters Source'!N64="","-",'Annual Parameters Source'!N64) -> 0.7989700481 | M67: =IF('Annual Parameters Source'!O64="","-",'Annual Parameters Source'!O64) -> 112.1408712 | N67: =IF('Annual Parameters Source'!P64="","-",'Annual Parameters Source'!P64) -> 36160.35033 | O67: =IF('Annual Parameters Source'!Q64="","-",'Annual Parameters Source'!Q64) -> 0.8503481958 | P67: =IF('Annual Parameters Source'!R64="","-",'Annual Parameters Source'!R64) -> 136.5975 | Q67: =IF('Annual Parameters Source'!S64="","-",'Annual Parameters Source'!S64) -> 86543.72652 | R67: =IF('Annual Parameters Source'!T64="","-",'Annual Parameters Source'!T64) -> 0.7235096709 | S67: =IF('Annual Parameters Source'!U64="","-",'Annual Parameters Source'!U64) -> 123.3855142 | T67: =IF('Annual Parameters Source'!V64="","-",'Annual Parameters Source'!V64) -> 0.8503481958 | U67: =IF('Annual Parameters Source'!W64="","-",'Annual Parameters Source'!W64) -> 0.8503481958 | V67: =IF('Annual Parameters Source'!X64="","-",'Annual Parameters Source'!X64) -> 106.2535735 | W67: =IF('Annual Parameters Source'!Y64="","-",'Annual Parameters Source'!Y64) -> 106.2535735 | X67: =IF('Annual Parameters Source'!AD64="","-",'Annual Parameters Source'!AD64) -> 0.8503481958 | Y67: =IF('Annual Parameters Source'!AE64="","-",'Annual Parameters Source'!AE64) -> 0.8503481958 | Z67: =IF('Annual Parameters Source'!AF64="","-",'Annual Parameters Source'!AF64) -> 106.2535735 | AA67: =IF('Annual Parameters Source'!AG64="","-",'Annual Parameters Source'!AG64) -> 106.2535735 | AB67: =_xlfn.IFNA(INDEX('VoT7'!$U$38:$U$127,MATCH('Annual Parameters'!B67,'VoT7'!$A$38:$A$127,0)),"-") -> 0.3577915472 | AC67: =_xlfn.IFNA(INDEX('VoT7'!$V$38:$V$127,MATCH('Annual Parameters'!B67,'VoT7'!$A$38:$A$127,0)),"-") -> 100.2159726 | AD67: =_xlfn.IFNA(INDEX('VoT7'!$AF$38:$AF$127,MATCH('Annual Parameters'!B67,'VoT7'!$A$38:$A$127,0)),"-") -> 0.3577915472 | AE67: =_xlfn.IFNA(INDEX('VoT7'!$AG$38:$AG$127,MATCH('Annual Parameters'!B67,'VoT7'!$A$38:$A$127,0)),"-") -> 100.2159726 | AF67: =_xlfn.IFNA(INDEX('VoT7'!$E$38:$E$127,MATCH('Annual Parameters'!B67,'VoT7'!$A$38:$A$127,0)),"-") -> -0.8173452057 | AG67: =_xlfn.IFNA(INDEX('VoT7'!$J$38:$J$127,MATCH('Annual Parameters'!B67,'VoT7'!$A$38:$A$127,0)),"-") -> -0.2568335499 | AH67: =_xlfn.IFNA(INDEX('VoT7'!$F$38:$F$127,MATCH('Annual Parameters'!B67,'VoT7'!$A$38:$A$127,0)),"-") -> 98.677282 | AI67: =_xlfn.IFNA(INDEX('VoT7'!$K$38:$K$127,MATCH('Annual Parameters'!B67,'VoT7'!$A$38:$A$127,0)),"-") -> 99.58290624 | AJ67: =IF('Annual Parameters Source'!J64="","-",'Annual Parameters Source'!J64) -> - | AK67: =IF('Annual Parameters Source'!K64="","-",'Annual Parameters Source'!K64) -> -
B68: 2013 | D68: =IF('Annual Parameters Source'!D65="","-",'Annual Parameters Source'!D65/VLOOKUP($B$14,'Annual Parameters Source'!$B$42:$D$152,3,1)*100) -> 76.34171309 | E68: =IF('Annual Parameters Source'!E65="","-",VLOOKUP($B$16,'Annual Parameters Source'!$B$42:$AH$156,33,FALSE)/VLOOKUP($B$16,'Annual Parameters Source'!$B$42:$AH$156,4,FALSE)*'Annual Parameters Source'!E65) -> 2343384 | F68: =IF('Annual Parameters Source'!F65="","-",'Annual Parameters Source'!F65) -> 1.71846962 | G68: =IF('Annual Parameters Source'!G65="","-",'Annual Parameters Source'!G65) -> 154.6581908 | H68: =IF('Annual Parameters Source'!H65="","-",'Annual Parameters Source'!H65) -> 64138.2 | I68: =IF('Annual Parameters Source'!I65="","-",'Annual Parameters Source'!I65) -> 0.6713179146 | J68: =IF('Annual Parameters Source'!L65="","-",'Annual Parameters Source'!L65) -> 112.0562568 | K68: =IF('Annual Parameters Source'!M65="","-",'Annual Parameters Source'!M65) -> 26663 | L68: =IF('Annual Parameters Source'!N65="","-",'Annual Parameters Source'!N65) -> 0.1615326822 | M68: =IF('Annual Parameters Source'!O65="","-",'Annual Parameters Source'!O65) -> 112.3220153 | N68: =IF('Annual Parameters Source'!P65="","-",'Annual Parameters Source'!P65) -> 36536.47904 | O68: =IF('Annual Parameters Source'!Q65="","-",'Annual Parameters Source'!Q65) -> 1.040168866 | P68: =IF('Annual Parameters Source'!R65="","-",'Annual Parameters Source'!R65) -> 138.0183447 | Q68: =IF('Annual Parameters Source'!S65="","-",'Annual Parameters Source'!S65) -> 87888.98474 | R68: =IF('Annual Parameters Source'!T65="","-",'Annual Parameters Source'!T65) -> 1.554426032 | S68: =IF('Annual Parameters Source'!U65="","-",'Annual Parameters Source'!U65) -> 125.3034507 | T68: =IF('Annual Parameters Source'!V65="","-",'Annual Parameters Source'!V65) -> 1.040168866 | U68: =IF('Annual Parameters Source'!W65="","-",'Annual Parameters Source'!W65) -> 1.040168866 | V68: =IF('Annual Parameters Source'!X65="","-",'Annual Parameters Source'!X65) -> 107.3587901 | W68: =IF('Annual Parameters Source'!Y65="","-",'Annual Parameters Source'!Y65) -> 107.3587901 | X68: =IF('Annual Parameters Source'!AD65="","-",'Annual Parameters Source'!AD65) -> 1.040168866 | Y68: =IF('Annual Parameters Source'!AE65="","-",'Annual Parameters Source'!AE65) -> 1.040168866 | Z68: =IF('Annual Parameters Source'!AF65="","-",'Annual Parameters Source'!AF65) -> 107.3587901 | AA68: =IF('Annual Parameters Source'!AG65="","-",'Annual Parameters Source'!AG65) -> 107.3587901 | AB68: =_xlfn.IFNA(INDEX('VoT7'!$U$38:$U$127,MATCH('Annual Parameters'!B68,'VoT7'!$A$38:$A$127,0)),"-") -> 1.26010181 | AC68: =_xlfn.IFNA(INDEX('VoT7'!$V$38:$V$127,MATCH('Annual Parameters'!B68,'VoT7'!$A$38:$A$127,0)),"-") -> 101.4787958 | AD68: =_xlfn.IFNA(INDEX('VoT7'!$AF$38:$AF$127,MATCH('Annual Parameters'!B68,'VoT7'!$A$38:$A$127,0)),"-") -> 1.26010181 | AE68: =_xlfn.IFNA(INDEX('VoT7'!$AG$38:$AG$127,MATCH('Annual Parameters'!B68,'VoT7'!$A$38:$A$127,0)),"-") -> 101.4787958 | AF68: =_xlfn.IFNA(INDEX('VoT7'!$E$38:$E$127,MATCH('Annual Parameters'!B68,'VoT7'!$A$38:$A$127,0)),"-") -> 1.793638371 | AG68: =_xlfn.IFNA(INDEX('VoT7'!$J$38:$J$127,MATCH('Annual Parameters'!B68,'VoT7'!$A$38:$A$127,0)),"-") -> 0.5604459029 | AH68: =_xlfn.IFNA(INDEX('VoT7'!$F$38:$F$127,MATCH('Annual Parameters'!B68,'VoT7'!$A$38:$A$127,0)),"-") -> 100.4471956 | AI68: =_xlfn.IFNA(INDEX('VoT7'!$K$38:$K$127,MATCH('Annual Parameters'!B68,'VoT7'!$A$38:$A$127,0)),"-") -> 100.1410146 | AJ68: =IF('Annual Parameters Source'!J65="","-",'Annual Parameters Source'!J65) -> - | AK68: =IF('Annual Parameters Source'!K65="","-",'Annual Parameters Source'!K65) -> -
B69: 2014 | D69: =IF('Annual Parameters Source'!D66="","-",'Annual Parameters Source'!D66/VLOOKUP($B$14,'Annual Parameters Source'!$B$42:$D$152,3,1)*100) -> 77.56031594 | E69: =IF('Annual Parameters Source'!E66="","-",VLOOKUP($B$16,'Annual Parameters Source'!$B$42:$AH$156,33,FALSE)/VLOOKUP($B$16,'Annual Parameters Source'!$B$42:$AH$156,4,FALSE)*'Annual Parameters Source'!E66) -> 2417439 | F69: =IF('Annual Parameters Source'!F66="","-",'Annual Parameters Source'!F66) -> 3.160173493 | G69: =IF('Annual Parameters Source'!G66="","-",'Annual Parameters Source'!G66) -> 159.5456579 | H69: =IF('Annual Parameters Source'!H66="","-",'Annual Parameters Source'!H66) -> 64618.7 | I69: =IF('Annual Parameters Source'!I66="","-",'Annual Parameters Source'!I66) -> 0.749163525 | J69: =IF('Annual Parameters Source'!L66="","-",'Annual Parameters Source'!L66) -> 112.8957414 | K69: =IF('Annual Parameters Source'!M66="","-",'Annual Parameters Source'!M66) -> 26734 | L69: =IF('Annual Parameters Source'!N66="","-",'Annual Parameters Source'!N66) -> 0.2662866144 | M69: =IF('Annual Parameters Source'!O66="","-",'Annual Parameters Source'!O66) -> 112.6211138 | N69: =IF('Annual Parameters Source'!P66="","-",'Annual Parameters Source'!P66) -> 37410.8269 | O69: =IF('Annual Parameters Source'!Q66="","-",'Annual Parameters Source'!Q66) -> 2.393081871 | P69: =IF('Annual Parameters Source'!R66="","-",'Annual Parameters Source'!R66) -> 141.3212367 | Q69: =IF('Annual Parameters Source'!S66="","-",'Annual Parameters Source'!S66) -> 90425.63776 | R69: =IF('Annual Parameters Source'!T66="","-",'Annual Parameters Source'!T66) -> 2.886201311 | S69: =IF('Annual Parameters Source'!U66="","-",'Annual Parameters Source'!U66) -> 128.9199606 | T69: =IF('Annual Parameters Source'!V66="","-",'Annual Parameters Source'!V66) -> 2.393081871 | U69: =IF('Annual Parameters Source'!W66="","-",'Annual Parameters Source'!W66) -> 2.393081871 | V69: =IF('Annual Parameters Source'!X66="","-",'Annual Parameters Source'!X66) -> 109.9279739 | W69: =IF('Annual Parameters Source'!Y66="","-",'Annual Parameters Source'!Y66) -> 109.9279739 | X69: =IF('Annual Parameters Source'!AD66="","-",'Annual Parameters Source'!AD66) -> 2.393081871 | Y69: =IF('Annual Parameters Source'!AE66="","-",'Annual Parameters Source'!AE66) -> 2.393081871 | Z69: =IF('Annual Parameters Source'!AF66="","-",'Annual Parameters Source'!AF66) -> 109.9279739 | AA69: =IF('Annual Parameters Source'!AG66="","-",'Annual Parameters Source'!AG66) -> 109.9279739 | AB69: =_xlfn.IFNA(INDEX('VoT7'!$U$38:$U$127,MATCH('Annual Parameters'!B69,'VoT7'!$A$38:$A$127,0)),"-") -> 1.526893862 | AC69: =_xlfn.IFNA(INDEX('VoT7'!$V$38:$V$127,MATCH('Annual Parameters'!B69,'VoT7'!$A$38:$A$127,0)),"-") -> 103.0282693 | AD69: =_xlfn.IFNA(INDEX('VoT7'!$AF$38:$AF$127,MATCH('Annual Parameters'!B69,'VoT7'!$A$38:$A$127,0)),"-") -> 1.526893862 | AE69: =_xlfn.IFNA(INDEX('VoT7'!$AG$38:$AG$127,MATCH('Annual Parameters'!B69,'VoT7'!$A$38:$A$127,0)),"-") -> 103.0282693 | AF69: =_xlfn.IFNA(INDEX('VoT7'!$E$38:$E$127,MATCH('Annual Parameters'!B69,'VoT7'!$A$38:$A$127,0)),"-") -> -0.5588428743 | AG69: =_xlfn.IFNA(INDEX('VoT7'!$J$38:$J$127,MATCH('Annual Parameters'!B69,'VoT7'!$A$38:$A$127,0)),"-") -> -0.1767591796 | AH69: =_xlfn.IFNA(INDEX('VoT7'!$F$38:$F$127,MATCH('Annual Parameters'!B69,'VoT7'!$A$38:$A$127,0)),"-") -> 99.8858536 | AI69: =_xlfn.IFNA(INDEX('VoT7'!$K$38:$K$127,MATCH('Annual Parameters'!B69,'VoT7'!$A$38:$A$127,0)),"-") -> 99.96400612 | AJ69: =IF('Annual Parameters Source'!J66="","-",'Annual Parameters Source'!J66) -> - | AK69: =IF('Annual Parameters Source'!K66="","-",'Annual Parameters Source'!K66) -> -
B70: 2015 | D70: =IF('Annual Parameters Source'!D67="","-",'Annual Parameters Source'!D67/VLOOKUP($B$14,'Annual Parameters Source'!$B$42:$D$152,3,1)*100) -> 78.08120427 | E70: =IF('Annual Parameters Source'!E67="","-",VLOOKUP($B$16,'Annual Parameters Source'!$B$42:$AH$156,33,FALSE)/VLOOKUP($B$16,'Annual Parameters Source'!$B$42:$AH$156,4,FALSE)*'Annual Parameters Source'!E67) -> 2469182 | F70: =IF('Annual Parameters Source'!F67="","-",'Annual Parameters Source'!F67) -> 2.140405611 | G70: =IF('Annual Parameters Source'!G67="","-",'Annual Parameters Source'!G67) -> 162.9605822 | H70: =IF('Annual Parameters Source'!H67="","-",'Annual Parameters Source'!H67) -> 65087 | I70: =IF('Annual Parameters Source'!I67="","-",'Annual Parameters Source'!I67) -> 0.7247128153 | J70: =IF('Annual Parameters Source'!L67="","-",'Annual Parameters Source'!L67) -> 113.7139113 | K70: =IF('Annual Parameters Source'!M67="","-",'Annual Parameters Source'!M67) -> 27046 | L70: =IF('Annual Parameters Source'!N67="","-",'Annual Parameters Source'!N67) -> 1.167053191 | M70: =IF('Annual Parameters Source'!O67="","-",'Annual Parameters Source'!O67) -> 113.9354621 | N70: =IF('Annual Parameters Source'!P67="","-",'Annual Parameters Source'!P67) -> 37936.63865 | O70: =IF('Annual Parameters Source'!Q67="","-",'Annual Parameters Source'!Q67) -> 1.405506907 | P70: =IF('Annual Parameters Source'!R67="","-",'Annual Parameters Source'!R67) -> 143.3075164 | Q70: =IF('Annual Parameters Source'!S67="","-",'Annual Parameters Source'!S67) -> 91295.64446 | R70: =IF('Annual Parameters Source'!T67="","-",'Annual Parameters Source'!T67) -> 0.9621239224 | S70: =IF('Annual Parameters Source'!U67="","-",'Annual Parameters Source'!U67) -> 130.1603303 | T70: =IF('Annual Parameters Source'!V67="","-",'Annual Parameters Source'!V67) -> 1.405506907 | U70: =IF('Annual Parameters Source'!W67="","-",'Annual Parameters Source'!W67) -> 1.405506907 | V70: =IF('Annual Parameters Source'!X67="","-",'Annual Parameters Source'!X67) -> 111.4730191 | W70: =IF('Annual Parameters Source'!Y67="","-",'Annual Parameters Source'!Y67) -> 111.4730191 | X70: =IF('Annual Parameters Source'!AD67="","-",'Annual Parameters Source'!AD67) -> 1.405506907 | Y70: =IF('Annual Parameters Source'!AE67="","-",'Annual Parameters Source'!AE67) -> 1.405506907 | Z70: =IF('Annual Parameters Source'!AF67="","-",'Annual Parameters Source'!AF67) -> 111.4730191 | AA70: =IF('Annual Parameters Source'!AG67="","-",'Annual Parameters Source'!AG67) -> 111.4730191 | AB70: =_xlfn.IFNA(INDEX('VoT7'!$U$38:$U$127,MATCH('Annual Parameters'!B70,'VoT7'!$A$38:$A$127,0)),"-") -> 1.283870605 | AC70: =_xlfn.IFNA(INDEX('VoT7'!$V$38:$V$127,MATCH('Annual Parameters'!B70,'VoT7'!$A$38:$A$127,0)),"-") -> 104.351019 | AD70: =_xlfn.IFNA(INDEX('VoT7'!$AF$38:$AF$127,MATCH('Annual Parameters'!B70,'VoT7'!$A$38:$A$127,0)),"-") -> 1.283870605 | AE70: =_xlfn.IFNA(INDEX('VoT7'!$AG$38:$AG$127,MATCH('Annual Parameters'!B70,'VoT7'!$A$38:$A$127,0)),"-") -> 104.351019 | AF70: =_xlfn.IFNA(INDEX('VoT7'!$E$38:$E$127,MATCH('Annual Parameters'!B70,'VoT7'!$A$38:$A$127,0)),"-") -> 0.9822819665 | AG70: =_xlfn.IFNA(INDEX('VoT7'!$J$38:$J$127,MATCH('Annual Parameters'!B70,'VoT7'!$A$38:$A$127,0)),"-") -> 0.3095016256 | AH70: =_xlfn.IFNA(INDEX('VoT7'!$F$38:$F$127,MATCH('Annual Parameters'!B70,'VoT7'!$A$38:$A$127,0)),"-") -> 100.8670143 | AI70: =_xlfn.IFNA(INDEX('VoT7'!$K$38:$K$127,MATCH('Annual Parameters'!B70,'VoT7'!$A$38:$A$127,0)),"-") -> 100.2733963 | AJ70: =IF('Annual Parameters Source'!J67="","-",'Annual Parameters Source'!J67) -> - | AK70: =IF('Annual Parameters Source'!K67="","-",'Annual Parameters Source'!K67) -> -
B71: 2016 | D71: =IF('Annual Parameters Source'!D68="","-",'Annual Parameters Source'!D68/VLOOKUP($B$14,'Annual Parameters Source'!$B$42:$D$152,3,1)*100) -> 79.433639 | E71: =IF('Annual Parameters Source'!E68="","-",VLOOKUP($B$16,'Annual Parameters Source'!$B$42:$AH$156,33,FALSE)/VLOOKUP($B$16,'Annual Parameters Source'!$B$42:$AH$156,4,FALSE)*'Annual Parameters Source'!E68) -> 2523665 | F71: =IF('Annual Parameters Source'!F68="","-",'Annual Parameters Source'!F68) -> 2.206520216 | G71: =IF('Annual Parameters Source'!G68="","-",'Annual Parameters Source'!G68) -> 166.5563403 | H71: =IF('Annual Parameters Source'!H68="","-",'Annual Parameters Source'!H68) -> 65605.8 | I71: =IF('Annual Parameters Source'!I68="","-",'Annual Parameters Source'!I68) -> 0.7970869759 | J71: =IF('Annual Parameters Source'!L68="","-",'Annual Parameters Source'!L68) -> 114.6203101 | K71: =IF('Annual Parameters Source'!M68="","-",'Annual Parameters Source'!M68) -> 27109 | L71: =IF('Annual Parameters Source'!N68="","-",'Annual Parameters Source'!N68) -> 0.2329364786 | M71: =IF('Annual Parameters Source'!O68="","-",'Annual Parameters Source'!O68) -> 114.2008594 | N71: =IF('Annual Parameters Source'!P68="","-",'Annual Parameters Source'!P68) -> 38467.10199 | O71: =IF('Annual Parameters Source'!Q68="","-",'Annual Parameters Source'!Q68) -> 1.398287671 | P71: =IF('Annual Parameters Source'!R68="","-",'Annual Parameters Source'!R68) -> 145.3113678 | Q71: =IF('Annual Parameters Source'!S68="","-",'Annual Parameters Source'!S68) -> 93093.25316 | R71: =IF('Annual Parameters Source'!T68="","-",'Annual Parameters Source'!T68) -> 1.968997225 | S71: =IF('Annual Parameters Source'!U68="","-",'Annual Parameters Source'!U68) -> 132.7231836 | T71: =IF('Annual Parameters Source'!V68="","-",'Annual Parameters Source'!V68) -> 1.398287671 | U71: =IF('Annual Parameters Source'!W68="","-",'Annual Parameters Source'!W68) -> 1.398287671 | V71: =IF('Annual Parameters Source'!X68="","-",'Annual Parameters Source'!X68) -> 113.0317326 | W71: =IF('Annual Parameters Source'!Y68="","-",'Annual Parameters Source'!Y68) -> 113.0317326 | X71: =IF('Annual Parameters Source'!AD68="","-",'Annual Parameters Source'!AD68) -> 1.398287671 | Y71: =IF('Annual Parameters Source'!AE68="","-",'Annual Parameters Source'!AE68) -> 1.398287671 | Z71: =IF('Annual Parameters Source'!AF68="","-",'Annual Parameters Source'!AF68) -> 113.0317326 | AA71: =IF('Annual Parameters Source'!AG68="","-",'Annual Parameters Source'!AG68) -> 113.0317326 | AB71: =_xlfn.IFNA(INDEX('VoT7'!$U$38:$U$127,MATCH('Annual Parameters'!B71,'VoT7'!$A$38:$A$127,0)),"-") -> 1.080755171 | AC71: =_xlfn.IFNA(INDEX('VoT7'!$V$38:$V$127,MATCH('Annual Parameters'!B71,'VoT7'!$A$38:$A$127,0)),"-") -> 105.478798 | AD71: =_xlfn.IFNA(INDEX('VoT7'!$AF$38:$AF$127,MATCH('Annual Parameters'!B71,'VoT7'!$A$38:$A$127,0)),"-") -> 1.080755171 | AE71: =_xlfn.IFNA(INDEX('VoT7'!$AG$38:$AG$127,MATCH('Annual Parameters'!B71,'VoT7'!$A$38:$A$127,0)),"-") -> 105.478798 | AF71: =_xlfn.IFNA(INDEX('VoT7'!$E$38:$E$127,MATCH('Annual Parameters'!B71,'VoT7'!$A$38:$A$127,0)),"-") -> 0.2901560797 | AG71: =_xlfn.IFNA(INDEX('VoT7'!$J$38:$J$127,MATCH('Annual Parameters'!B71,'VoT7'!$A$38:$A$127,0)),"-") -> 0.09203680757 | AH71: =_xlfn.IFNA(INDEX('VoT7'!$F$38:$F$127,MATCH('Annual Parameters'!B71,'VoT7'!$A$38:$A$127,0)),"-") -> 101.1596861 | AI71: =_xlfn.IFNA(INDEX('VoT7'!$K$38:$K$127,MATCH('Annual Parameters'!B71,'VoT7'!$A$38:$A$127,0)),"-") -> 100.3656848 | AJ71: =IF('Annual Parameters Source'!J68="","-",'Annual Parameters Source'!J68) -> - | AK71: =IF('Annual Parameters Source'!K68="","-",'Annual Parameters Source'!K68) -> -
B72: 2017 | D72: =IF('Annual Parameters Source'!D69="","-",'Annual Parameters Source'!D69/VLOOKUP($B$14,'Annual Parameters Source'!$B$42:$D$152,3,1)*100) -> 80.66097001 | E72: =IF('Annual Parameters Source'!E69="","-",VLOOKUP($B$16,'Annual Parameters Source'!$B$42:$AH$156,33,FALSE)/VLOOKUP($B$16,'Annual Parameters Source'!$B$42:$AH$156,4,FALSE)*'Annual Parameters Source'!E69) -> 2599961 | F72: =IF('Annual Parameters Source'!F69="","-",'Annual Parameters Source'!F69) -> 3.023222179 | G72: =IF('Annual Parameters Source'!G69="","-",'Annual Parameters Source'!G69) -> 171.5917086 | H72: =IF('Annual Parameters Source'!H69="","-",'Annual Parameters Source'!H69) -> 65964.3 | I72: =IF('Annual Parameters Source'!I69="","-",'Annual Parameters Source'!I69) -> 0.5464455887 | J72: =IF('Annual Parameters Source'!L69="","-",'Annual Parameters Source'!L69) -> 115.2466477 | K72: =IF('Annual Parameters Source'!M69="","-",'Annual Parameters Source'!M69) -> 27226 | L72: =IF('Annual Parameters Source'!N69="","-",'Annual Parameters Source'!N69) -> 0.4315909845 | M72: =IF('Annual Parameters Source'!O69="","-",'Annual Parameters Source'!O69) -> 114.69374 | N72: =IF('Annual Parameters Source'!P69="","-",'Annual Parameters Source'!P69) -> 39414.66824 | O72: =IF('Annual Parameters Source'!Q69="","-",'Annual Parameters Source'!Q69) -> 2.463315909 | P72: =IF('Annual Parameters Source'!R69="","-",'Annual Parameters Source'!R69) -> 148.8908458 | Q72: =IF('Annual Parameters Source'!S69="","-",'Annual Parameters Source'!S69) -> 95495.51899 | R72: =IF('Annual Parameters Source'!T69="","-",'Annual Parameters Source'!T69) -> 2.580494015 | S72: =IF('Annual Parameters Source'!U69="","-",'Annual Parameters Source'!U69) -> 136.1480974 | T72: =IF('Annual Parameters Source'!V69="","-",'Annual Parameters Source'!V69) -> 2.463315909 | U72: =IF('Annual Parameters Source'!W69="","-",'Annual Parameters Source'!W69) -> 2.463315909 | V72: =IF('Annual Parameters Source'!X69="","-",'Annual Parameters Source'!X69) -> 115.8160613 | W72: =IF('Annual Parameters Source'!Y69="","-",'Annual Parameters Source'!Y69) -> 115.8160613 | X72: =IF('Annual Parameters Source'!AD69="","-",'Annual Parameters Source'!AD69) -> 2.463315909 | Y72: =IF('Annual Parameters Source'!AE69="","-",'Annual Parameters Source'!AE69) -> 2.463315909 | Z72: =IF('Annual Parameters Source'!AF69="","-",'Annual Parameters Source'!AF69) -> 115.8160613 | AA72: =IF('Annual Parameters Source'!AG69="","-",'Annual Parameters Source'!AG69) -> 115.8160613 | AB72: =_xlfn.IFNA(INDEX('VoT7'!$U$38:$U$127,MATCH('Annual Parameters'!B72,'VoT7'!$A$38:$A$127,0)),"-") -> 2.147481968 | AC72: =_xlfn.IFNA(INDEX('VoT7'!$V$38:$V$127,MATCH('Annual Parameters'!B72,'VoT7'!$A$38:$A$127,0)),"-") -> 107.7439362 | AD72: =_xlfn.IFNA(INDEX('VoT7'!$AF$38:$AF$127,MATCH('Annual Parameters'!B72,'VoT7'!$A$38:$A$127,0)),"-") -> 2.147481968 | AE72: =_xlfn.IFNA(INDEX('VoT7'!$AG$38:$AG$127,MATCH('Annual Parameters'!B72,'VoT7'!$A$38:$A$127,0)),"-") -> 107.7439362 | AF72: =_xlfn.IFNA(INDEX('VoT7'!$E$38:$E$127,MATCH('Annual Parameters'!B72,'VoT7'!$A$38:$A$127,0)),"-") -> 1.352423182 | AG72: =_xlfn.IFNA(INDEX('VoT7'!$J$38:$J$127,MATCH('Annual Parameters'!B72,'VoT7'!$A$38:$A$127,0)),"-") -> 0.4298344876 | AH72: =_xlfn.IFNA(INDEX('VoT7'!$F$38:$F$127,MATCH('Annual Parameters'!B72,'VoT7'!$A$38:$A$127,0)),"-") -> 102.5277931 | AI72: =_xlfn.IFNA(INDEX('VoT7'!$K$38:$K$127,MATCH('Annual Parameters'!B72,'VoT7'!$A$38:$A$127,0)),"-") -> 100.7970911 | AJ72: =IF('Annual Parameters Source'!J69="","-",'Annual Parameters Source'!J69) -> - | AK72: =IF('Annual Parameters Source'!K69="","-",'Annual Parameters Source'!K69) -> -
B73: 2018 | D73: =IF('Annual Parameters Source'!D70="","-",'Annual Parameters Source'!D70/VLOOKUP($B$14,'Annual Parameters Source'!$B$42:$D$152,3,1)*100) -> 82.24421624 | E73: =IF('Annual Parameters Source'!E70="","-",VLOOKUP($B$16,'Annual Parameters Source'!$B$42:$AH$156,33,FALSE)/VLOOKUP($B$16,'Annual Parameters Source'!$B$42:$AH$156,4,FALSE)*'Annual Parameters Source'!E70) -> 2640295 | F73: =IF('Annual Parameters Source'!F70="","-",'Annual Parameters Source'!F70) -> 1.551330962 | G73: =IF('Annual Parameters Source'!G70="","-",'Annual Parameters Source'!G70) -> 174.2536639 | H73: =IF('Annual Parameters Source'!H70="","-",'Annual Parameters Source'!H70) -> 66286.7 | I73: =IF('Annual Parameters Source'!I70="","-",'Annual Parameters Source'!I70) -> 0.4887492174 | J73: =IF('Annual Parameters Source'!L70="","-",'Annual Parameters Source'!L70) -> 115.8099148 | K73: =IF('Annual Parameters Source'!M70="","-",'Annual Parameters Source'!M70) -> 27576 | L73: =IF('Annual Parameters Source'!N70="","-",'Annual Parameters Source'!N70) -> 1.285535885 | M73: =IF('Annual Parameters Source'!O70="","-",'Annual Parameters Source'!O70) -> 116.1681692 | N73: =IF('Annual Parameters Source'!P70="","-",'Annual Parameters Source'!P70) -> 39831.44432 | O73: =IF('Annual Parameters Source'!Q70="","-",'Annual Parameters Source'!Q70) -> 1.057413644 | P73: =IF('Annual Parameters Source'!R70="","-",'Annual Parameters Source'!R70) -> 150.4652379 | Q73: =IF('Annual Parameters Source'!S70="","-",'Annual Parameters Source'!S70) -> 95746.11981 | R73: =IF('Annual Parameters Source'!T70="","-",'Annual Parameters Source'!T70) -> 0.2624215542 | S73: =IF('Annual Parameters Source'!U70="","-",'Annual Parameters Source'!U70) -> 136.5053794 | T73: =IF('Annual Parameters Source'!V70="","-",'Annual Parameters Source'!V70) -> 1.057413644 | U73: =IF('Annual Parameters Source'!W70="","-",'Annual Parameters Source'!W70) -> 1.057413644 | V73: =IF('Annual Parameters Source'!X70="","-",'Annual Parameters Source'!X70) -> 117.0407161 | W73: =IF('Annual Parameters Source'!Y70="","-",'Annual Parameters Source'!Y70) -> 117.0407161 | X73: =IF('Annual Parameters Source'!AD70="","-",'Annual Parameters Source'!AD70) -> 1.057413644 | Y73: =IF('Annual Parameters Source'!AE70="","-",'Annual Parameters Source'!AE70) -> 1.057413644 | Z73: =IF('Annual Parameters Source'!AF70="","-",'Annual Parameters Source'!AF70) -> 117.0407161 | AA73: =IF('Annual Parameters Source'!AG70="","-",'Annual Parameters Source'!AG70) -> 117.0407161 | AB73: =_xlfn.IFNA(INDEX('VoT7'!$U$38:$U$127,MATCH('Annual Parameters'!B73,'VoT7'!$A$38:$A$127,0)),"-") -> 0.7692616389 | AC73: =_xlfn.IFNA(INDEX('VoT7'!$V$38:$V$127,MATCH('Annual Parameters'!B73,'VoT7'!$A$38:$A$127,0)),"-") -> 108.572769 | AD73: =_xlfn.IFNA(INDEX('VoT7'!$AF$38:$AF$127,MATCH('Annual Parameters'!B73,'VoT7'!$A$38:$A$127,0)),"-") -> 0.7692616389 | AE73: =_xlfn.IFNA(INDEX('VoT7'!$AG$38:$AG$127,MATCH('Annual Parameters'!B73,'VoT7'!$A$38:$A$127,0)),"-") -> 108.572769 | AF73: =_xlfn.IFNA(INDEX('VoT7'!$E$38:$E$127,MATCH('Annual Parameters'!B73,'VoT7'!$A$38:$A$127,0)),"-") -> 0.03593686379 | AG73: =_xlfn.IFNA(INDEX('VoT7'!$J$38:$J$127,MATCH('Annual Parameters'!B73,'VoT7'!$A$38:$A$127,0)),"-") -> 0.01152657325 | AH73: =_xlfn.IFNA(INDEX('VoT7'!$F$38:$F$127,MATCH('Annual Parameters'!B73,'VoT7'!$A$38:$A$127,0)),"-") -> 102.5646384 | AI73: =_xlfn.IFNA(INDEX('VoT7'!$K$38:$K$127,MATCH('Annual Parameters'!B73,'VoT7'!$A$38:$A$127,0)),"-") -> 100.8087096 | AJ73: =IF('Annual Parameters Source'!J70="","-",'Annual Parameters Source'!J70) -> - | AK73: =IF('Annual Parameters Source'!K70="","-",'Annual Parameters Source'!K70) -> -
B74: 2019 | D74: =IF('Annual Parameters Source'!D71="","-",'Annual Parameters Source'!D71/VLOOKUP($B$14,'Annual Parameters Source'!$B$42:$D$152,3,1)*100) -> 84.26796548 | E74: =IF('Annual Parameters Source'!E71="","-",VLOOKUP($B$16,'Annual Parameters Source'!$B$42:$AH$156,33,FALSE)/VLOOKUP($B$16,'Annual Parameters Source'!$B$42:$AH$156,4,FALSE)*'Annual Parameters Source'!E71) -> 2673465 | F74: =IF('Annual Parameters Source'!F71="","-",'Annual Parameters Source'!F71) -> 1.256299012 | G74: =IF('Annual Parameters Source'!G71="","-",'Annual Parameters Source'!G71) -> 176.4428109 | H74: =IF('Annual Parameters Source'!H71="","-",'Annual Parameters Source'!H71) -> 66627.5 | I74: =IF('Annual Parameters Source'!I71="","-",'Annual Parameters Source'!I71) -> 0.5141302856 | J74: =IF('Annual Parameters Source'!L71="","-",'Annual Parameters Source'!L71) -> 116.4053287 | K74: =IF('Annual Parameters Source'!M71="","-",'Annual Parameters Source'!M71) -> 27824 | L74: =IF('Annual Parameters Source'!N71="","-",'Annual Parameters Source'!N71) -> 0.8993327531 | M74: =IF('Annual Parameters Source'!O71="","-",'Annual Parameters Source'!O71) -> 117.2129076 | N74: =IF('Annual Parameters Source'!P71="","-",'Annual Parameters Source'!P71) -> 40125.54876 | O74: =IF('Annual Parameters Source'!Q71="","-",'Annual Parameters Source'!Q71) -> 0.7383725297 | P74: =IF('Annual Parameters Source'!R71="","-",'Annual Parameters Source'!R71) -> 151.5762319 | Q74: =IF('Annual Parameters Source'!S71="","-",'Annual Parameters Source'!S71) -> 96084.8548 | R74: =IF('Annual Parameters Source'!T71="","-",'Annual Parameters Source'!T71) -> 0.3537845585 | S74: =IF('Annual Parameters Source'!U71="","-",'Annual Parameters Source'!U71) -> 136.9883143 | T74: =IF('Annual Parameters Source'!V71="","-",'Annual Parameters Source'!V71) -> 0.7383725297 | U74: =IF('Annual Parameters Source'!W71="","-",'Annual Parameters Source'!W71) -> 0.7383725297 | V74: =IF('Annual Parameters Source'!X71="","-",'Annual Parameters Source'!X71) -> 117.9049126 | W74: =IF('Annual Parameters Source'!Y71="","-",'Annual Parameters Source'!Y71) -> 117.9049126 | X74: =IF('Annual Parameters Source'!AD71="","-",'Annual Parameters Source'!AD71) -> 0.7383725297 | Y74: =IF('Annual Parameters Source'!AE71="","-",'Annual Parameters Source'!AE71) -> 0.7383725297 | Z74: =IF('Annual Parameters Source'!AF71="","-",'Annual Parameters Source'!AF71) -> 117.9049126 | AA74: =IF('Annual Parameters Source'!AG71="","-",'Annual Parameters Source'!AG71) -> 117.9049126 | AB74: =_xlfn.IFNA(INDEX('VoT7'!$U$38:$U$127,MATCH('Annual Parameters'!B74,'VoT7'!$A$38:$A$127,0)),"-") -> 0.5278058607 | AC74: =_xlfn.IFNA(INDEX('VoT7'!$V$38:$V$127,MATCH('Annual Parameters'!B74,'VoT7'!$A$38:$A$127,0)),"-") -> 109.1458224 | AD74: =_xlfn.IFNA(INDEX('VoT7'!$AF$38:$AF$127,MATCH('Annual Parameters'!B74,'VoT7'!$A$38:$A$127,0)),"-") -> 0.5278058607 | AE74: =_xlfn.IFNA(INDEX('VoT7'!$AG$38:$AG$127,MATCH('Annual Parameters'!B74,'VoT7'!$A$38:$A$127,0)),"-") -> 109.1458224 | AF74: =_xlfn.IFNA(INDEX('VoT7'!$E$38:$E$127,MATCH('Annual Parameters'!B74,'VoT7'!$A$38:$A$127,0)),"-") -> -0.01354206143 | AG74: =_xlfn.IFNA(INDEX('VoT7'!$J$38:$J$127,MATCH('Annual Parameters'!B74,'VoT7'!$A$38:$A$127,0)),"-") -> -0.004344610104 | AH74: =_xlfn.IFNA(INDEX('VoT7'!$F$38:$F$127,MATCH('Annual Parameters'!B74,'VoT7'!$A$38:$A$127,0)),"-") -> 102.5507491 | AI74: =_xlfn.IFNA(INDEX('VoT7'!$K$38:$K$127,MATCH('Annual Parameters'!B74,'VoT7'!$A$38:$A$127,0)),"-") -> 100.8043298 | AJ74: =IF('Annual Parameters Source'!J71="","-",'Annual Parameters Source'!J71) -> - | AK74: =IF('Annual Parameters Source'!K71="","-",'Annual Parameters Source'!K71) -> -
B75: 2020 | D75: =IF('Annual Parameters Source'!D72="","-",'Annual Parameters Source'!D72/VLOOKUP($B$14,'Annual Parameters Source'!$B$42:$D$152,3,1)*100) -> 88.53302156 | E75: =IF('Annual Parameters Source'!E72="","-",VLOOKUP($B$16,'Annual Parameters Source'!$B$42:$AH$156,33,FALSE)/VLOOKUP($B$16,'Annual Parameters Source'!$B$42:$AH$156,4,FALSE)*'Annual Parameters Source'!E72) -> 2404838 | F75: =IF('Annual Parameters Source'!F72="","-",'Annual Parameters Source'!F72) -> -10.04789664 | G75: =IF('Annual Parameters Source'!G72="","-",'Annual Parameters Source'!G72) -> 158.7140196 | H75: =IF('Annual Parameters Source'!H72="","-",'Annual Parameters Source'!H72) -> 66739.9 | I75: =IF('Annual Parameters Source'!I72="","-",'Annual Parameters Source'!I72) -> 0.1686991107 | J75: =IF('Annual Parameters Source'!L72="","-",'Annual Parameters Source'!L72) -> 116.6017034 | K75: =IF('Annual Parameters Source'!M72="","-",'Annual Parameters Source'!M72) -> 27893 | L75: =IF('Annual Parameters Source'!N72="","-",'Annual Parameters Source'!N72) -> 0.2479873491 | M75: =IF('Annual Parameters Source'!O72="","-",'Annual Parameters Source'!O72) -> 117.5035808 | N75: =IF('Annual Parameters Source'!P72="","-",'Annual Parameters Source'!P72) -> 36032.98776 | O75: =IF('Annual Parameters Source'!Q72="","-",'Annual Parameters Source'!Q72) -> -10.19938947 | P75: =IF('Annual Parameters Source'!R72="","-",'Annual Parameters Source'!R72) -> 136.1163816 | Q75: =IF('Annual Parameters Source'!S72="","-",'Annual Parameters Source'!S72) -> 86216.54178 | R75: =IF('Annual Parameters Source'!T72="","-",'Annual Parameters Source'!T72) -> -10.27041466 | S75: =IF('Annual Parameters Source'!U72="","-",'Annual Parameters Source'!U72) -> 122.9190464 | T75: =IF('Annual Parameters Source'!V72="","-",'Annual Parameters Source'!V72) -> 0.3779550652 | U75: =IF('Annual Parameters Source'!W72="","-",'Annual Parameters Source'!W72) -> 0.3779550652 | V75: =IF('Annual Parameters Source'!X72="","-",'Annual Parameters Source'!X72) -> 118.3505402 | W75: =IF('Annual Parameters Source'!Y72="","-",'Annual Parameters Source'!Y72) -> 118.3505402 | X75: =IF('Annual Parameters Source'!AD72="","-",'Annual Parameters Source'!AD72) -> 0.3779550652 | Y75: =IF('Annual Parameters Source'!AE72="","-",'Annual Parameters Source'!AE72) -> 0.3779550652 | Z75: =IF('Annual Parameters Source'!AF72="","-",'Annual Parameters Source'!AF72) -> 118.3505402 | AA75: =IF('Annual Parameters Source'!AG72="","-",'Annual Parameters Source'!AG72) -> 118.3505402 | AB75: =_xlfn.IFNA(INDEX('VoT7'!$U$38:$U$127,MATCH('Annual Parameters'!B75,'VoT7'!$A$38:$A$127,0)),"-") -> -0.7271054647 | AC75: =_xlfn.IFNA(INDEX('VoT7'!$V$38:$V$127,MATCH('Annual Parameters'!B75,'VoT7'!$A$38:$A$127,0)),"-") -> 108.3522172 | AD75: =_xlfn.IFNA(INDEX('VoT7'!$AF$38:$AF$127,MATCH('Annual Parameters'!B75,'VoT7'!$A$38:$A$127,0)),"-") -> -0.7271054647 | AE75: =_xlfn.IFNA(INDEX('VoT7'!$AG$38:$AG$127,MATCH('Annual Parameters'!B75,'VoT7'!$A$38:$A$127,0)),"-") -> 108.3522172 | AF75: =_xlfn.IFNA(INDEX('VoT7'!$E$38:$E$127,MATCH('Annual Parameters'!B75,'VoT7'!$A$38:$A$127,0)),"-") -> -3.589481329 | AG75: =_xlfn.IFNA(INDEX('VoT7'!$J$38:$J$127,MATCH('Annual Parameters'!B75,'VoT7'!$A$38:$A$127,0)),"-") -> -1.15148366 | AH75: =_xlfn.IFNA(INDEX('VoT7'!$F$38:$F$127,MATCH('Annual Parameters'!B75,'VoT7'!$A$38:$A$127,0)),"-") -> 98.86970907 | AI75: =_xlfn.IFNA(INDEX('VoT7'!$K$38:$K$127,MATCH('Annual Parameters'!B75,'VoT7'!$A$38:$A$127,0)),"-") -> 99.64358442 | AJ75: =IF('Annual Parameters Source'!J72="","-",'Annual Parameters Source'!J72) -> - | AK75: =IF('Annual Parameters Source'!K72="","-",'Annual Parameters Source'!K72) -> -
B76: 2021 | D76: =IF('Annual Parameters Source'!D73="","-",'Annual Parameters Source'!D73/VLOOKUP($B$14,'Annual Parameters Source'!$B$42:$D$152,3,1)*100) -> 88.97158497 | E76: =IF('Annual Parameters Source'!E73="","-",VLOOKUP($B$16,'Annual Parameters Source'!$B$42:$AH$156,33,FALSE)/VLOOKUP($B$16,'Annual Parameters Source'!$B$42:$AH$156,4,FALSE)*'Annual Parameters Source'!E73) -> 2610286 | F76: =IF('Annual Parameters Source'!F73="","-",'Annual Parameters Source'!F73) -> 8.543111844 | G76: =IF('Annual Parameters Source'!G73="","-",'Annual Parameters Source'!G73) -> 172.2731359 | H76: =IF('Annual Parameters Source'!H73="","-",'Annual Parameters Source'!H73) -> 66978 | I76: =IF('Annual Parameters Source'!I73="","-",'Annual Parameters Source'!I73) -> 0.3567581012 | J76: =IF('Annual Parameters Source'!L73="","-",'Annual Parameters Source'!L73) -> 117.0176895 | K76: =IF('Annual Parameters Source'!M73="","-",'Annual Parameters Source'!M73) -> 28119 | L76: =IF('Annual Parameters Source'!N73="","-",'Annual Parameters Source'!N73) -> 0.8102391281 | M76: =IF('Annual Parameters Source'!O73="","-",'Annual Parameters Source'!O73) -> 118.4556407 | N76: =IF('Annual Parameters Source'!P73="","-",'Annual Parameters Source'!P73) -> 38972.28941 | O76: =IF('Annual Parameters Source'!Q73="","-",'Annual Parameters Source'!Q73) -> 8.157252085 | P76: =IF('Annual Parameters Source'!R73="","-",'Annual Parameters Source'!R73) -> 147.219738 | Q76: =IF('Annual Parameters Source'!S73="","-",'Annual Parameters Source'!S73) -> 92829.97262 | R76: =IF('Annual Parameters Source'!T73="","-",'Annual Parameters Source'!T73) -> 7.670721528 | S76: =IF('Annual Parameters Source'!U73="","-",'Annual Parameters Source'!U73) -> 132.3478242 | T76: =IF('Annual Parameters Source'!V73="","-",'Annual Parameters Source'!V73) -> 0.3765319436 | U76: =IF('Annual Parameters Source'!W73="","-",'Annual Parameters Source'!W73) -> 0.3765319436 | V76: =IF('Annual Parameters Source'!X73="","-",'Annual Parameters Source'!X73) -> 118.7961678 | W76: =IF('Annual Parameters Source'!Y73="","-",'Annual Parameters Source'!Y73) -> 118.7961678 | X76: =IF('Annual Parameters Source'!AD73="","-",'Annual Parameters Source'!AD73) -> 0.3765319436 | Y76: =IF('Annual Parameters Source'!AE73="","-",'Annual Parameters Source'!AE73) -> 0.3765319436 | Z76: =IF('Annual Parameters Source'!AF73="","-",'Annual Parameters Source'!AF73) -> 118.7961678 | AA76: =IF('Annual Parameters Source'!AG73="","-",'Annual Parameters Source'!AG73) -> 118.7961678 | AB76: =_xlfn.IFNA(INDEX('VoT7'!$U$38:$U$127,MATCH('Annual Parameters'!B76,'VoT7'!$A$38:$A$127,0)),"-") -> 1.39317688 | AC76: =_xlfn.IFNA(INDEX('VoT7'!$V$38:$V$127,MATCH('Annual Parameters'!B76,'VoT7'!$A$38:$A$127,0)),"-") -> 109.8617552 | AD76: =_xlfn.IFNA(INDEX('VoT7'!$AF$38:$AF$127,MATCH('Annual Parameters'!B76,'VoT7'!$A$38:$A$127,0)),"-") -> 1.39317688 | AE76: =_xlfn.IFNA(INDEX('VoT7'!$AG$38:$AG$127,MATCH('Annual Parameters'!B76,'VoT7'!$A$38:$A$127,0)),"-") -> 109.8617552 | AF76: =_xlfn.IFNA(INDEX('VoT7'!$E$38:$E$127,MATCH('Annual Parameters'!B76,'VoT7'!$A$38:$A$127,0)),"-") -> 4.134901426 | AG76: =_xlfn.IFNA(INDEX('VoT7'!$J$38:$J$127,MATCH('Annual Parameters'!B76,'VoT7'!$A$38:$A$127,0)),"-") -> 1.293735531 | AH76: =_xlfn.IFNA(INDEX('VoT7'!$F$38:$F$127,MATCH('Annual Parameters'!B76,'VoT7'!$A$38:$A$127,0)),"-") -> 102.9578741 | AI76: =_xlfn.IFNA(INDEX('VoT7'!$K$38:$K$127,MATCH('Annual Parameters'!B76,'VoT7'!$A$38:$A$127,0)),"-") -> 100.9327089 | AJ76: =IF('Annual Parameters Source'!J73="","-",'Annual Parameters Source'!J73) -> - | AK76: =IF('Annual Parameters Source'!K73="","-",'Annual Parameters Source'!K73) -> -
B77: 2022 | D77: =IF('Annual Parameters Source'!D74="","-",'Annual Parameters Source'!D74/VLOOKUP($B$14,'Annual Parameters Source'!$B$42:$D$152,3,1)*100) -> 94.02573193 | E77: =IF('Annual Parameters Source'!E74="","-",VLOOKUP($B$16,'Annual Parameters Source'!$B$42:$AH$156,33,FALSE)/VLOOKUP($B$16,'Annual Parameters Source'!$B$42:$AH$156,4,FALSE)*'Annual Parameters Source'!E74) -> 2744708 | F77: =IF('Annual Parameters Source'!F74="","-",'Annual Parameters Source'!F74) -> 5.149703902 | G77: =IF('Annual Parameters Source'!G74="","-",'Annual Parameters Source'!G74) -> 181.1446923 | H77: =IF('Annual Parameters Source'!H74="","-",'Annual Parameters Source'!H74) -> 67636.1 | I77: =IF('Annual Parameters Source'!I74="","-",'Annual Parameters Source'!I74) -> 0.9825614381 | J77: =IF('Annual Parameters Source'!L74="","-",'Annual Parameters Source'!L74) -> 118.1674601 | K77: =IF('Annual Parameters Source'!M74="","-",'Annual Parameters Source'!M74) -> 28243 | L77: =IF('Annual Parameters Source'!N74="","-",'Annual Parameters Source'!N74) -> 0.4409829653 | M77: =IF('Annual Parameters Source'!O74="","-",'Annual Parameters Source'!O74) -> 118.9780099 | N77: =IF('Annual Parameters Source'!P74="","-",'Annual Parameters Source'!P74) -> 40580.51839 | O77: =IF('Annual Parameters Source'!Q74="","-",'Annual Parameters Source'!Q74) -> 4.126596122 | P77: =IF('Annual Parameters Source'!R74="","-",'Annual Parameters Source'!R74) -> 153.294902 | Q77: =IF('Annual Parameters Source'!S74="","-",'Annual Parameters Source'!S74) -> 97181.88578 | R77: =IF('Annual Parameters Source'!T74="","-",'Annual Parameters Source'!T74) -> 4.688047446 | S77: =IF('Annual Parameters Source'!U74="","-",'Annual Parameters Source'!U74) -> 138.552353 | T77: =IF('Annual Parameters Source'!V74="","-",'Annual Parameters Source'!V74) -> 0.3751194989 | U77: =IF('Annual Parameters Source'!W74="","-",'Annual Parameters Source'!W74) -> 0.3751194989 | V77: =IF('Annual Parameters Source'!X74="","-",'Annual Parameters Source'!X74) -> 119.2417954 | W77: =IF('Annual Parameters Source'!Y74="","-",'Annual Parameters Source'!Y74) -> 119.2417954 | X77: =IF('Annual Parameters Source'!AD74="","-",'Annual Parameters Source'!AD74) -> 0.3751194989 | Y77: =IF('Annual Parameters Source'!AE74="","-",'Annual Parameters Source'!AE74) -> 0.3751194989 | Z77: =IF('Annual Parameters Source'!AF74="","-",'Annual Parameters Source'!AF74) -> 119.2417954 | AA77: =IF('Annual Parameters Source'!AG74="","-",'Annual Parameters Source'!AG74) -> 119.2417954 | AB77: =_xlfn.IFNA(INDEX('VoT7'!$U$38:$U$127,MATCH('Annual Parameters'!B77,'VoT7'!$A$38:$A$127,0)),"-") -> 0.1153763614 | AC77: =_xlfn.IFNA(INDEX('VoT7'!$V$38:$V$127,MATCH('Annual Parameters'!B77,'VoT7'!$A$38:$A$127,0)),"-") -> 109.9885097 | AD77: =_xlfn.IFNA(INDEX('VoT7'!$AF$38:$AF$127,MATCH('Annual Parameters'!B77,'VoT7'!$A$38:$A$127,0)),"-") -> 0.1153763614 | AE77: =_xlfn.IFNA(INDEX('VoT7'!$AG$38:$AG$127,MATCH('Annual Parameters'!B77,'VoT7'!$A$38:$A$127,0)),"-") -> 109.9885097 | AF77: =_xlfn.IFNA(INDEX('VoT7'!$E$38:$E$127,MATCH('Annual Parameters'!B77,'VoT7'!$A$38:$A$127,0)),"-") -> -0.5598268154 | AG77: =_xlfn.IFNA(INDEX('VoT7'!$J$38:$J$127,MATCH('Annual Parameters'!B77,'VoT7'!$A$38:$A$127,0)),"-") -> -0.1800726537 | AH77: =_xlfn.IFNA(INDEX('VoT7'!$F$38:$F$127,MATCH('Annual Parameters'!B77,'VoT7'!$A$38:$A$127,0)),"-") -> 102.3814883 | AI77: =_xlfn.IFNA(INDEX('VoT7'!$K$38:$K$127,MATCH('Annual Parameters'!B77,'VoT7'!$A$38:$A$127,0)),"-") -> 100.7509567 | AJ77: =IF('Annual Parameters Source'!J74="","-",'Annual Parameters Source'!J74) -> - | AK77: =IF('Annual Parameters Source'!K74="","-",'Annual Parameters Source'!K74) -> -
B78: 2023 | D78: =IF('Annual Parameters Source'!D75="","-",'Annual Parameters Source'!D75/VLOOKUP($B$14,'Annual Parameters Source'!$B$42:$D$152,3,1)*100) -> 100 | E78: =IF('Annual Parameters Source'!E75="","-",VLOOKUP($B$16,'Annual Parameters Source'!$B$42:$AH$156,33,FALSE)/VLOOKUP($B$16,'Annual Parameters Source'!$B$42:$AH$156,4,FALSE)*'Annual Parameters Source'!E75) -> 2752164 | F78: =IF('Annual Parameters Source'!F75="","-",'Annual Parameters Source'!F75) -> 0.2716500262 | G78: =IF('Annual Parameters Source'!G75="","-",'Annual Parameters Source'!G75) -> 181.6367719 | H78: =IF('Annual Parameters Source'!H75="","-",'Annual Parameters Source'!H75) -> 68526.2 | I78: =IF('Annual Parameters Source'!I75="","-",'Annual Parameters Source'!I75) -> 1.316013194 | J78: =IF('Annual Parameters Source'!L75="","-",'Annual Parameters Source'!L75) -> 119.7225595 | K78: =IF('Annual Parameters Source'!M75="","-",'Annual Parameters Source'!M75) -> 28358 | L78: =IF('Annual Parameters Source'!N75="","-",'Annual Parameters Source'!N75) -> 0.4071805403 | M78: =IF('Annual Parameters Source'!O75="","-",'Annual Parameters Source'!O75) -> 119.4624652 | N78: =IF('Annual Parameters Source'!P75="","-",'Annual Parameters Source'!P75) -> 40162.21533 | O78: =IF('Annual Parameters Source'!Q75="","-",'Annual Parameters Source'!Q75) -> -1.030797734 | P78: =IF('Annual Parameters Source'!R75="","-",'Annual Parameters Source'!R75) -> 151.7147417 | Q78: =IF('Annual Parameters Source'!S75="","-",'Annual Parameters Source'!S75) -> 97050.70879 | R78: =IF('Annual Parameters Source'!T75="","-",'Annual Parameters Source'!T75) -> -0.1349808982 | S78: =IF('Annual Parameters Source'!U75="","-",'Annual Parameters Source'!U75) -> 138.3653338 | T78: =IF('Annual Parameters Source'!V75="","-",'Annual Parameters Source'!V75) -> -1.030797734 | U78: =IF('Annual Parameters Source'!W75="","-",'Annual Parameters Source'!W75) -> -1.030797734 | V78: =IF('Annual Parameters Source'!X75="","-",'Annual Parameters Source'!X75) -> 118.0126536 | W78: =IF('Annual Parameters Source'!Y75="","-",'Annual Parameters Source'!Y75) -> 118.0126536 | X78: =IF('Annual Parameters Source'!AD75="","-",'Annual Parameters Source'!AD75) -> -1.030797734 | Y78: =IF('Annual Parameters Source'!AE75="","-",'Annual Parameters Source'!AE75) -> -1.030797734 | Z78: =IF('Annual Parameters Source'!AF75="","-",'Annual Parameters Source'!AF75) -> 118.0126536 | AA78: =IF('Annual Parameters Source'!AG75="","-",'Annual Parameters Source'!AG75) -> 118.0126536 | AB78: =_xlfn.IFNA(INDEX('VoT7'!$U$38:$U$127,MATCH('Annual Parameters'!B78,'VoT7'!$A$38:$A$127,0)),"-") -> -0.6729344778 | AC78: =_xlfn.IFNA(INDEX('VoT7'!$V$38:$V$127,MATCH('Annual Parameters'!B78,'VoT7'!$A$38:$A$127,0)),"-") -> 109.2483591 | AD78: =_xlfn.IFNA(INDEX('VoT7'!$AF$38:$AF$127,MATCH('Annual Parameters'!B78,'VoT7'!$A$38:$A$127,0)),"-") -> -0.6729344778 | AE78: =_xlfn.IFNA(INDEX('VoT7'!$AG$38:$AG$127,MATCH('Annual Parameters'!B78,'VoT7'!$A$38:$A$127,0)),"-") -> 109.2483591 | AF78: =_xlfn.IFNA(INDEX('VoT7'!$E$38:$E$127,MATCH('Annual Parameters'!B78,'VoT7'!$A$38:$A$127,0)),"-") -> 0.2660787435 | AG78: =_xlfn.IFNA(INDEX('VoT7'!$J$38:$J$127,MATCH('Annual Parameters'!B78,'VoT7'!$A$38:$A$127,0)),"-") -> 0.08526069556 | AH78: =_xlfn.IFNA(INDEX('VoT7'!$F$38:$F$127,MATCH('Annual Parameters'!B78,'VoT7'!$A$38:$A$127,0)),"-") -> 102.6539037 | AI78: =_xlfn.IFNA(INDEX('VoT7'!$K$38:$K$127,MATCH('Annual Parameters'!B78,'VoT7'!$A$38:$A$127,0)),"-") -> 100.8368576 | AJ78: =IF('Annual Parameters Source'!J75="","-",'Annual Parameters Source'!J75) -> - | AK78: =IF('Annual Parameters Source'!K75="","-",'Annual Parameters Source'!K75) -> -
B79: 2024 | D79: =IF('Annual Parameters Source'!D76="","-",'Annual Parameters Source'!D76/VLOOKUP($B$14,'Annual Parameters Source'!$B$42:$D$152,3,1)*100) -> 103.8953482 | E79: =IF('Annual Parameters Source'!E76="","-",VLOOKUP($B$16,'Annual Parameters Source'!$B$42:$AH$156,33,FALSE)/VLOOKUP($B$16,'Annual Parameters Source'!$B$42:$AH$156,4,FALSE)*'Annual Parameters Source'!E76) -> 2782111 | F79: =IF('Annual Parameters Source'!F76="","-",'Annual Parameters Source'!F76) -> 1.088125562 | G79: =IF('Annual Parameters Source'!G76="","-",'Annual Parameters Source'!G76) -> 183.613208 | H79: =IF('Annual Parameters Source'!H76="","-",'Annual Parameters Source'!H76) -> 69281.4 | I79: =IF('Annual Parameters Source'!I76="","-",'Annual Parameters Source'!I76) -> 1.102060234 | J79: =IF('Annual Parameters Source'!L76="","-",'Annual Parameters Source'!L76) -> 121.0419742 | K79: =IF('Annual Parameters Source'!M76="","-",'Annual Parameters Source'!M76) -> 28609 | L79: =IF('Annual Parameters Source'!N76="","-",'Annual Parameters Source'!N76) -> 0.885111785 | M79: =IF('Annual Parameters Source'!O76="","-",'Annual Parameters Source'!O76) -> 120.5198416 | N79: =IF('Annual Parameters Source'!P76="","-",'Annual Parameters Source'!P76) -> 40156.67986 | O79: =IF('Annual Parameters Source'!Q76="","-",'Annual Parameters Source'!Q76) -> -0.01378277711 | P79: =IF('Annual Parameters Source'!R76="","-",'Annual Parameters Source'!R76) -> 151.6938311 | Q79: =IF('Annual Parameters Source'!S76="","-",'Annual Parameters Source'!S76) -> 97246.0065 | R79: =IF('Annual Parameters Source'!T76="","-",'Annual Parameters Source'!T76) -> 0.2012326434 | S79: =IF('Annual Parameters Source'!U76="","-",'Annual Parameters Source'!U76) -> 138.64377 | T79: =IF('Annual Parameters Source'!V76="","-",'Annual Parameters Source'!V76) -> -0.01378277711 | U79: =IF('Annual Parameters Source'!W76="","-",'Annual Parameters Source'!W76) -> -0.01378277711 | V79: =IF('Annual Parameters Source'!X76="","-",'Annual Parameters Source'!X76) -> 117.9963882 | W79: =IF('Annual Parameters Source'!Y76="","-",'Annual Parameters Source'!Y76) -> 117.9963882 | X79: =IF('Annual Parameters Source'!AD76="","-",'Annual Parameters Source'!AD76) -> -0.01378277711 | Y79: =IF('Annual Parameters Source'!AE76="","-",'Annual Parameters Source'!AE76) -> -0.01378277711 | Z79: =IF('Annual Parameters Source'!AF76="","-",'Annual Parameters Source'!AF76) -> 117.9963882 | AA79: =IF('Annual Parameters Source'!AG76="","-",'Annual Parameters Source'!AG76) -> 117.9963882 | AB79: =_xlfn.IFNA(INDEX('VoT7'!$U$38:$U$127,MATCH('Annual Parameters'!B79,'VoT7'!$A$38:$A$127,0)),"-") -> 0.2965179563 | AC79: =_xlfn.IFNA(INDEX('VoT7'!$V$38:$V$127,MATCH('Annual Parameters'!B79,'VoT7'!$A$38:$A$127,0)),"-") -> 109.5723001 | AD79: =_xlfn.IFNA(INDEX('VoT7'!$AF$38:$AF$127,MATCH('Annual Parameters'!B79,'VoT7'!$A$38:$A$127,0)),"-") -> 0.2965179563 | AE79: =_xlfn.IFNA(INDEX('VoT7'!$AG$38:$AG$127,MATCH('Annual Parameters'!B79,'VoT7'!$A$38:$A$127,0)),"-") -> 109.5723001 | AF79: =_xlfn.IFNA(INDEX('VoT7'!$E$38:$E$127,MATCH('Annual Parameters'!B79,'VoT7'!$A$38:$A$127,0)),"-") -> 1.100198472 | AG79: =_xlfn.IFNA(INDEX('VoT7'!$J$38:$J$127,MATCH('Annual Parameters'!B79,'VoT7'!$A$38:$A$127,0)),"-") -> 0.3531779924 | AH79: =_xlfn.IFNA(INDEX('VoT7'!$F$38:$F$127,MATCH('Annual Parameters'!B79,'VoT7'!$A$38:$A$127,0)),"-") -> 103.7833003 | AI79: =_xlfn.IFNA(INDEX('VoT7'!$K$38:$K$127,MATCH('Annual Parameters'!B79,'VoT7'!$A$38:$A$127,0)),"-") -> 101.1929912 | AJ79: =IF('Annual Parameters Source'!J76="","-",'Annual Parameters Source'!J76) -> - | AK79: =IF('Annual Parameters Source'!K76="","-",'Annual Parameters Source'!K76) -> -
B80: 2025 | D80: =IF('Annual Parameters Source'!D77="","-",'Annual Parameters Source'!D77/VLOOKUP($B$14,'Annual Parameters Source'!$B$42:$D$152,3,1)*100) -> 107.7551372 | E80: =IF('Annual Parameters Source'!E77="","-",VLOOKUP($B$16,'Annual Parameters Source'!$B$42:$AH$156,33,FALSE)/VLOOKUP($B$16,'Annual Parameters Source'!$B$42:$AH$156,4,FALSE)*'Annual Parameters Source'!E77) -> 2818929 | F80: =IF('Annual Parameters Source'!F77="","-",'Annual Parameters Source'!F77) -> 1.323383575 | G80: =IF('Annual Parameters Source'!G77="","-",'Annual Parameters Source'!G77) -> 186.043115 | H80: =IF('Annual Parameters Source'!H77="","-",'Annual Parameters Source'!H77) -> 69487 | I80: =IF('Annual Parameters Source'!I77="","-",'Annual Parameters Source'!I77) -> 0.2967607468 | J80: =IF('Annual Parameters Source'!L77="","-",'Annual Parameters Source'!L77) -> 121.4011793 | K80: =IF('Annual Parameters Source'!M77="","-",'Annual Parameters Source'!M77) -> 29003 | L80: =IF('Annual Parameters Source'!N77="","-",'Annual Parameters Source'!N77) -> 1.377188996 | M80: =IF('Annual Parameters Source'!O77="","-",'Annual Parameters Source'!O77) -> 122.1796276 | N80: =IF('Annual Parameters Source'!P77="","-",'Annual Parameters Source'!P77) -> 40567.7177 | O80: =IF('Annual Parameters Source'!Q77="","-",'Annual Parameters Source'!Q77) -> 1.023585229 | P80: =IF('Annual Parameters Source'!R77="","-",'Annual Parameters Source'!R77) -> 153.2465468 | Q80: =IF('Annual Parameters Source'!S77="","-",'Annual Parameters Source'!S77) -> 97194.39368 | R80: =IF('Annual Parameters Source'!T77="","-",'Annual Parameters Source'!T77) -> -0.05307448593 | S80: =IF('Annual Parameters Source'!U77="","-",'Annual Parameters Source'!U77) -> 138.5701855 | T80: =IF('Annual Parameters Source'!V77="","-",'Annual Parameters Source'!V77) -> 1.023585229 | U80: =IF('Annual Parameters Source'!W77="","-",'Annual Parameters Source'!W77) -> 1.023585229 | V80: =IF('Annual Parameters Source'!X77="","-",'Annual Parameters Source'!X77) -> 119.2041818 | W80: =IF('Annual Parameters Source'!Y77="","-",'Annual Parameters Source'!Y77) -> 119.2041818 | X80: =IF('Annual Parameters Source'!AD77="","-",'Annual Parameters Source'!AD77) -> 1.023585229 | Y80: =IF('Annual Parameters Source'!AE77="","-",'Annual Parameters Source'!AE77) -> 1.023585229 | Z80: =IF('Annual Parameters Source'!AF77="","-",'Annual Parameters Source'!AF77) -> 119.2041818 | AA80: =IF('Annual Parameters Source'!AG77="","-",'Annual Parameters Source'!AG77) -> 119.2041818 | AB80: =_xlfn.IFNA(INDEX('VoT7'!$U$38:$U$127,MATCH('Annual Parameters'!B80,'VoT7'!$A$38:$A$127,0)),"-") -> 1.005224142 | AC80: =_xlfn.IFNA(INDEX('VoT7'!$V$38:$V$127,MATCH('Annual Parameters'!B80,'VoT7'!$A$38:$A$127,0)),"-") -> 110.6737473 | AD80: =_xlfn.IFNA(INDEX('VoT7'!$AF$38:$AF$127,MATCH('Annual Parameters'!B80,'VoT7'!$A$38:$A$127,0)),"-") -> 1.005224142 | AE80: =_xlfn.IFNA(INDEX('VoT7'!$AG$38:$AG$127,MATCH('Annual Parameters'!B80,'VoT7'!$A$38:$A$127,0)),"-") -> 110.6737473 | AF80: =_xlfn.IFNA(INDEX('VoT7'!$E$38:$E$127,MATCH('Annual Parameters'!B80,'VoT7'!$A$38:$A$127,0)),"-") -> 0.9581928227 | AG80: =_xlfn.IFNA(INDEX('VoT7'!$J$38:$J$127,MATCH('Annual Parameters'!B80,'VoT7'!$A$38:$A$127,0)),"-") -> 0.3098820266 | AH80: =_xlfn.IFNA(INDEX('VoT7'!$F$38:$F$127,MATCH('Annual Parameters'!B80,'VoT7'!$A$38:$A$127,0)),"-") -> 104.7777445 | AI80: =_xlfn.IFNA(INDEX('VoT7'!$K$38:$K$127,MATCH('Annual Parameters'!B80,'VoT7'!$A$38:$A$127,0)),"-") -> 101.5065701 | AJ80: =IF('Annual Parameters Source'!J77="","-",'Annual Parameters Source'!J77) -> - | AK80: =IF('Annual Parameters Source'!K77="","-",'Annual Parameters Source'!K77) -> -
B81: 2026 | D81: =IF('Annual Parameters Source'!D78="","-",'Annual Parameters Source'!D78/VLOOKUP($B$14,'Annual Parameters Source'!$B$42:$D$152,3,1)*100) -> 110.1075268 | E81: =IF('Annual Parameters Source'!E78="","-",VLOOKUP($B$16,'Annual Parameters Source'!$B$42:$AH$156,33,FALSE)/VLOOKUP($B$16,'Annual Parameters Source'!$B$42:$AH$156,4,FALSE)*'Annual Parameters Source'!E78) -> 2849884.524 | F81: =IF('Annual Parameters Source'!F78="","-",'Annual Parameters Source'!F78) -> 1.098130657 | G81: =IF('Annual Parameters Source'!G78="","-",'Annual Parameters Source'!G78) -> 188.0861115 | H81: =IF('Annual Parameters Source'!H78="","-",'Annual Parameters Source'!H78) -> - | I81: =IF('Annual Parameters Source'!I78="","-",'Annual Parameters Source'!I78) -> 0.3215380907 | J81: =IF('Annual Parameters Source'!L78="","-",'Annual Parameters Source'!L78) -> 121.7915303 | K81: =IF('Annual Parameters Source'!M78="","-",'Annual Parameters Source'!M78) -> - | L81: =IF('Annual Parameters Source'!N78="","-",'Annual Parameters Source'!N78) -> 0.9858302758 | M81: =IF('Annual Parameters Source'!O78="","-",'Annual Parameters Source'!O78) -> 123.3841114 | N81: =IF('Annual Parameters Source'!P78="","-",'Annual Parameters Source'!P78) -> - | O81: =IF('Annual Parameters Source'!Q78="","-",'Annual Parameters Source'!Q78) -> 0.7741035289 | P81: =IF('Annual Parameters Source'!R78="","-",'Annual Parameters Source'!R78) -> 154.4328337 | Q81: =IF('Annual Parameters Source'!S78="","-",'Annual Parameters Source'!S78) -> - | R81: =IF('Annual Parameters Source'!T78="","-",'Annual Parameters Source'!T78) -> 0.1112040979 | S81: =IF('Annual Parameters Source'!U78="","-",'Annual Parameters Source'!U78) -> 138.7242812 | T81: =IF('Annual Parameters Source'!V78="","-",'Annual Parameters Source'!V78) -> 0.7741035289 | U81: =IF('Annual Parameters Source'!W78="","-",'Annual Parameters Source'!W78) -> 0.7741035289 | V81: =IF('Annual Parameters Source'!X78="","-",'Annual Parameters Source'!X78) -> 120.1269456 | W81: =IF('Annual Parameters Source'!Y78="","-",'Annual Parameters Source'!Y78) -> 120.1269456 | X81: =IF('Annual Parameters Source'!AD78="","-",'Annual Parameters Source'!AD78) -> 0.7741035289 | Y81: =IF('Annual Parameters Source'!AE78="","-",'Annual Parameters Source'!AE78) -> 0.7741035289 | Z81: =IF('Annual Parameters Source'!AF78="","-",'Annual Parameters Source'!AF78) -> 120.1269456 | AA81: =IF('Annual Parameters Source'!AG78="","-",'Annual Parameters Source'!AG78) -> 120.1269456 | AB81: =_xlfn.IFNA(INDEX('VoT7'!$U$38:$U$127,MATCH('Annual Parameters'!B81,'VoT7'!$A$38:$A$127,0)),"-") -> 0.7933655765 | AC81: =_xlfn.IFNA(INDEX('VoT7'!$V$38:$V$127,MATCH('Annual Parameters'!B81,'VoT7'!$A$38:$A$127,0)),"-") -> 111.5517947 | AD81: =_xlfn.IFNA(INDEX('VoT7'!$AF$38:$AF$127,MATCH('Annual Parameters'!B81,'VoT7'!$A$38:$A$127,0)),"-") -> 0.7933655765 | AE81: =_xlfn.IFNA(INDEX('VoT7'!$AG$38:$AG$127,MATCH('Annual Parameters'!B81,'VoT7'!$A$38:$A$127,0)),"-") -> 111.5517947 | AF81: =_xlfn.IFNA(INDEX('VoT7'!$E$38:$E$127,MATCH('Annual Parameters'!B81,'VoT7'!$A$38:$A$127,0)),"-") -> 0.8427366337 | AG81: =_xlfn.IFNA(INDEX('VoT7'!$J$38:$J$127,MATCH('Annual Parameters'!B81,'VoT7'!$A$38:$A$127,0)),"-") -> 0.2743046662 | AH81: =_xlfn.IFNA(INDEX('VoT7'!$F$38:$F$127,MATCH('Annual Parameters'!B81,'VoT7'!$A$38:$A$127,0)),"-") -> 105.6607449 | AI81: =_xlfn.IFNA(INDEX('VoT7'!$K$38:$K$127,MATCH('Annual Parameters'!B81,'VoT7'!$A$38:$A$127,0)),"-") -> 101.7850074 | AJ81: =IF('Annual Parameters Source'!J78="","-",'Annual Parameters Source'!J78) -> 0.9588275076 | AK81: =IF('Annual Parameters Source'!K78="","-",'Annual Parameters Source'!K78) -> 0.547806161
B82: 2027 | D82: =IF('Annual Parameters Source'!D79="","-",'Annual Parameters Source'!D79/VLOOKUP($B$14,'Annual Parameters Source'!$B$42:$D$152,3,1)*100) -> 112.2484716 | E82: =IF('Annual Parameters Source'!E79="","-",VLOOKUP($B$16,'Annual Parameters Source'!$B$42:$AH$156,33,FALSE)/VLOOKUP($B$16,'Annual Parameters Source'!$B$42:$AH$156,4,FALSE)*'Annual Parameters Source'!E79) -> 2895160.255 | F82: =IF('Annual Parameters Source'!F79="","-",'Annual Parameters Source'!F79) -> 1.588686535 | G82: =IF('Annual Parameters Source'!G79="","-",'Annual Parameters Source'!G79) -> 191.0742103 | H82: =IF('Annual Parameters Source'!H79="","-",'Annual Parameters Source'!H79) -> - | I82: =IF('Annual Parameters Source'!I79="","-",'Annual Parameters Source'!I79) -> 0.2951143817 | J82: =IF('Annual Parameters Source'!L79="","-",'Annual Parameters Source'!L79) -> 122.1509547 | K82: =IF('Annual Parameters Source'!M79="","-",'Annual Parameters Source'!M79) -> - | L82: =IF('Annual Parameters Source'!N79="","-",'Annual Parameters Source'!N79) -> 0.5584177883 | M82: =IF('Annual Parameters Source'!O79="","-",'Annual Parameters Source'!O79) -> 124.0731102 | N82: =IF('Annual Parameters Source'!P79="","-",'Annual Parameters Source'!P79) -> - | O82: =IF('Annual Parameters Source'!Q79="","-",'Annual Parameters Source'!Q79) -> 1.289765869 | P82: =IF('Annual Parameters Source'!R79="","-",'Annual Parameters Source'!R79) -> 156.4246557 | Q82: =IF('Annual Parameters Source'!S79="","-",'Annual Parameters Source'!S79) -> - | R82: =IF('Annual Parameters Source'!T79="","-",'Annual Parameters Source'!T79) -> 1.024547491 | S82: =IF('Annual Parameters Source'!U79="","-",'Annual Parameters Source'!U79) -> 140.1455774 | T82: =IF('Annual Parameters Source'!V79="","-",'Annual Parameters Source'!V79) -> 1.289765869 | U82: =IF('Annual Parameters Source'!W79="","-",'Annual Parameters Source'!W79) -> 1.289765869 | V82: =IF('Annual Parameters Source'!X79="","-",'Annual Parameters Source'!X79) -> 121.6763019 | W82: =IF('Annual Parameters Source'!Y79="","-",'Annual Parameters Source'!Y79) -> 121.6763019 | X82: =IF('Annual Parameters Source'!AD79="","-",'Annual Parameters Source'!AD79) -> 1.5 | Y82: =IF('Annual Parameters Source'!AE79="","-",'Annual Parameters Source'!AE79) -> 1.5 | Z82: =IF('Annual Parameters Source'!AF79="","-",'Annual Parameters Source'!AF79) -> 121.9288498 | AA82: =IF('Annual Parameters Source'!AG79="","-",'Annual Parameters Source'!AG79) -> 121.9288498 | AB82: =_xlfn.IFNA(INDEX('VoT7'!$U$38:$U$127,MATCH('Annual Parameters'!B82,'VoT7'!$A$38:$A$127,0)),"-") -> 0.978442639 | AC82: =_xlfn.IFNA(INDEX('VoT7'!$V$38:$V$127,MATCH('Annual Parameters'!B82,'VoT7'!$A$38:$A$127,0)),"-") -> 112.6432651 | AD82: =_xlfn.IFNA(INDEX('VoT7'!$AF$38:$AF$127,MATCH('Annual Parameters'!B82,'VoT7'!$A$38:$A$127,0)),"-") -> 1.12964515 | AE82: =_xlfn.IFNA(INDEX('VoT7'!$AG$38:$AG$127,MATCH('Annual Parameters'!B82,'VoT7'!$A$38:$A$127,0)),"-") -> 112.8119342 | AF82: =_xlfn.IFNA(INDEX('VoT7'!$E$38:$E$127,MATCH('Annual Parameters'!B82,'VoT7'!$A$38:$A$127,0)),"-") -> 0.1810250263 | AG82: =_xlfn.IFNA(INDEX('VoT7'!$J$38:$J$127,MATCH('Annual Parameters'!B82,'VoT7'!$A$38:$A$127,0)),"-") -> 0.05925635116 | AH82: =_xlfn.IFNA(INDEX('VoT7'!$F$38:$F$127,MATCH('Annual Parameters'!B82,'VoT7'!$A$38:$A$127,0)),"-") -> 105.8520173 | AI82: =_xlfn.IFNA(INDEX('VoT7'!$K$38:$K$127,MATCH('Annual Parameters'!B82,'VoT7'!$A$38:$A$127,0)),"-") -> 101.8453215 | AJ82: =IF('Annual Parameters Source'!J79="","-",'Annual Parameters Source'!J79) -> 0.8972348781 | AK82: =IF('Annual Parameters Source'!K79="","-",'Annual Parameters Source'!K79) -> 0.3000215746
B83: 2028 | D83: =IF('Annual Parameters Source'!D80="","-",'Annual Parameters Source'!D80/VLOOKUP($B$14,'Annual Parameters Source'!$B$42:$D$152,3,1)*100) -> 114.3672045 | E83: =IF('Annual Parameters Source'!E80="","-",VLOOKUP($B$16,'Annual Parameters Source'!$B$42:$AH$156,33,FALSE)/VLOOKUP($B$16,'Annual Parameters Source'!$B$42:$AH$156,4,FALSE)*'Annual Parameters Source'!E80) -> 2940963.211 | F83: =IF('Annual Parameters Source'!F80="","-",'Annual Parameters Source'!F80) -> 1.582052506 | G83: =IF('Annual Parameters Source'!G80="","-",'Annual Parameters Source'!G80) -> 194.0971046 | H83: =IF('Annual Parameters Source'!H80="","-",'Annual Parameters Source'!H80) -> - | I83: =IF('Annual Parameters Source'!I80="","-",'Annual Parameters Source'!I80) -> 0.3228977425 | J83: =IF('Annual Parameters Source'!L80="","-",'Annual Parameters Source'!L80) -> 122.5453773 | K83: =IF('Annual Parameters Source'!M80="","-",'Annual Parameters Source'!M80) -> - | L83: =IF('Annual Parameters Source'!N80="","-",'Annual Parameters Source'!N80) -> 0.5366693429 | M83: =IF('Annual Parameters Source'!O80="","-",'Annual Parameters Source'!O80) -> 124.7389725 | N83: =IF('Annual Parameters Source'!P80="","-",'Annual Parameters Source'!P80) -> - | O83: =IF('Annual Parameters Source'!Q80="","-",'Annual Parameters Source'!Q80) -> 1.255102067 | P83: =IF('Annual Parameters Source'!R80="","-",'Annual Parameters Source'!R80) -> 158.3879448 | Q83: =IF('Annual Parameters Source'!S80="","-",'Annual Parameters Source'!S80) -> - | R83: =IF('Annual Parameters Source'!T80="","-",'Annual Parameters Source'!T80) -> 1.039802859 | S83: =IF('Annual Parameters Source'!U80="","-",'Annual Parameters Source'!U80) -> 141.6028151 | T83: =IF('Annual Parameters Source'!V80="","-",'Annual Parameters Source'!V80) -> 1.255102067 | U83: =IF('Annual Parameters Source'!W80="","-",'Annual Parameters Source'!W80) -> 1.255102067 | V83: =IF('Annual Parameters Source'!X80="","-",'Annual Parameters Source'!X80) -> 123.2034637 | W83: =IF('Annual Parameters Source'!Y80="","-",'Annual Parameters Source'!Y80) -> 123.2034637 | X83: =IF('Annual Parameters Source'!AD80="","-",'Annual Parameters Source'!AD80) -> 1.5 | Y83: =IF('Annual Parameters Source'!AE80="","-",'Annual Parameters Source'!AE80) -> 1.5 | Z83: =IF('Annual Parameters Source'!AF80="","-",'Annual Parameters Source'!AF80) -> 123.7577825 | AA83: =IF('Annual Parameters Source'!AG80="","-",'Annual Parameters Source'!AG80) -> 123.7577825 | AB83: =_xlfn.IFNA(INDEX('VoT7'!$U$38:$U$127,MATCH('Annual Parameters'!B83,'VoT7'!$A$38:$A$127,0)),"-") -> 0.9571436971 | AC83: =_xlfn.IFNA(INDEX('VoT7'!$V$38:$V$127,MATCH('Annual Parameters'!B83,'VoT7'!$A$38:$A$127,0)),"-") -> 113.721423 | AD83: =_xlfn.IFNA(INDEX('VoT7'!$AF$38:$AF$127,MATCH('Annual Parameters'!B83,'VoT7'!$A$38:$A$127,0)),"-") -> 1.134367283 | AE83: =_xlfn.IFNA(INDEX('VoT7'!$AG$38:$AG$127,MATCH('Annual Parameters'!B83,'VoT7'!$A$38:$A$127,0)),"-") -> 114.0916359 | AF83: =_xlfn.IFNA(INDEX('VoT7'!$E$38:$E$127,MATCH('Annual Parameters'!B83,'VoT7'!$A$38:$A$127,0)),"-") -> 0.1855121364 | AG83: =_xlfn.IFNA(INDEX('VoT7'!$J$38:$J$127,MATCH('Annual Parameters'!B83,'VoT7'!$A$38:$A$127,0)),"-") -> 0.06079905279 | AH83: =_xlfn.IFNA(INDEX('VoT7'!$F$38:$F$127,MATCH('Annual Parameters'!B83,'VoT7'!$A$38:$A$127,0)),"-") -> 106.0483856 | AI83: =_xlfn.IFNA(INDEX('VoT7'!$K$38:$K$127,MATCH('Annual Parameters'!B83,'VoT7'!$A$38:$A$127,0)),"-") -> 101.9072425 | AJ83: =IF('Annual Parameters Source'!J80="","-",'Annual Parameters Source'!J80) -> 0.8338634613 | AK83: =IF('Annual Parameters Source'!K80="","-",'Annual Parameters Source'!K80) -> 0.05418374858
B84: 2029 | D84: =IF('Annual Parameters Source'!D81="","-",'Annual Parameters Source'!D81/VLOOKUP($B$14,'Annual Parameters Source'!$B$42:$D$152,3,1)*100) -> 116.4759744 | E84: =IF('Annual Parameters Source'!E81="","-",VLOOKUP($B$16,'Annual Parameters Source'!$B$42:$AH$156,33,FALSE)/VLOOKUP($B$16,'Annual Parameters Source'!$B$42:$AH$156,4,FALSE)*'Annual Parameters Source'!E81) -> 2986208.555 | F84: =IF('Annual Parameters Source'!F81="","-",'Annual Parameters Source'!F81) -> 1.538453257 | G84: =IF('Annual Parameters Source'!G81="","-",'Annual Parameters Source'!G81) -> 197.0831978 | H84: =IF('Annual Parameters Source'!H81="","-",'Annual Parameters Source'!H81) -> - | I84: =IF('Annual Parameters Source'!I81="","-",'Annual Parameters Source'!I81) -> 0.3413368263 | J84: =IF('Annual Parameters Source'!L81="","-",'Annual Parameters Source'!L81) -> 122.9636698 | K84: =IF('Annual Parameters Source'!M81="","-",'Annual Parameters Source'!M81) -> - | L84: =IF('Annual Parameters Source'!N81="","-",'Annual Parameters Source'!N81) -> 0.491131034 | M84: =IF('Annual Parameters Source'!O81="","-",'Annual Parameters Source'!O81) -> 125.3516043 | N84: =IF('Annual Parameters Source'!P81="","-",'Annual Parameters Source'!P81) -> - | O84: =IF('Annual Parameters Source'!Q81="","-",'Annual Parameters Source'!Q81) -> 1.193044131 | P84: =IF('Annual Parameters Source'!R81="","-",'Annual Parameters Source'!R81) -> 160.2775829 | Q84: =IF('Annual Parameters Source'!S81="","-",'Annual Parameters Source'!S81) -> - | R84: =IF('Annual Parameters Source'!T81="","-",'Annual Parameters Source'!T81) -> 1.042203637 | S84: =IF('Annual Parameters Source'!U81="","-",'Annual Parameters Source'!U81) -> 143.0786048 | T84: =IF('Annual Parameters Source'!V81="","-",'Annual Parameters Source'!V81) -> 1.193044131 | U84: =IF('Annual Parameters Source'!W81="","-",'Annual Parameters Source'!W81) -> 1.193044131 | V84: =IF('Annual Parameters Source'!X81="","-",'Annual Parameters Source'!X81) -> 124.6733354 | W84: =IF('Annual Parameters Source'!Y81="","-",'Annual Parameters Source'!Y81) -> 124.6733354 | X84: =IF('Annual Parameters Source'!AD81="","-",'Annual Parameters Source'!AD81) -> 1.5 | Y84: =IF('Annual Parameters Source'!AE81="","-",'Annual Parameters Source'!AE81) -> 1.5 | Z84: =IF('Annual Parameters Source'!AF81="","-",'Annual Parameters Source'!AF81) -> 125.6141493 | AA84: =IF('Annual Parameters Source'!AG81="","-",'Annual Parameters Source'!AG81) -> 125.6141493 | AB84: =_xlfn.IFNA(INDEX('VoT7'!$U$38:$U$127,MATCH('Annual Parameters'!B84,'VoT7'!$A$38:$A$127,0)),"-") -> 0.9412819484 | AC84: =_xlfn.IFNA(INDEX('VoT7'!$V$38:$V$127,MATCH('Annual Parameters'!B84,'VoT7'!$A$38:$A$127,0)),"-") -> 114.7918622 | AD84: =_xlfn.IFNA(INDEX('VoT7'!$AF$38:$AF$127,MATCH('Annual Parameters'!B84,'VoT7'!$A$38:$A$127,0)),"-") -> 1.164474191 | AE84: =_xlfn.IFNA(INDEX('VoT7'!$AG$38:$AG$127,MATCH('Annual Parameters'!B84,'VoT7'!$A$38:$A$127,0)),"-") -> 115.4202035 | AF84: =_xlfn.IFNA(INDEX('VoT7'!$E$38:$E$127,MATCH('Annual Parameters'!B84,'VoT7'!$A$38:$A$127,0)),"-") -> 0.2823252426 | AG84: =_xlfn.IFNA(INDEX('VoT7'!$J$38:$J$127,MATCH('Annual Parameters'!B84,'VoT7'!$A$38:$A$127,0)),"-") -> 0.09264354227 | AH84: =_xlfn.IFNA(INDEX('VoT7'!$F$38:$F$127,MATCH('Annual Parameters'!B84,'VoT7'!$A$38:$A$127,0)),"-") -> 106.347787 | AI84: =_xlfn.IFNA(INDEX('VoT7'!$K$38:$K$127,MATCH('Annual Parameters'!B84,'VoT7'!$A$38:$A$127,0)),"-") -> 102.0016529 | AJ84: =IF('Annual Parameters Source'!J81="","-",'Annual Parameters Source'!J81) -> 0.8372897592 | AK84: =IF('Annual Parameters Source'!K81="","-",'Annual Parameters Source'!K81) -> 0.02447992204
B85: 2030 | D85: =IF('Annual Parameters Source'!D82="","-",'Annual Parameters Source'!D82/VLOOKUP($B$14,'Annual Parameters Source'!$B$42:$D$152,3,1)*100) -> 118.7821845 | E85: =IF('Annual Parameters Source'!E82="","-",VLOOKUP($B$16,'Annual Parameters Source'!$B$42:$AH$156,33,FALSE)/VLOOKUP($B$16,'Annual Parameters Source'!$B$42:$AH$156,4,FALSE)*'Annual Parameters Source'!E82) -> 3031479.649 | F85: =IF('Annual Parameters Source'!F82="","-",'Annual Parameters Source'!F82) -> 1.516005762 | G85: =IF('Annual Parameters Source'!G82="","-",'Annual Parameters Source'!G82) -> 200.0709904 | H85: =IF('Annual Parameters Source'!H82="","-",'Annual Parameters Source'!H82) -> - | I85: =IF('Annual Parameters Source'!I82="","-",'Annual Parameters Source'!I82) -> 0.3618737106 | J85: =IF('Annual Parameters Source'!L82="","-",'Annual Parameters Source'!L82) -> 123.408643 | K85: =IF('Annual Parameters Source'!M82="","-",'Annual Parameters Source'!M82) -> - | L85: =IF('Annual Parameters Source'!N82="","-",'Annual Parameters Source'!N82) -> 0.4841752276 | M85: =IF('Annual Parameters Source'!O82="","-",'Annual Parameters Source'!O82) -> 125.9585258 | N85: =IF('Annual Parameters Source'!P82="","-",'Annual Parameters Source'!P82) -> - | O85: =IF('Annual Parameters Source'!Q82="","-",'Annual Parameters Source'!Q82) -> 1.149970611 | P85: =IF('Annual Parameters Source'!R82="","-",'Annual Parameters Source'!R82) -> 162.120728 | Q85: =IF('Annual Parameters Source'!S82="","-",'Annual Parameters Source'!S82) -> - | R85: =IF('Annual Parameters Source'!T82="","-",'Annual Parameters Source'!T82) -> 1.026858739 | S85: =IF('Annual Parameters Source'!U82="","-",'Annual Parameters Source'!U82) -> 144.5478199 | T85: =IF('Annual Parameters Source'!V82="","-",'Annual Parameters Source'!V82) -> 1.149970611 | U85: =IF('Annual Parameters Source'!W82="","-",'Annual Parameters Source'!W82) -> 1.149970611 | V85: =IF('Annual Parameters Source'!X82="","-",'Annual Parameters Source'!X82) -> 126.1070421 | W85: =IF('Annual Parameters Source'!Y82="","-",'Annual Parameters Source'!Y82) -> 126.1070421 | X85: =IF('Annual Parameters Source'!AD82="","-",'Annual Parameters Source'!AD82) -> 1.5 | Y85: =IF('Annual Parameters Source'!AE82="","-",'Annual Parameters Source'!AE82) -> 1.5 | Z85: =IF('Annual Parameters Source'!AF82="","-",'Annual Parameters Source'!AF82) -> 127.4983615 | AA85: =IF('Annual Parameters Source'!AG82="","-",'Annual Parameters Source'!AG82) -> 127.4983615 | AB85: =_xlfn.IFNA(INDEX('VoT7'!$U$38:$U$127,MATCH('Annual Parameters'!B85,'VoT7'!$A$38:$A$127,0)),"-") -> 0.9183792449 | AC85: =_xlfn.IFNA(INDEX('VoT7'!$V$38:$V$127,MATCH('Annual Parameters'!B85,'VoT7'!$A$38:$A$127,0)),"-") -> 115.8460868 | AD85: =_xlfn.IFNA(INDEX('VoT7'!$AF$38:$AF$127,MATCH('Annual Parameters'!B85,'VoT7'!$A$38:$A$127,0)),"-") -> 1.174061125 | AE85: =_xlfn.IFNA(INDEX('VoT7'!$AG$38:$AG$127,MATCH('Annual Parameters'!B85,'VoT7'!$A$38:$A$127,0)),"-") -> 116.7753072 | AF85: =_xlfn.IFNA(INDEX('VoT7'!$E$38:$E$127,MATCH('Annual Parameters'!B85,'VoT7'!$A$38:$A$127,0)),"-") -> 0.3067122942 | AG85: =_xlfn.IFNA(INDEX('VoT7'!$J$38:$J$127,MATCH('Annual Parameters'!B85,'VoT7'!$A$38:$A$127,0)),"-") -> 0.1008367553 | AH85: =_xlfn.IFNA(INDEX('VoT7'!$F$38:$F$127,MATCH('Annual Parameters'!B85,'VoT7'!$A$38:$A$127,0)),"-") -> 106.6739687 | AI85: =_xlfn.IFNA(INDEX('VoT7'!$K$38:$K$127,MATCH('Annual Parameters'!B85,'VoT7'!$A$38:$A$127,0)),"-") -> 102.1045081 | AJ85: =IF('Annual Parameters Source'!J82="","-",'Annual Parameters Source'!J82) -> 0.8382821782 | AK85: =IF('Annual Parameters Source'!K82="","-",'Annual Parameters Source'!K82) -> -0.003097228917
B86: 2031 | D86: =IF('Annual Parameters Source'!D83="","-",'Annual Parameters Source'!D83/VLOOKUP($B$14,'Annual Parameters Source'!$B$42:$D$152,3,1)*100) -> 121.3483177 | E86: =IF('Annual Parameters Source'!E83="","-",VLOOKUP($B$16,'Annual Parameters Source'!$B$42:$AH$156,33,FALSE)/VLOOKUP($B$16,'Annual Parameters Source'!$B$42:$AH$156,4,FALSE)*'Annual Parameters Source'!E83) -> 3091575.524 | F86: =IF('Annual Parameters Source'!F83="","-",'Annual Parameters Source'!F83) -> 1.982394142 | G86: =IF('Annual Parameters Source'!G83="","-",'Annual Parameters Source'!G83) -> 204.037186 | H86: =IF('Annual Parameters Source'!H83="","-",'Annual Parameters Source'!H83) -> - | I86: =IF('Annual Parameters Source'!I83="","-",'Annual Parameters Source'!I83) -> 0.4324294409 | J86: =IF('Annual Parameters Source'!L83="","-",'Annual Parameters Source'!L83) -> 123.9422983 | K86: =IF('Annual Parameters Source'!M83="","-",'Annual Parameters Source'!M83) -> - | L86: =IF('Annual Parameters Source'!N83="","-",'Annual Parameters Source'!N83) -> 0.5737802377 | M86: =IF('Annual Parameters Source'!O83="","-",'Annual Parameters Source'!O83) -> 126.6812509 | N86: =IF('Annual Parameters Source'!P83="","-",'Annual Parameters Source'!P83) -> - | O86: =IF('Annual Parameters Source'!Q83="","-",'Annual Parameters Source'!Q83) -> 1.543291056 | P86: =IF('Annual Parameters Source'!R83="","-",'Annual Parameters Source'!R83) -> 164.6227227 | Q86: =IF('Annual Parameters Source'!S83="","-",'Annual Parameters Source'!S83) -> - | R86: =IF('Annual Parameters Source'!T83="","-",'Annual Parameters Source'!T83) -> 1.400577666 | S86: =IF('Annual Parameters Source'!U83="","-",'Annual Parameters Source'!U83) -> 146.5723244 | T86: =IF('Annual Parameters Source'!V83="","-",'Annual Parameters Source'!V83) -> 1.543291056 | U86: =IF('Annual Parameters Source'!W83="","-",'Annual Parameters Source'!W83) -> 1.543291056 | V86: =IF('Annual Parameters Source'!X83="","-",'Annual Parameters Source'!X83) -> 128.0532408 | W86: =IF('Annual Parameters Source'!Y83="","-",'Annual Parameters Source'!Y83) -> 128.0532408 | X86: =IF('Annual Parameters Source'!AD83="","-",'Annual Parameters Source'!AD83) -> 1.5 | Y86: =IF('Annual Parameters Source'!AE83="","-",'Annual Parameters Source'!AE83) -> 1.5 | Z86: =IF('Annual Parameters Source'!AF83="","-",'Annual Parameters Source'!AF83) -> 129.4108369 | AA86: =IF('Annual Parameters Source'!AG83="","-",'Annual Parameters Source'!AG83) -> 129.4108369 | AB86: =_xlfn.IFNA(INDEX('VoT7'!$U$38:$U$127,MATCH('Annual Parameters'!B86,'VoT7'!$A$38:$A$127,0)),"-") -> 1.351029321 | AC86: =_xlfn.IFNA(INDEX('VoT7'!$V$38:$V$127,MATCH('Annual Parameters'!B86,'VoT7'!$A$38:$A$127,0)),"-") -> 117.4112014 | AD86: =_xlfn.IFNA(INDEX('VoT7'!$AF$38:$AF$127,MATCH('Annual Parameters'!B86,'VoT7'!$A$38:$A$127,0)),"-") -> 1.32099146 | AE86: =_xlfn.IFNA(INDEX('VoT7'!$AG$38:$AG$127,MATCH('Annual Parameters'!B86,'VoT7'!$A$38:$A$127,0)),"-") -> 118.3178991 | AF86: =_xlfn.IFNA(INDEX('VoT7'!$E$38:$E$127,MATCH('Annual Parameters'!B86,'VoT7'!$A$38:$A$127,0)),"-") -> 0.8389688249 | AG86: =_xlfn.IFNA(INDEX('VoT7'!$J$38:$J$127,MATCH('Annual Parameters'!B86,'VoT7'!$A$38:$A$127,0)),"-") -> 0.2763922043 | AH86: =_xlfn.IFNA(INDEX('VoT7'!$F$38:$F$127,MATCH('Annual Parameters'!B86,'VoT7'!$A$38:$A$127,0)),"-") -> 107.5689301 | AI86: =_xlfn.IFNA(INDEX('VoT7'!$K$38:$K$127,MATCH('Annual Parameters'!B86,'VoT7'!$A$38:$A$127,0)),"-") -> 102.386717 | AJ86: =IF('Annual Parameters Source'!J83="","-",'Annual Parameters Source'!J83) -> 0.8388197563 | AK86: =IF('Annual Parameters Source'!K83="","-",'Annual Parameters Source'!K83) -> -0.02502854339
B87: 2032 | D87: =IF('Annual Parameters Source'!D84="","-",'Annual Parameters Source'!D84/VLOOKUP($B$14,'Annual Parameters Source'!$B$42:$D$152,3,1)*100) -> 124.139329 | E87: =IF('Annual Parameters Source'!E84="","-",VLOOKUP($B$16,'Annual Parameters Source'!$B$42:$AH$156,33,FALSE)/VLOOKUP($B$16,'Annual Parameters Source'!$B$42:$AH$156,4,FALSE)*'Annual Parameters Source'!E84) -> 3153792.341 | F87: =IF('Annual Parameters Source'!F84="","-",'Annual Parameters Source'!F84) -> 2.01246314 | G87: =IF('Annual Parameters Source'!G84="","-",'Annual Parameters Source'!G84) -> 208.1433592 | H87: =IF('Annual Parameters Source'!H84="","-",'Annual Parameters Source'!H84) -> - | I87: =IF('Annual Parameters Source'!I84="","-",'Annual Parameters Source'!I84) -> 0.4193530838 | J87: =IF('Annual Parameters Source'!L84="","-",'Annual Parameters Source'!L84) -> 124.4620542 | K87: =IF('Annual Parameters Source'!M84="","-",'Annual Parameters Source'!M84) -> - | L87: =IF('Annual Parameters Source'!N84="","-",'Annual Parameters Source'!N84) -> 0.5677508231 | M87: =IF('Annual Parameters Source'!O84="","-",'Annual Parameters Source'!O84) -> 127.4004847 | N87: =IF('Annual Parameters Source'!P84="","-",'Annual Parameters Source'!P84) -> - | O87: =IF('Annual Parameters Source'!Q84="","-",'Annual Parameters Source'!Q84) -> 1.586457199 | P87: =IF('Annual Parameters Source'!R84="","-",'Annual Parameters Source'!R84) -> 167.2343917 | Q87: =IF('Annual Parameters Source'!S84="","-",'Annual Parameters Source'!S84) -> - | R87: =IF('Annual Parameters Source'!T84="","-",'Annual Parameters Source'!T84) -> 1.436556257 | S87: =IF('Annual Parameters Source'!U84="","-",'Annual Parameters Source'!U84) -> 148.6779183 | T87: =IF('Annual Parameters Source'!V84="","-",'Annual Parameters Source'!V84) -> 1.586457199 | U87: =IF('Annual Parameters Source'!W84="","-",'Annual Parameters Source'!W84) -> 1.586457199 | V87: =IF('Annual Parameters Source'!X84="","-",'Annual Parameters Source'!X84) -> 130.0847507 | W87: =IF('Annual Parameters Source'!Y84="","-",'Annual Parameters Source'!Y84) -> 130.0847507 | X87: =IF('Annual Parameters Source'!AD84="","-",'Annual Parameters Source'!AD84) -> 1.5 | Y87: =IF('Annual Parameters Source'!AE84="","-",'Annual Parameters Source'!AE84) -> 1.5 | Z87: =IF('Annual Parameters Source'!AF84="","-",'Annual Parameters Source'!AF84) -> 131.3519995 | AA87: =IF('Annual Parameters Source'!AG84="","-",'Annual Parameters Source'!AG84) -> 131.3519995 | AB87: =_xlfn.IFNA(INDEX('VoT7'!$U$38:$U$127,MATCH('Annual Parameters'!B87,'VoT7'!$A$38:$A$127,0)),"-") -> 1.434034336 | AC87: =_xlfn.IFNA(INDEX('VoT7'!$V$38:$V$127,MATCH('Annual Parameters'!B87,'VoT7'!$A$38:$A$127,0)),"-") -> 119.0949184 | AD87: =_xlfn.IFNA(INDEX('VoT7'!$AF$38:$AF$127,MATCH('Annual Parameters'!B87,'VoT7'!$A$38:$A$127,0)),"-") -> 1.372046585 | AE87: =_xlfn.IFNA(INDEX('VoT7'!$AG$38:$AG$127,MATCH('Annual Parameters'!B87,'VoT7'!$A$38:$A$127,0)),"-") -> 119.9412758 | AF87: =_xlfn.IFNA(INDEX('VoT7'!$E$38:$E$127,MATCH('Annual Parameters'!B87,'VoT7'!$A$38:$A$127,0)),"-") -> 1.025243294 | AG87: =_xlfn.IFNA(INDEX('VoT7'!$J$38:$J$127,MATCH('Annual Parameters'!B87,'VoT7'!$A$38:$A$127,0)),"-") -> 0.339653895 | AH87: =_xlfn.IFNA(INDEX('VoT7'!$F$38:$F$127,MATCH('Annual Parameters'!B87,'VoT7'!$A$38:$A$127,0)),"-") -> 108.6717733 | AI87: =_xlfn.IFNA(INDEX('VoT7'!$K$38:$K$127,MATCH('Annual Parameters'!B87,'VoT7'!$A$38:$A$127,0)),"-") -> 102.7344775 | AJ87: =IF('Annual Parameters Source'!J84="","-",'Annual Parameters Source'!J84) -> 0.8374273934 | AK87: =IF('Annual Parameters Source'!K84="","-",'Annual Parameters Source'!K84) -> -0.04443025212
B88: 2033 | D88: =IF('Annual Parameters Source'!D85="","-",'Annual Parameters Source'!D85/VLOOKUP($B$14,'Annual Parameters Source'!$B$42:$D$152,3,1)*100) -> 126.9945336 | E88: =IF('Annual Parameters Source'!E85="","-",VLOOKUP($B$16,'Annual Parameters Source'!$B$42:$AH$156,33,FALSE)/VLOOKUP($B$16,'Annual Parameters Source'!$B$42:$AH$156,4,FALSE)*'Annual Parameters Source'!E85) -> 3218417.257 | F88: =IF('Annual Parameters Source'!F85="","-",'Annual Parameters Source'!F85) -> 2.049117642 | G88: =IF('Annual Parameters Source'!G85="","-",'Annual Parameters Source'!G85) -> 212.4084615 | H88: =IF('Annual Parameters Source'!H85="","-",'Annual Parameters Source'!H85) -> - | I88: =IF('Annual Parameters Source'!I85="","-",'Annual Parameters Source'!I85) -> 0.4070360391 | J88: =IF('Annual Parameters Source'!L85="","-",'Annual Parameters Source'!L85) -> 124.9686596 | K88: =IF('Annual Parameters Source'!M85="","-",'Annual Parameters Source'!M85) -> - | L88: =IF('Annual Parameters Source'!N85="","-",'Annual Parameters Source'!N85) -> 0.5537355203 | M88: =IF('Annual Parameters Source'!O85="","-",'Annual Parameters Source'!O85) -> 128.1059465 | N88: =IF('Annual Parameters Source'!P85="","-",'Annual Parameters Source'!P85) -> - | O88: =IF('Annual Parameters Source'!Q85="","-",'Annual Parameters Source'!Q85) -> 1.635424834 | P88: =IF('Annual Parameters Source'!R85="","-",'Annual Parameters Source'!R85) -> 169.9693845 | Q88: =IF('Annual Parameters Source'!S85="","-",'Annual Parameters Source'!S85) -> - | R88: =IF('Annual Parameters Source'!T85="","-",'Annual Parameters Source'!T85) -> 1.487147259 | S88: =IF('Annual Parameters Source'!U85="","-",'Annual Parameters Source'!U85) -> 150.8889779 | T88: =IF('Annual Parameters Source'!V85="","-",'Annual Parameters Source'!V85) -> 1.635424834 | U88: =IF('Annual Parameters Source'!W85="","-",'Annual Parameters Source'!W85) -> 1.635424834 | V88: =IF('Annual Parameters Source'!X85="","-",'Annual Parameters Source'!X85) -> 132.212189 | W88: =IF('Annual Parameters Source'!Y85="","-",'Annual Parameters Source'!Y85) -> 132.212189 | X88: =IF('Annual Parameters Source'!AD85="","-",'Annual Parameters Source'!AD85) -> 1.5 | Y88: =IF('Annual Parameters Source'!AE85="","-",'Annual Parameters Source'!AE85) -> 1.5 | Z88: =IF('Annual Parameters Source'!AF85="","-",'Annual Parameters Source'!AF85) -> 133.3222795 | AA88: =IF('Annual Parameters Source'!AG85="","-",'Annual Parameters Source'!AG85) -> 133.3222795 | AB88: =_xlfn.IFNA(INDEX('VoT7'!$U$38:$U$127,MATCH('Annual Parameters'!B88,'VoT7'!$A$38:$A$127,0)),"-") -> 1.477497071 | AC88: =_xlfn.IFNA(INDEX('VoT7'!$V$38:$V$127,MATCH('Annual Parameters'!B88,'VoT7'!$A$38:$A$127,0)),"-") -> 120.8545423 | AD88: =_xlfn.IFNA(INDEX('VoT7'!$AF$38:$AF$127,MATCH('Annual Parameters'!B88,'VoT7'!$A$38:$A$127,0)),"-") -> 1.37956062 | AE88: =_xlfn.IFNA(INDEX('VoT7'!$AG$38:$AG$127,MATCH('Annual Parameters'!B88,'VoT7'!$A$38:$A$127,0)),"-") -> 121.5959384 | AF88: =_xlfn.IFNA(INDEX('VoT7'!$E$38:$E$127,MATCH('Annual Parameters'!B88,'VoT7'!$A$38:$A$127,0)),"-") -> 1.051589218 | AG88: =_xlfn.IFNA(INDEX('VoT7'!$J$38:$J$127,MATCH('Annual Parameters'!B88,'VoT7'!$A$38:$A$127,0)),"-") -> 0.3507624483 | AH88: =_xlfn.IFNA(INDEX('VoT7'!$F$38:$F$127,MATCH('Annual Parameters'!B88,'VoT7'!$A$38:$A$127,0)),"-") -> 109.814554 | AI88: =_xlfn.IFNA(INDEX('VoT7'!$K$38:$K$127,MATCH('Annual Parameters'!B88,'VoT7'!$A$38:$A$127,0)),"-") -> 103.0948314 | AJ88: =IF('Annual Parameters Source'!J85="","-",'Annual Parameters Source'!J85) -> 0.8342735498 | AK88: =IF('Annual Parameters Source'!K85="","-",'Annual Parameters Source'!K85) -> -0.06377874581
B89: 2034 | D89: =IF('Annual Parameters Source'!D86="","-",'Annual Parameters Source'!D86/VLOOKUP($B$14,'Annual Parameters Source'!$B$42:$D$152,3,1)*100) -> 129.9154078 | E89: =IF('Annual Parameters Source'!E86="","-",VLOOKUP($B$16,'Annual Parameters Source'!$B$42:$AH$156,33,FALSE)/VLOOKUP($B$16,'Annual Parameters Source'!$B$42:$AH$156,4,FALSE)*'Annual Parameters Source'!E86) -> 3285100.049 | F89: =IF('Annual Parameters Source'!F86="","-",'Annual Parameters Source'!F86) -> 2.071912578 | G89: =IF('Annual Parameters Source'!G86="","-",'Annual Parameters Source'!G86) -> 216.8093791 | H89: =IF('Annual Parameters Source'!H86="","-",'Annual Parameters Source'!H86) -> - | I89: =IF('Annual Parameters Source'!I86="","-",'Annual Parameters Source'!I86) -> 0.3957822003 | J89: =IF('Annual Parameters Source'!L86="","-",'Annual Parameters Source'!L86) -> 125.4632633 | K89: =IF('Annual Parameters Source'!M86="","-",'Annual Parameters Source'!M86) -> - | L89: =IF('Annual Parameters Source'!N86="","-",'Annual Parameters Source'!N86) -> 0.5331813012 | M89: =IF('Annual Parameters Source'!O86="","-",'Annual Parameters Source'!O86) -> 128.7889834 | N89: =IF('Annual Parameters Source'!P86="","-",'Annual Parameters Source'!P86) -> - | O89: =IF('Annual Parameters Source'!Q86="","-",'Annual Parameters Source'!Q86) -> 1.669522704 | P89: =IF('Annual Parameters Source'!R86="","-",'Annual Parameters Source'!R86) -> 172.8070619 | Q89: =IF('Annual Parameters Source'!S86="","-",'Annual Parameters Source'!S86) -> - | R89: =IF('Annual Parameters Source'!T86="","-",'Annual Parameters Source'!T86) -> 1.530570561 | S89: =IF('Annual Parameters Source'!U86="","-",'Annual Parameters Source'!U86) -> 153.1984402 | T89: =IF('Annual Parameters Source'!V86="","-",'Annual Parameters Source'!V86) -> 1.669522704 | U89: =IF('Annual Parameters Source'!W86="","-",'Annual Parameters Source'!W86) -> 1.669522704 | V89: =IF('Annual Parameters Source'!X86="","-",'Annual Parameters Source'!X86) -> 134.4195015 | W89: =IF('Annual Parameters Source'!Y86="","-",'Annual Parameters Source'!Y86) -> 134.4195015 | X89: =IF('Annual Parameters Source'!AD86="","-",'Annual Parameters Source'!AD86) -> 1.5 | Y89: =IF('Annual Parameters Source'!AE86="","-",'Annual Parameters Source'!AE86) -> 1.5 | Z89: =IF('Annual Parameters Source'!AF86="","-",'Annual Parameters Source'!AF86) -> 135.3221137 | AA89: =IF('Annual Parameters Source'!AG86="","-",'Annual Parameters Source'!AG86) -> 135.3221137 | AB89: =_xlfn.IFNA(INDEX('VoT7'!$U$38:$U$127,MATCH('Annual Parameters'!B89,'VoT7'!$A$38:$A$127,0)),"-") -> 1.51022748 | AC89: =_xlfn.IFNA(INDEX('VoT7'!$V$38:$V$127,MATCH('Annual Parameters'!B89,'VoT7'!$A$38:$A$127,0)),"-") -> 122.6797208 | AD89: =_xlfn.IFNA(INDEX('VoT7'!$AF$38:$AF$127,MATCH('Annual Parameters'!B89,'VoT7'!$A$38:$A$127,0)),"-") -> 1.38706111 | AE89: =_xlfn.IFNA(INDEX('VoT7'!$AG$38:$AG$127,MATCH('Annual Parameters'!B89,'VoT7'!$A$38:$A$127,0)),"-") -> 123.2825484 | AF89: =_xlfn.IFNA(INDEX('VoT7'!$E$38:$E$127,MATCH('Annual Parameters'!B89,'VoT7'!$A$38:$A$127,0)),"-") -> 1.078149753 | AG89: =_xlfn.IFNA(INDEX('VoT7'!$J$38:$J$127,MATCH('Annual Parameters'!B89,'VoT7'!$A$38:$A$127,0)),"-") -> 0.3621333544 | AH89: =_xlfn.IFNA(INDEX('VoT7'!$F$38:$F$127,MATCH('Annual Parameters'!B89,'VoT7'!$A$38:$A$127,0)),"-") -> 110.9985193 | AI89: =_xlfn.IFNA(INDEX('VoT7'!$K$38:$K$127,MATCH('Annual Parameters'!B89,'VoT7'!$A$38:$A$127,0)),"-") -> 103.4681722 | AJ89: =IF('Annual Parameters Source'!J86="","-",'Annual Parameters Source'!J86) -> 0.8313446171 | AK89: =IF('Annual Parameters Source'!K86="","-",'Annual Parameters Source'!K86) -> -0.08257607315
B90: 2035 | D90: =IF('Annual Parameters Source'!D87="","-",'Annual Parameters Source'!D87/VLOOKUP($B$14,'Annual Parameters Source'!$B$42:$D$152,3,1)*100) -> 132.9034622 | E90: =IF('Annual Parameters Source'!E87="","-",VLOOKUP($B$16,'Annual Parameters Source'!$B$42:$AH$156,33,FALSE)/VLOOKUP($B$16,'Annual Parameters Source'!$B$42:$AH$156,4,FALSE)*'Annual Parameters Source'!E87) -> 3353355.5 | F90: =IF('Annual Parameters Source'!F87="","-",'Annual Parameters Source'!F87) -> 2.07772824 | G90: =IF('Annual Parameters Source'!G87="","-",'Annual Parameters Source'!G87) -> 221.3140888 | H90: =IF('Annual Parameters Source'!H87="","-",'Annual Parameters Source'!H87) -> - | I90: =IF('Annual Parameters Source'!I87="","-",'Annual Parameters Source'!I87) -> 0.3852821205 | J90: =IF('Annual Parameters Source'!L87="","-",'Annual Parameters Source'!L87) -> 125.9466508 | K90: =IF('Annual Parameters Source'!M87="","-",'Annual Parameters Source'!M87) -> - | L90: =IF('Annual Parameters Source'!N87="","-",'Annual Parameters Source'!N87) -> 0.5175779949 | M90: =IF('Annual Parameters Source'!O87="","-",'Annual Parameters Source'!O87) -> 129.4555669 | N90: =IF('Annual Parameters Source'!P87="","-",'Annual Parameters Source'!P87) -> - | O90: =IF('Annual Parameters Source'!Q87="","-",'Annual Parameters Source'!Q87) -> 1.685950454 | P90: =IF('Annual Parameters Source'!R87="","-",'Annual Parameters Source'!R87) -> 175.7205034 | Q90: =IF('Annual Parameters Source'!S87="","-",'Annual Parameters Source'!S87) -> - | R90: =IF('Annual Parameters Source'!T87="","-",'Annual Parameters Source'!T87) -> 1.55211683 | S90: =IF('Annual Parameters Source'!U87="","-",'Annual Parameters Source'!U87) -> 155.576259 | T90: =IF('Annual Parameters Source'!V87="","-",'Annual Parameters Source'!V87) -> 1.685950454 | U90: =IF('Annual Parameters Source'!W87="","-",'Annual Parameters Source'!W87) -> 1.685950454 | V90: =IF('Annual Parameters Source'!X87="","-",'Annual Parameters Source'!X87) -> 136.6857477 | W90: =IF('Annual Parameters Source'!Y87="","-",'Annual Parameters Source'!Y87) -> 136.6857477 | X90: =IF('Annual Parameters Source'!AD87="","-",'Annual Parameters Source'!AD87) -> 1.5 | Y90: =IF('Annual Parameters Source'!AE87="","-",'Annual Parameters Source'!AE87) -> 1.5 | Z90: =IF('Annual Parameters Source'!AF87="","-",'Annual Parameters Source'!AF87) -> 137.3519454 | AA90: =IF('Annual Parameters Source'!AG87="","-",'Annual Parameters Source'!AG87) -> 137.3519454 | AB90: =_xlfn.IFNA(INDEX('VoT7'!$U$38:$U$127,MATCH('Annual Parameters'!B90,'VoT7'!$A$38:$A$127,0)),"-") -> 1.530109092 | AC90: =_xlfn.IFNA(INDEX('VoT7'!$V$38:$V$127,MATCH('Annual Parameters'!B90,'VoT7'!$A$38:$A$127,0)),"-") -> 124.5568544 | AD90: =_xlfn.IFNA(INDEX('VoT7'!$AF$38:$AF$127,MATCH('Annual Parameters'!B90,'VoT7'!$A$38:$A$127,0)),"-") -> 1.394552149 | AE90: =_xlfn.IFNA(INDEX('VoT7'!$AG$38:$AG$127,MATCH('Annual Parameters'!B90,'VoT7'!$A$38:$A$127,0)),"-") -> 125.0017878 | AF90: =_xlfn.IFNA(INDEX('VoT7'!$E$38:$E$127,MATCH('Annual Parameters'!B90,'VoT7'!$A$38:$A$127,0)),"-") -> 1.104926613 | AG90: =_xlfn.IFNA(INDEX('VoT7'!$J$38:$J$127,MATCH('Annual Parameters'!B90,'VoT7'!$A$38:$A$127,0)),"-") -> 0.3737750195 | AH90: =_xlfn.IFNA(INDEX('VoT7'!$F$38:$F$127,MATCH('Annual Parameters'!B90,'VoT7'!$A$38:$A$127,0)),"-") -> 112.2249715 | AI90: =_xlfn.IFNA(INDEX('VoT7'!$K$38:$K$127,MATCH('Annual Parameters'!B90,'VoT7'!$A$38:$A$127,0)),"-") -> 103.8549104 | AJ90: =IF('Annual Parameters Source'!J87="","-",'Annual Parameters Source'!J87) -> 0.8269095896 | AK90: =IF('Annual Parameters Source'!K87="","-",'Annual Parameters Source'!K87) -> -0.1010677568
B91: 2036 | D91: =IF('Annual Parameters Source'!D88="","-",'Annual Parameters Source'!D88/VLOOKUP($B$14,'Annual Parameters Source'!$B$42:$D$152,3,1)*100) -> 135.9602418 | E91: =IF('Annual Parameters Source'!E88="","-",VLOOKUP($B$16,'Annual Parameters Source'!$B$42:$AH$156,33,FALSE)/VLOOKUP($B$16,'Annual Parameters Source'!$B$42:$AH$156,4,FALSE)*'Annual Parameters Source'!E88) -> 3423623.097 | F91: =IF('Annual Parameters Source'!F88="","-",'Annual Parameters Source'!F88) -> 2.095441323 | G91: =IF('Annual Parameters Source'!G88="","-",'Annual Parameters Source'!G88) -> 225.9515957 | H91: =IF('Annual Parameters Source'!H88="","-",'Annual Parameters Source'!H88) -> - | I91: =IF('Annual Parameters Source'!I88="","-",'Annual Parameters Source'!I88) -> 0.375694056 | J91: =IF('Annual Parameters Source'!L88="","-",'Annual Parameters Source'!L88) -> 126.4198249 | K91: =IF('Annual Parameters Source'!M88="","-",'Annual Parameters Source'!M88) -> - | L91: =IF('Annual Parameters Source'!N88="","-",'Annual Parameters Source'!N88) -> 0.5231656843 | M91: =IF('Annual Parameters Source'!O88="","-",'Annual Parameters Source'!O88) -> 130.132834 | N91: =IF('Annual Parameters Source'!P88="","-",'Annual Parameters Source'!P88) -> - | O91: =IF('Annual Parameters Source'!Q88="","-",'Annual Parameters Source'!Q88) -> 1.713310462 | P91: =IF('Annual Parameters Source'!R88="","-",'Annual Parameters Source'!R88) -> 178.7311411 | Q91: =IF('Annual Parameters Source'!S88="","-",'Annual Parameters Source'!S88) -> - | R91: =IF('Annual Parameters Source'!T88="","-",'Annual Parameters Source'!T88) -> 1.564092842 | S91: =IF('Annual Parameters Source'!U88="","-",'Annual Parameters Source'!U88) -> 158.0096161 | T91: =IF('Annual Parameters Source'!V88="","-",'Annual Parameters Source'!V88) -> 1.713310462 | U91: =IF('Annual Parameters Source'!W88="","-",'Annual Parameters Source'!W88) -> 1.713310462 | V91: =IF('Annual Parameters Source'!X88="","-",'Annual Parameters Source'!X88) -> 139.0275989 | W91: =IF('Annual Parameters Source'!Y88="","-",'Annual Parameters Source'!Y88) -> 139.0275989 | X91: =IF('Annual Parameters Source'!AD88="","-",'Annual Parameters Source'!AD88) -> 1.5 | Y91: =IF('Annual Parameters Source'!AE88="","-",'Annual Parameters Source'!AE88) -> 1.5 | Z91: =IF('Annual Parameters Source'!AF88="","-",'Annual Parameters Source'!AF88) -> 139.4122245 | AA91: =IF('Annual Parameters Source'!AG88="","-",'Annual Parameters Source'!AG88) -> 139.4122245 | AB91: =_xlfn.IFNA(INDEX('VoT7'!$U$38:$U$127,MATCH('Annual Parameters'!B91,'VoT7'!$A$38:$A$127,0)),"-") -> 1.558024152 | AC91: =_xlfn.IFNA(INDEX('VoT7'!$V$38:$V$127,MATCH('Annual Parameters'!B91,'VoT7'!$A$38:$A$127,0)),"-") -> 126.4974803 | AD91: =_xlfn.IFNA(INDEX('VoT7'!$AF$38:$AF$127,MATCH('Annual Parameters'!B91,'VoT7'!$A$38:$A$127,0)),"-") -> 1.402037846 | AE91: =_xlfn.IFNA(INDEX('VoT7'!$AG$38:$AG$127,MATCH('Annual Parameters'!B91,'VoT7'!$A$38:$A$127,0)),"-") -> 126.7543602 | AF91: =_xlfn.IFNA(INDEX('VoT7'!$E$38:$E$127,MATCH('Annual Parameters'!B91,'VoT7'!$A$38:$A$127,0)),"-") -> 1.131921313 | AG91: =_xlfn.IFNA(INDEX('VoT7'!$J$38:$J$127,MATCH('Annual Parameters'!B91,'VoT7'!$A$38:$A$127,0)),"-") -> 0.3856960013 | AH91: =_xlfn.IFNA(INDEX('VoT7'!$F$38:$F$127,MATCH('Annual Parameters'!B91,'VoT7'!$A$38:$A$127,0)),"-") -> 113.4952699 | AI91: =_xlfn.IFNA(INDEX('VoT7'!$K$38:$K$127,MATCH('Annual Parameters'!B91,'VoT7'!$A$38:$A$127,0)),"-") -> 104.2554746 | AJ91: =IF('Annual Parameters Source'!J88="","-",'Annual Parameters Source'!J88) -> 0.8206085588 | AK91: =IF('Annual Parameters Source'!K88="","-",'Annual Parameters Source'!K88) -> -0.1189197059
B92: 2037 | D92: =IF('Annual Parameters Source'!D89="","-",'Annual Parameters Source'!D89/VLOOKUP($B$14,'Annual Parameters Source'!$B$42:$D$152,3,1)*100) -> 139.0873274 | E92: =IF('Annual Parameters Source'!E89="","-",VLOOKUP($B$16,'Annual Parameters Source'!$B$42:$AH$156,33,FALSE)/VLOOKUP($B$16,'Annual Parameters Source'!$B$42:$AH$156,4,FALSE)*'Annual Parameters Source'!E89) -> 3497561.291 | F92: =IF('Annual Parameters Source'!F89="","-",'Annual Parameters Source'!F89) -> 2.159647589 | G92: =IF('Annual Parameters Source'!G89="","-",'Annual Parameters Source'!G89) -> 230.8313539 | H92: =IF('Annual Parameters Source'!H89="","-",'Annual Parameters Source'!H89) -> - | I92: =IF('Annual Parameters Source'!I89="","-",'Annual Parameters Source'!I89) -> 0.3671120561 | J92: =IF('Annual Parameters Source'!L89="","-",'Annual Parameters Source'!L89) -> 126.8839273 | K92: =IF('Annual Parameters Source'!M89="","-",'Annual Parameters Source'!M89) -> - | L92: =IF('Annual Parameters Source'!N89="","-",'Annual Parameters Source'!N89) -> 0.5047842807 | M92: =IF('Annual Parameters Source'!O89="","-",'Annual Parameters Source'!O89) -> 130.789724 | N92: =IF('Annual Parameters Source'!P89="","-",'Annual Parameters Source'!P89) -> - | O92: =IF('Annual Parameters Source'!Q89="","-",'Annual Parameters Source'!Q89) -> 1.785978989 | P92: =IF('Annual Parameters Source'!R89="","-",'Annual Parameters Source'!R89) -> 181.9232418 | Q92: =IF('Annual Parameters Source'!S89="","-",'Annual Parameters Source'!S89) -> - | R92: =IF('Annual Parameters Source'!T89="","-",'Annual Parameters Source'!T89) -> 1.646551774 | S92: =IF('Annual Parameters Source'!U89="","-",'Annual Parameters Source'!U89) -> 160.6113262 | T92: =IF('Annual Parameters Source'!V89="","-",'Annual Parameters Source'!V89) -> 1.785978989 | U92: =IF('Annual Parameters Source'!W89="","-",'Annual Parameters Source'!W89) -> 1.785978989 | V92: =IF('Annual Parameters Source'!X89="","-",'Annual Parameters Source'!X89) -> 141.5106026 | W92: =IF('Annual Parameters Source'!Y89="","-",'Annual Parameters Source'!Y89) -> 141.5106026 | X92: =IF('Annual Parameters Source'!AD89="","-",'Annual Parameters Source'!AD89) -> 1.5 | Y92: =IF('Annual Parameters Source'!AE89="","-",'Annual Parameters Source'!AE89) -> 1.5 | Z92: =IF('Annual Parameters Source'!AF89="","-",'Annual Parameters Source'!AF89) -> 141.5034079 | AA92: =IF('Annual Parameters Source'!AG89="","-",'Annual Parameters Source'!AG89) -> 141.5034079 | AB92: =_xlfn.IFNA(INDEX('VoT7'!$U$38:$U$127,MATCH('Annual Parameters'!B92,'VoT7'!$A$38:$A$127,0)),"-") -> 1.613111965 | AC92: =_xlfn.IFNA(INDEX('VoT7'!$V$38:$V$127,MATCH('Annual Parameters'!B92,'VoT7'!$A$38:$A$127,0)),"-") -> 128.5380263 | AD92: =_xlfn.IFNA(INDEX('VoT7'!$AF$38:$AF$127,MATCH('Annual Parameters'!B92,'VoT7'!$A$38:$A$127,0)),"-") -> 1.403392322 | AE92: =_xlfn.IFNA(INDEX('VoT7'!$AG$38:$AG$127,MATCH('Annual Parameters'!B92,'VoT7'!$A$38:$A$127,0)),"-") -> 128.5332211 | AF92: =_xlfn.IFNA(INDEX('VoT7'!$E$38:$E$127,MATCH('Annual Parameters'!B92,'VoT7'!$A$38:$A$127,0)),"-") -> 1.136041042 | AG92: =_xlfn.IFNA(INDEX('VoT7'!$J$38:$J$127,MATCH('Annual Parameters'!B92,'VoT7'!$A$38:$A$127,0)),"-") -> 0.3899773144 | AH92: =_xlfn.IFNA(INDEX('VoT7'!$F$38:$F$127,MATCH('Annual Parameters'!B92,'VoT7'!$A$38:$A$127,0)),"-") -> 114.7846227 | AI92: =_xlfn.IFNA(INDEX('VoT7'!$K$38:$K$127,MATCH('Annual Parameters'!B92,'VoT7'!$A$38:$A$127,0)),"-") -> 104.6620473 | AJ92: =IF('Annual Parameters Source'!J89="","-",'Annual Parameters Source'!J89) -> 0.8137704604 | AK92: =IF('Annual Parameters Source'!K89="","-",'Annual Parameters Source'!K89) -> -0.1358194203
B93: 2038 | D93: =IF('Annual Parameters Source'!D90="","-",'Annual Parameters Source'!D90/VLOOKUP($B$14,'Annual Parameters Source'!$B$42:$D$152,3,1)*100) -> 142.2863359 | E93: =IF('Annual Parameters Source'!E90="","-",VLOOKUP($B$16,'Annual Parameters Source'!$B$42:$AH$156,33,FALSE)/VLOOKUP($B$16,'Annual Parameters Source'!$B$42:$AH$156,4,FALSE)*'Annual Parameters Source'!E90) -> 3570779.18 | F93: =IF('Annual Parameters Source'!F90="","-",'Annual Parameters Source'!F90) -> 2.093398329 | G93: =IF('Annual Parameters Source'!G90="","-",'Annual Parameters Source'!G90) -> 235.6635736 | H93: =IF('Annual Parameters Source'!H90="","-",'Annual Parameters Source'!H90) -> - | I93: =IF('Annual Parameters Source'!I90="","-",'Annual Parameters Source'!I90) -> 0.3596291299 | J93: =IF('Annual Parameters Source'!L90="","-",'Annual Parameters Source'!L90) -> 127.3402389 | K93: =IF('Annual Parameters Source'!M90="","-",'Annual Parameters Source'!M90) -> - | L93: =IF('Annual Parameters Source'!N90="","-",'Annual Parameters Source'!N90) -> 0.4887480687 | M93: =IF('Annual Parameters Source'!O90="","-",'Annual Parameters Source'!O90) -> 131.4289563 | N93: =IF('Annual Parameters Source'!P90="","-",'Annual Parameters Source'!P90) -> - | O93: =IF('Annual Parameters Source'!Q90="","-",'Annual Parameters Source'!Q90) -> 1.727556404 | P93: =IF('Annual Parameters Source'!R90="","-",'Annual Parameters Source'!R90) -> 185.0660684 | Q93: =IF('Annual Parameters Source'!S90="","-",'Annual Parameters Source'!S90) -> - | R93: =IF('Annual Parameters Source'!T90="","-",'Annual Parameters Source'!T90) -> 1.596845708 | S93: =IF('Annual Parameters Source'!U90="","-",'Annual Parameters Source'!U90) -> 163.1760413 | T93: =IF('Annual Parameters Source'!V90="","-",'Annual Parameters Source'!V90) -> 1.727556404 | U93: =IF('Annual Parameters Source'!W90="","-",'Annual Parameters Source'!W90) -> 1.727556404 | V93: =IF('Annual Parameters Source'!X90="","-",'Annual Parameters Source'!X90) -> 143.9552781 | W93: =IF('Annual Parameters Source'!Y90="","-",'Annual Parameters Source'!Y90) -> 143.9552781 | X93: =IF('Annual Parameters Source'!AD90="","-",'Annual Parameters Source'!AD90) -> 1.5 | Y93: =IF('Annual Parameters Source'!AE90="","-",'Annual Parameters Source'!AE90) -> 1.5 | Z93: =IF('Annual Parameters Source'!AF90="","-",'Annual Parameters Source'!AF90) -> 143.625959 | AA93: =IF('Annual Parameters Source'!AG90="","-",'Annual Parameters Source'!AG90) -> 143.625959 | AB93: =_xlfn.IFNA(INDEX('VoT7'!$U$38:$U$127,MATCH('Annual Parameters'!B93,'VoT7'!$A$38:$A$127,0)),"-") -> 1.572049231 | AC93: =_xlfn.IFNA(INDEX('VoT7'!$V$38:$V$127,MATCH('Annual Parameters'!B93,'VoT7'!$A$38:$A$127,0)),"-") -> 130.5587073 | AD93: =_xlfn.IFNA(INDEX('VoT7'!$AF$38:$AF$127,MATCH('Annual Parameters'!B93,'VoT7'!$A$38:$A$127,0)),"-") -> 1.404729343 | AE93: =_xlfn.IFNA(INDEX('VoT7'!$AG$38:$AG$127,MATCH('Annual Parameters'!B93,'VoT7'!$A$38:$A$127,0)),"-") -> 130.338765 | AF93: =_xlfn.IFNA(INDEX('VoT7'!$E$38:$E$127,MATCH('Annual Parameters'!B93,'VoT7'!$A$38:$A$127,0)),"-") -> 1.140129321 | AG93: =_xlfn.IFNA(INDEX('VoT7'!$J$38:$J$127,MATCH('Annual Parameters'!B93,'VoT7'!$A$38:$A$127,0)),"-") -> 0.3942893351 | AH93: =_xlfn.IFNA(INDEX('VoT7'!$F$38:$F$127,MATCH('Annual Parameters'!B93,'VoT7'!$A$38:$A$127,0)),"-") -> 116.0933159 | AI93: =_xlfn.IFNA(INDEX('VoT7'!$K$38:$K$127,MATCH('Annual Parameters'!B93,'VoT7'!$A$38:$A$127,0)),"-") -> 105.0747186 | AJ93: =IF('Annual Parameters Source'!J90="","-",'Annual Parameters Source'!J90) -> 0.8068786557 | AK93: =IF('Annual Parameters Source'!K90="","-",'Annual Parameters Source'!K90) -> -0.1515467361
B94: 2039 | D94: =IF('Annual Parameters Source'!D91="","-",'Annual Parameters Source'!D91/VLOOKUP($B$14,'Annual Parameters Source'!$B$42:$D$152,3,1)*100) -> 145.5589217 | E94: =IF('Annual Parameters Source'!E91="","-",VLOOKUP($B$16,'Annual Parameters Source'!$B$42:$AH$156,33,FALSE)/VLOOKUP($B$16,'Annual Parameters Source'!$B$42:$AH$156,4,FALSE)*'Annual Parameters Source'!E91) -> 3643497.576 | F94: =IF('Annual Parameters Source'!F91="","-",'Annual Parameters Source'!F91) -> 2.036485374 | G94: =IF('Annual Parameters Source'!G91="","-",'Annual Parameters Source'!G91) -> 240.4628278 | H94: =IF('Annual Parameters Source'!H91="","-",'Annual Parameters Source'!H91) -> - | I94: =IF('Annual Parameters Source'!I91="","-",'Annual Parameters Source'!I91) -> 0.3529087582 | J94: =IF('Annual Parameters Source'!L91="","-",'Annual Parameters Source'!L91) -> 127.7896337 | K94: =IF('Annual Parameters Source'!M91="","-",'Annual Parameters Source'!M91) -> - | L94: =IF('Annual Parameters Source'!N91="","-",'Annual Parameters Source'!N91) -> 0.4642704265 | M94: =IF('Annual Parameters Source'!O91="","-",'Annual Parameters Source'!O91) -> 132.0391421 | N94: =IF('Annual Parameters Source'!P91="","-",'Annual Parameters Source'!P91) -> - | O94: =IF('Annual Parameters Source'!Q91="","-",'Annual Parameters Source'!Q91) -> 1.67765602 | P94: =IF('Annual Parameters Source'!R91="","-",'Annual Parameters Source'!R91) -> 188.1708404 | Q94: =IF('Annual Parameters Source'!S91="","-",'Annual Parameters Source'!S91) -> - | R94: =IF('Annual Parameters Source'!T91="","-",'Annual Parameters Source'!T91) -> 1.56494935 | S94: =IF('Annual Parameters Source'!U91="","-",'Annual Parameters Source'!U91) -> 165.7296637 | T94: =IF('Annual Parameters Source'!V91="","-",'Annual Parameters Source'!V91) -> 1.67765602 | U94: =IF('Annual Parameters Source'!W91="","-",'Annual Parameters Source'!W91) -> 1.67765602 | V94: =IF('Annual Parameters Source'!X91="","-",'Annual Parameters Source'!X91) -> 146.3703525 | W94: =IF('Annual Parameters Source'!Y91="","-",'Annual Parameters Source'!Y91) -> 146.3703525 | X94: =IF('Annual Parameters Source'!AD91="","-",'Annual Parameters Source'!AD91) -> 1.5 | Y94: =IF('Annual Parameters Source'!AE91="","-",'Annual Parameters Source'!AE91) -> 1.5 | Z94: =IF('Annual Parameters Source'!AF91="","-",'Annual Parameters Source'!AF91) -> 145.7803484 | AA94: =IF('Annual Parameters Source'!AG91="","-",'Annual Parameters Source'!AG91) -> 145.7803484 | AB94: =_xlfn.IFNA(INDEX('VoT7'!$U$38:$U$127,MATCH('Annual Parameters'!B94,'VoT7'!$A$38:$A$127,0)),"-") -> 1.537033228 | AC94: =_xlfn.IFNA(INDEX('VoT7'!$V$38:$V$127,MATCH('Annual Parameters'!B94,'VoT7'!$A$38:$A$127,0)),"-") -> 132.565438 | AD94: =_xlfn.IFNA(INDEX('VoT7'!$AF$38:$AF$127,MATCH('Annual Parameters'!B94,'VoT7'!$A$38:$A$127,0)),"-") -> 1.406049099 | AE94: =_xlfn.IFNA(INDEX('VoT7'!$AG$38:$AG$127,MATCH('Annual Parameters'!B94,'VoT7'!$A$38:$A$127,0)),"-") -> 132.171392 | AF94: =_xlfn.IFNA(INDEX('VoT7'!$E$38:$E$127,MATCH('Annual Parameters'!B94,'VoT7'!$A$38:$A$127,0)),"-") -> 1.14418606 | AG94: =_xlfn.IFNA(INDEX('VoT7'!$J$38:$J$127,MATCH('Annual Parameters'!B94,'VoT7'!$A$38:$A$127,0)),"-") -> 0.3986319121 | AH94: =_xlfn.IFNA(INDEX('VoT7'!$F$38:$F$127,MATCH('Annual Parameters'!B94,'VoT7'!$A$38:$A$127,0)),"-") -> 117.4216394 | AI94: =_xlfn.IFNA(INDEX('VoT7'!$K$38:$K$127,MATCH('Annual Parameters'!B94,'VoT7'!$A$38:$A$127,0)),"-") -> 105.49358 | AJ94: =IF('Annual Parameters Source'!J91="","-",'Annual Parameters Source'!J91) -> 0.800244629 | AK94: =IF('Annual Parameters Source'!K91="","-",'Annual Parameters Source'!K91) -> -0.1662143075
B95: 2040 | D95: =IF('Annual Parameters Source'!D92="","-",'Annual Parameters Source'!D92/VLOOKUP($B$14,'Annual Parameters Source'!$B$42:$D$152,3,1)*100) -> 148.9067769 | E95: =IF('Annual Parameters Source'!E92="","-",VLOOKUP($B$16,'Annual Parameters Source'!$B$42:$AH$156,33,FALSE)/VLOOKUP($B$16,'Annual Parameters Source'!$B$42:$AH$156,4,FALSE)*'Annual Parameters Source'!E92) -> 3715186.072 | F95: =IF('Annual Parameters Source'!F92="","-",'Annual Parameters Source'!F92) -> 1.967573588 | G95: =IF('Annual Parameters Source'!G92="","-",'Annual Parameters Source'!G92) -> 245.1941109 | H95: =IF('Annual Parameters Source'!H92="","-",'Annual Parameters Source'!H92) -> - | I95: =IF('Annual Parameters Source'!I92="","-",'Annual Parameters Source'!I92) -> 0.3468004557 | J95: =IF('Annual Parameters Source'!L92="","-",'Annual Parameters Source'!L92) -> 128.2328088 | K95: =IF('Annual Parameters Source'!M92="","-",'Annual Parameters Source'!M92) -> - | L95: =IF('Annual Parameters Source'!N92="","-",'Annual Parameters Source'!N92) -> 0.3468004557 | M95: =IF('Annual Parameters Source'!O92="","-",'Annual Parameters Source'!O92) -> 132.4970544 | N95: =IF('Annual Parameters Source'!P92="","-",'Annual Parameters Source'!P92) -> - | O95: =IF('Annual Parameters Source'!Q92="","-",'Annual Parameters Source'!Q92) -> 1.61517171 | P95: =IF('Annual Parameters Source'!R92="","-",'Annual Parameters Source'!R92) -> 191.2101226 | Q95: =IF('Annual Parameters Source'!S92="","-",'Annual Parameters Source'!S92) -> - | R95: =IF('Annual Parameters Source'!T92="","-",'Annual Parameters Source'!T92) -> 1.61517171 | S95: =IF('Annual Parameters Source'!U92="","-",'Annual Parameters Source'!U92) -> 168.4064823 | T95: =IF('Annual Parameters Source'!V92="","-",'Annual Parameters Source'!V92) -> 1.61517171 | U95: =IF('Annual Parameters Source'!W92="","-",'Annual Parameters Source'!W92) -> 1.61517171 | V95: =IF('Annual Parameters Source'!X92="","-",'Annual Parameters Source'!X92) -> 148.734485 | W95: =IF('Annual Parameters Source'!Y92="","-",'Annual Parameters Source'!Y92) -> 148.734485 | X95: =IF('Annual Parameters Source'!AD92="","-",'Annual Parameters Source'!AD92) -> 1.5 | Y95: =IF('Annual Parameters Source'!AE92="","-",'Annual Parameters Source'!AE92) -> 1.5 | Z95: =IF('Annual Parameters Source'!AF92="","-",'Annual Parameters Source'!AF92) -> 147.9670536 | AA95: =IF('Annual Parameters Source'!AG92="","-",'Annual Parameters Source'!AG92) -> 147.9670536 | AB95: =_xlfn.IFNA(INDEX('VoT7'!$U$38:$U$127,MATCH('Annual Parameters'!B95,'VoT7'!$A$38:$A$127,0)),"-") -> 1.492557055 | AC95: =_xlfn.IFNA(INDEX('VoT7'!$V$38:$V$127,MATCH('Annual Parameters'!B95,'VoT7'!$A$38:$A$127,0)),"-") -> 134.5440528 | AD95: =_xlfn.IFNA(INDEX('VoT7'!$AF$38:$AF$127,MATCH('Annual Parameters'!B95,'VoT7'!$A$38:$A$127,0)),"-") -> 1.407351779 | AE95: =_xlfn.IFNA(INDEX('VoT7'!$AG$38:$AG$127,MATCH('Annual Parameters'!B95,'VoT7'!$A$38:$A$127,0)),"-") -> 134.0315085 | AF95: =_xlfn.IFNA(INDEX('VoT7'!$E$38:$E$127,MATCH('Annual Parameters'!B95,'VoT7'!$A$38:$A$127,0)),"-") -> 1.148211178 | AG95: =_xlfn.IFNA(INDEX('VoT7'!$J$38:$J$127,MATCH('Annual Parameters'!B95,'VoT7'!$A$38:$A$127,0)),"-") -> 0.4030048847 | AH95: =_xlfn.IFNA(INDEX('VoT7'!$F$38:$F$127,MATCH('Annual Parameters'!B95,'VoT7'!$A$38:$A$127,0)),"-") -> 118.7698878 | AI95: =_xlfn.IFNA(INDEX('VoT7'!$K$38:$K$127,MATCH('Annual Parameters'!B95,'VoT7'!$A$38:$A$127,0)),"-") -> 105.9187242 | AJ95: =IF('Annual Parameters Source'!J92="","-",'Annual Parameters Source'!J92) -> 0.7937300582 | AK95: =IF('Annual Parameters Source'!K92="","-",'Annual Parameters Source'!K92) -> -0.1799639797
B96: 2041 | D96: =IF('Annual Parameters Source'!D93="","-",'Annual Parameters Source'!D93/VLOOKUP($B$14,'Annual Parameters Source'!$B$42:$D$152,3,1)*100) -> 152.3316327 | E96: =IF('Annual Parameters Source'!E93="","-",VLOOKUP($B$16,'Annual Parameters Source'!$B$42:$AH$156,33,FALSE)/VLOOKUP($B$16,'Annual Parameters Source'!$B$42:$AH$156,4,FALSE)*'Annual Parameters Source'!E93) -> 3786420.6 | F96: =IF('Annual Parameters Source'!F93="","-",'Annual Parameters Source'!F93) -> 1.917387886 | G96: =IF('Annual Parameters Source'!G93="","-",'Annual Parameters Source'!G93) -> 249.8954331 | H96: =IF('Annual Parameters Source'!H93="","-",'Annual Parameters Source'!H93) -> - | I96: =IF('Annual Parameters Source'!I93="","-",'Annual Parameters Source'!I93) -> 0.3410455793 | J96: =IF('Annual Parameters Source'!L93="","-",'Annual Parameters Source'!L93) -> 128.6701411 | K96: =IF('Annual Parameters Source'!M93="","-",'Annual Parameters Source'!M93) -> - | L96: =IF('Annual Parameters Source'!N93="","-",'Annual Parameters Source'!N93) -> 0.3410455793 | M96: =IF('Annual Parameters Source'!O93="","-",'Annual Parameters Source'!O93) -> 132.9489298 | N96: =IF('Annual Parameters Source'!P93="","-",'Annual Parameters Source'!P93) -> - | O96: =IF('Annual Parameters Source'!Q93="","-",'Annual Parameters Source'!Q93) -> 1.570984533 | P96: =IF('Annual Parameters Source'!R93="","-",'Annual Parameters Source'!R93) -> 194.2140041 | Q96: =IF('Annual Parameters Source'!S93="","-",'Annual Parameters Source'!S93) -> - | R96: =IF('Annual Parameters Source'!T93="","-",'Annual Parameters Source'!T93) -> 1.570984533 | S96: =IF('Annual Parameters Source'!U93="","-",'Annual Parameters Source'!U93) -> 171.0521221 | T96: =IF('Annual Parameters Source'!V93="","-",'Annual Parameters Source'!V93) -> 1.570984533 | U96: =IF('Annual Parameters Source'!W93="","-",'Annual Parameters Source'!W93) -> 1.570984533 | V96: =IF('Annual Parameters Source'!X93="","-",'Annual Parameters Source'!X93) -> 151.0710808 | W96: =IF('Annual Parameters Source'!Y93="","-",'Annual Parameters Source'!Y93) -> 151.0710808 | X96: =IF('Annual Parameters Source'!AD93="","-",'Annual Parameters Source'!AD93) -> 1.5 | Y96: =IF('Annual Parameters Source'!AE93="","-",'Annual Parameters Source'!AE93) -> 1.5 | Z96: =IF('Annual Parameters Source'!AF93="","-",'Annual Parameters Source'!AF93) -> 150.1865594 | AA96: =IF('Annual Parameters Source'!AG93="","-",'Annual Parameters Source'!AG93) -> 150.1865594 | AB96: =_xlfn.IFNA(INDEX('VoT7'!$U$38:$U$127,MATCH('Annual Parameters'!B96,'VoT7'!$A$38:$A$127,0)),"-") -> 1.461394244 | AC96: =_xlfn.IFNA(INDEX('VoT7'!$V$38:$V$127,MATCH('Annual Parameters'!B96,'VoT7'!$A$38:$A$127,0)),"-") -> 136.5102719 | AD96: =_xlfn.IFNA(INDEX('VoT7'!$AF$38:$AF$127,MATCH('Annual Parameters'!B96,'VoT7'!$A$38:$A$127,0)),"-") -> 1.40863757 | AE96: =_xlfn.IFNA(INDEX('VoT7'!$AG$38:$AG$127,MATCH('Annual Parameters'!B96,'VoT7'!$A$38:$A$127,0)),"-") -> 135.9195266 | AF96: =_xlfn.IFNA(INDEX('VoT7'!$E$38:$E$127,MATCH('Annual Parameters'!B96,'VoT7'!$A$38:$A$127,0)),"-") -> 1.152204604 | AG96: =_xlfn.IFNA(INDEX('VoT7'!$J$38:$J$127,MATCH('Annual Parameters'!B96,'VoT7'!$A$38:$A$127,0)),"-") -> 0.4074080835 | AH96: =_xlfn.IFNA(INDEX('VoT7'!$F$38:$F$127,MATCH('Annual Parameters'!B96,'VoT7'!$A$38:$A$127,0)),"-") -> 120.1383599 | AI96: =_xlfn.IFNA(INDEX('VoT7'!$K$38:$K$127,MATCH('Annual Parameters'!B96,'VoT7'!$A$38:$A$127,0)),"-") -> 106.3502457 | AJ96: =IF('Annual Parameters Source'!J93="","-",'Annual Parameters Source'!J93) -> 0.7871679782 | AK96: =IF('Annual Parameters Source'!K93="","-",'Annual Parameters Source'!K93) -> -0.1928512076
B97: 2042 | D97: =IF('Annual Parameters Source'!D94="","-",'Annual Parameters Source'!D94/VLOOKUP($B$14,'Annual Parameters Source'!$B$42:$D$152,3,1)*100) -> 155.8352603 | E97: =IF('Annual Parameters Source'!E94="","-",VLOOKUP($B$16,'Annual Parameters Source'!$B$42:$AH$156,33,FALSE)/VLOOKUP($B$16,'Annual Parameters Source'!$B$42:$AH$156,4,FALSE)*'Annual Parameters Source'!E94) -> 3857184.412 | F97: =IF('Annual Parameters Source'!F94="","-",'Annual Parameters Source'!F94) -> 1.868884093 | G97: =IF('Annual Parameters Source'!G94="","-",'Annual Parameters Source'!G94) -> 254.5656891 | H97: =IF('Annual Parameters Source'!H94="","-",'Annual Parameters Source'!H94) -> - | I97: =IF('Annual Parameters Source'!I94="","-",'Annual Parameters Source'!I94) -> 0.3355130496 | J97: =IF('Annual Parameters Source'!L94="","-",'Annual Parameters Source'!L94) -> 129.1018462 | K97: =IF('Annual Parameters Source'!M94="","-",'Annual Parameters Source'!M94) -> - | L97: =IF('Annual Parameters Source'!N94="","-",'Annual Parameters Source'!N94) -> 0.3355130496 | M97: =IF('Annual Parameters Source'!O94="","-",'Annual Parameters Source'!O94) -> 133.3949908 | N97: =IF('Annual Parameters Source'!P94="","-",'Annual Parameters Source'!P94) -> - | O97: =IF('Annual Parameters Source'!Q94="","-",'Annual Parameters Source'!Q94) -> 1.528243587 | P97: =IF('Annual Parameters Source'!R94="","-",'Annual Parameters Source'!R94) -> 197.1820671 | Q97: =IF('Annual Parameters Source'!S94="","-",'Annual Parameters Source'!S94) -> - | R97: =IF('Annual Parameters Source'!T94="","-",'Annual Parameters Source'!T94) -> 1.528243587 | S97: =IF('Annual Parameters Source'!U94="","-",'Annual Parameters Source'!U94) -> 173.6662152 | T97: =IF('Annual Parameters Source'!V94="","-",'Annual Parameters Source'!V94) -> 1.528243587 | U97: =IF('Annual Parameters Source'!W94="","-",'Annual Parameters Source'!W94) -> 1.528243587 | V97: =IF('Annual Parameters Source'!X94="","-",'Annual Parameters Source'!X94) -> 153.3798149 | W97: =IF('Annual Parameters Source'!Y94="","-",'Annual Parameters Source'!Y94) -> 153.3798149 | X97: =IF('Annual Parameters Source'!AD94="","-",'Annual Parameters Source'!AD94) -> 1.5 | Y97: =IF('Annual Parameters Source'!AE94="","-",'Annual Parameters Source'!AE94) -> 1.5 | Z97: =IF('Annual Parameters Source'!AF94="","-",'Annual Parameters Source'!AF94) -> 152.4393578 | AA97: =IF('Annual Parameters Source'!AG94="","-",'Annual Parameters Source'!AG94) -> 152.4393578 | AB97: =_xlfn.IFNA(INDEX('VoT7'!$U$38:$U$127,MATCH('Annual Parameters'!B97,'VoT7'!$A$38:$A$127,0)),"-") -> 1.431171597 | AC97: =_xlfn.IFNA(INDEX('VoT7'!$V$38:$V$127,MATCH('Annual Parameters'!B97,'VoT7'!$A$38:$A$127,0)),"-") -> 138.4639681 | AD97: =_xlfn.IFNA(INDEX('VoT7'!$AF$38:$AF$127,MATCH('Annual Parameters'!B97,'VoT7'!$A$38:$A$127,0)),"-") -> 1.409906658 | AE97: =_xlfn.IFNA(INDEX('VoT7'!$AG$38:$AG$127,MATCH('Annual Parameters'!B97,'VoT7'!$A$38:$A$127,0)),"-") -> 137.8358651 | AF97: =_xlfn.IFNA(INDEX('VoT7'!$E$38:$E$127,MATCH('Annual Parameters'!B97,'VoT7'!$A$38:$A$127,0)),"-") -> 1.156166272 | AG97: =_xlfn.IFNA(INDEX('VoT7'!$J$38:$J$127,MATCH('Annual Parameters'!B97,'VoT7'!$A$38:$A$127,0)),"-") -> 0.4118413298 | AH97: =_xlfn.IFNA(INDEX('VoT7'!$F$38:$F$127,MATCH('Annual Parameters'!B97,'VoT7'!$A$38:$A$127,0)),"-") -> 121.5273591 | AI97: =_xlfn.IFNA(INDEX('VoT7'!$K$38:$K$127,MATCH('Annual Parameters'!B97,'VoT7'!$A$38:$A$127,0)),"-") -> 106.78824 | AJ97: =IF('Annual Parameters Source'!J94="","-",'Annual Parameters Source'!J94) -> 0.7806232316 | AK97: =IF('Annual Parameters Source'!K94="","-",'Annual Parameters Source'!K94) -> -0.2049393463
B98: 2043 | D98: =IF('Annual Parameters Source'!D95="","-",'Annual Parameters Source'!D95/VLOOKUP($B$14,'Annual Parameters Source'!$B$42:$D$152,3,1)*100) -> 159.4194713 | E98: =IF('Annual Parameters Source'!E95="","-",VLOOKUP($B$16,'Annual Parameters Source'!$B$42:$AH$156,33,FALSE)/VLOOKUP($B$16,'Annual Parameters Source'!$B$42:$AH$156,4,FALSE)*'Annual Parameters Source'!E95) -> 3928031.563 | F98: =IF('Annual Parameters Source'!F95="","-",'Annual Parameters Source'!F95) -> 1.836758192 | G98: =IF('Annual Parameters Source'!G95="","-",'Annual Parameters Source'!G95) -> 259.2414452 | H98: =IF('Annual Parameters Source'!H95="","-",'Annual Parameters Source'!H95) -> - | I98: =IF('Annual Parameters Source'!I95="","-",'Annual Parameters Source'!I95) -> 0.3296945095 | J98: =IF('Annual Parameters Source'!L95="","-",'Annual Parameters Source'!L95) -> 129.5274879 | K98: =IF('Annual Parameters Source'!M95="","-",'Annual Parameters Source'!M95) -> - | L98: =IF('Annual Parameters Source'!N95="","-",'Annual Parameters Source'!N95) -> 0.3296945095 | M98: =IF('Annual Parameters Source'!O95="","-",'Annual Parameters Source'!O95) -> 133.8347867 | N98: =IF('Annual Parameters Source'!P95="","-",'Annual Parameters Source'!P95) -> - | O98: =IF('Annual Parameters Source'!Q95="","-",'Annual Parameters Source'!Q95) -> 1.502111304 | P98: =IF('Annual Parameters Source'!R95="","-",'Annual Parameters Source'!R95) -> 200.1439612 | Q98: =IF('Annual Parameters Source'!S95="","-",'Annual Parameters Source'!S95) -> - | R98: =IF('Annual Parameters Source'!T95="","-",'Annual Parameters Source'!T95) -> 1.502111304 | S98: =IF('Annual Parameters Source'!U95="","-",'Annual Parameters Source'!U95) -> 176.2748751 | T98: =IF('Annual Parameters Source'!V95="","-",'Annual Parameters Source'!V95) -> 1.502111304 | U98: =IF('Annual Parameters Source'!W95="","-",'Annual Parameters Source'!W95) -> 1.502111304 | V98: =IF('Annual Parameters Source'!X95="","-",'Annual Parameters Source'!X95) -> 155.6837504 | W98: =IF('Annual Parameters Source'!Y95="","-",'Annual Parameters Source'!Y95) -> 155.6837504 | X98: =IF('Annual Parameters Source'!AD95="","-",'Annual Parameters Source'!AD95) -> 1.5 | Y98: =IF('Annual Parameters Source'!AE95="","-",'Annual Parameters Source'!AE95) -> 1.5 | Z98: =IF('Annual Parameters Source'!AF95="","-",'Annual Parameters Source'!AF95) -> 154.7259482 | AA98: =IF('Annual Parameters Source'!AG95="","-",'Annual Parameters Source'!AG95) -> 154.7259482 | AB98: =_xlfn.IFNA(INDEX('VoT7'!$U$38:$U$127,MATCH('Annual Parameters'!B98,'VoT7'!$A$38:$A$127,0)),"-") -> 1.413124207 | AC98: =_xlfn.IFNA(INDEX('VoT7'!$V$38:$V$127,MATCH('Annual Parameters'!B98,'VoT7'!$A$38:$A$127,0)),"-") -> 140.4206359 | AD98: =_xlfn.IFNA(INDEX('VoT7'!$AF$38:$AF$127,MATCH('Annual Parameters'!B98,'VoT7'!$A$38:$A$127,0)),"-") -> 1.41115923 | AE98: =_xlfn.IFNA(INDEX('VoT7'!$AG$38:$AG$127,MATCH('Annual Parameters'!B98,'VoT7'!$A$38:$A$127,0)),"-") -> 139.7809486 | AF98: =_xlfn.IFNA(INDEX('VoT7'!$E$38:$E$127,MATCH('Annual Parameters'!B98,'VoT7'!$A$38:$A$127,0)),"-") -> 1.160096126 | AG98: =_xlfn.IFNA(INDEX('VoT7'!$J$38:$J$127,MATCH('Annual Parameters'!B98,'VoT7'!$A$38:$A$127,0)),"-") -> 0.4163044361 | AH98: =_xlfn.IFNA(INDEX('VoT7'!$F$38:$F$127,MATCH('Annual Parameters'!B98,'VoT7'!$A$38:$A$127,0)),"-") -> 122.9371933 | AI98: =_xlfn.IFNA(INDEX('VoT7'!$K$38:$K$127,MATCH('Annual Parameters'!B98,'VoT7'!$A$38:$A$127,0)),"-") -> 107.2328041 | AJ98: =IF('Annual Parameters Source'!J95="","-",'Annual Parameters Source'!J95) -> 0.7735470371 | AK98: =IF('Annual Parameters Source'!K95="","-",'Annual Parameters Source'!K95) -> -0.2169643058
B99: 2044 | D99: =IF('Annual Parameters Source'!D96="","-",'Annual Parameters Source'!D96/VLOOKUP($B$14,'Annual Parameters Source'!$B$42:$D$152,3,1)*100) -> 163.0861191 | E99: =IF('Annual Parameters Source'!E96="","-",VLOOKUP($B$16,'Annual Parameters Source'!$B$42:$AH$156,33,FALSE)/VLOOKUP($B$16,'Annual Parameters Source'!$B$42:$AH$156,4,FALSE)*'Annual Parameters Source'!E96) -> 3999280.412 | F99: =IF('Annual Parameters Source'!F96="","-",'Annual Parameters Source'!F96) -> 1.813856336 | G99: =IF('Annual Parameters Source'!G96="","-",'Annual Parameters Source'!G96) -> 263.9437126 | H99: =IF('Annual Parameters Source'!H96="","-",'Annual Parameters Source'!H96) -> - | I99: =IF('Annual Parameters Source'!I96="","-",'Annual Parameters Source'!I96) -> 0.3231570988 | J99: =IF('Annual Parameters Source'!L96="","-",'Annual Parameters Source'!L96) -> 129.9460652 | K99: =IF('Annual Parameters Source'!M96="","-",'Annual Parameters Source'!M96) -> - | L99: =IF('Annual Parameters Source'!N96="","-",'Annual Parameters Source'!N96) -> 0.3231570988 | M99: =IF('Annual Parameters Source'!O96="","-",'Annual Parameters Source'!O96) -> 134.2672833 | N99: =IF('Annual Parameters Source'!P96="","-",'Annual Parameters Source'!P96) -> - | O99: =IF('Annual Parameters Source'!Q96="","-",'Annual Parameters Source'!Q96) -> 1.485897454 | P99: =IF('Annual Parameters Source'!R96="","-",'Annual Parameters Source'!R96) -> 203.1178953 | Q99: =IF('Annual Parameters Source'!S96="","-",'Annual Parameters Source'!S96) -> - | R99: =IF('Annual Parameters Source'!T96="","-",'Annual Parameters Source'!T96) -> 1.485897454 | S99: =IF('Annual Parameters Source'!U96="","-",'Annual Parameters Source'!U96) -> 178.8941389 | T99: =IF('Annual Parameters Source'!V96="","-",'Annual Parameters Source'!V96) -> 1.485897454 | U99: =IF('Annual Parameters Source'!W96="","-",'Annual Parameters Source'!W96) -> 1.485897454 | V99: =IF('Annual Parameters Source'!X96="","-",'Annual Parameters Source'!X96) -> 157.9970513 | W99: =IF('Annual Parameters Source'!Y96="","-",'Annual Parameters Source'!Y96) -> 157.9970513 | X99: =IF('Annual Parameters Source'!AD96="","-",'Annual Parameters Source'!AD96) -> 1.5 | Y99: =IF('Annual Parameters Source'!AE96="","-",'Annual Parameters Source'!AE96) -> 1.5 | Z99: =IF('Annual Parameters Source'!AF96="","-",'Annual Parameters Source'!AF96) -> 157.0468374 | AA99: =IF('Annual Parameters Source'!AG96="","-",'Annual Parameters Source'!AG96) -> 157.0468374 | AB99: =_xlfn.IFNA(INDEX('VoT7'!$U$38:$U$127,MATCH('Annual Parameters'!B99,'VoT7'!$A$38:$A$127,0)),"-") -> 1.402352118 | AC99: =_xlfn.IFNA(INDEX('VoT7'!$V$38:$V$127,MATCH('Annual Parameters'!B99,'VoT7'!$A$38:$A$127,0)),"-") -> 142.3898277 | AD99: =_xlfn.IFNA(INDEX('VoT7'!$AF$38:$AF$127,MATCH('Annual Parameters'!B99,'VoT7'!$A$38:$A$127,0)),"-") -> 1.41239547 | AE99: =_xlfn.IFNA(INDEX('VoT7'!$AG$38:$AG$127,MATCH('Annual Parameters'!B99,'VoT7'!$A$38:$A$127,0)),"-") -> 141.7552084 | AF99: =_xlfn.IFNA(INDEX('VoT7'!$E$38:$E$127,MATCH('Annual Parameters'!B99,'VoT7'!$A$38:$A$127,0)),"-") -> 1.163994117 | AG99: =_xlfn.IFNA(INDEX('VoT7'!$J$38:$J$127,MATCH('Annual Parameters'!B99,'VoT7'!$A$38:$A$127,0)),"-") -> 0.4207972052 | AH99: =_xlfn.IFNA(INDEX('VoT7'!$F$38:$F$127,MATCH('Annual Parameters'!B99,'VoT7'!$A$38:$A$127,0)),"-") -> 124.368175 | AI99: =_xlfn.IFNA(INDEX('VoT7'!$K$38:$K$127,MATCH('Annual Parameters'!B99,'VoT7'!$A$38:$A$127,0)),"-") -> 107.6840368 | AJ99: =IF('Annual Parameters Source'!J96="","-",'Annual Parameters Source'!J96) -> 0.765526248 | AK99: =IF('Annual Parameters Source'!K96="","-",'Annual Parameters Source'!K96) -> -0.2293629128
B100: 2045 | D100: =IF('Annual Parameters Source'!D97="","-",'Annual Parameters Source'!D97/VLOOKUP($B$14,'Annual Parameters Source'!$B$42:$D$152,3,1)*100) -> 166.8370998 | E100: =IF('Annual Parameters Source'!E97="","-",VLOOKUP($B$16,'Annual Parameters Source'!$B$42:$AH$156,33,FALSE)/VLOOKUP($B$16,'Annual Parameters Source'!$B$42:$AH$156,4,FALSE)*'Annual Parameters Source'!E97) -> 4070543.605 | F100: =IF('Annual Parameters Source'!F97="","-",'Annual Parameters Source'!F97) -> 1.781900387 | G100: =IF('Annual Parameters Source'!G97="","-",'Annual Parameters Source'!G97) -> 268.6469266 | H100: =IF('Annual Parameters Source'!H97="","-",'Annual Parameters Source'!H97) -> - | I100: =IF('Annual Parameters Source'!I97="","-",'Annual Parameters Source'!I97) -> 0.3160698846 | J100: =IF('Annual Parameters Source'!L97="","-",'Annual Parameters Source'!L97) -> 130.3567856 | K100: =IF('Annual Parameters Source'!M97="","-",'Annual Parameters Source'!M97) -> - | L100: =IF('Annual Parameters Source'!N97="","-",'Annual Parameters Source'!N97) -> 0.3160698846 | M100: =IF('Annual Parameters Source'!O97="","-",'Annual Parameters Source'!O97) -> 134.6916618 | N100: =IF('Annual Parameters Source'!P97="","-",'Annual Parameters Source'!P97) -> - | O100: =IF('Annual Parameters Source'!Q97="","-",'Annual Parameters Source'!Q97) -> 1.461212052 | P100: =IF('Annual Parameters Source'!R97="","-",'Annual Parameters Source'!R97) -> 206.0858784 | Q100: =IF('Annual Parameters Source'!S97="","-",'Annual Parameters Source'!S97) -> - | R100: =IF('Annual Parameters Source'!T97="","-",'Annual Parameters Source'!T97) -> 1.461212052 | S100: =IF('Annual Parameters Source'!U97="","-",'Annual Parameters Source'!U97) -> 181.5081617 | T100: =IF('Annual Parameters Source'!V97="","-",'Annual Parameters Source'!V97) -> 1.461212052 | U100: =IF('Annual Parameters Source'!W97="","-",'Annual Parameters Source'!W97) -> 1.461212052 | V100: =IF('Annual Parameters Source'!X97="","-",'Annual Parameters Source'!X97) -> 160.3057233 | W100: =IF('Annual Parameters Source'!Y97="","-",'Annual Parameters Source'!Y97) -> 160.3057233 | X100: =IF('Annual Parameters Source'!AD97="","-",'Annual Parameters Source'!AD97) -> 1.5 | Y100: =IF('Annual Parameters Source'!AE97="","-",'Annual Parameters Source'!AE97) -> 1.5 | Z100: =IF('Annual Parameters Source'!AF97="","-",'Annual Parameters Source'!AF97) -> 159.40254 | AA100: =IF('Annual Parameters Source'!AG97="","-",'Annual Parameters Source'!AG97) -> 159.40254 | AB100: =_xlfn.IFNA(INDEX('VoT7'!$U$38:$U$127,MATCH('Annual Parameters'!B100,'VoT7'!$A$38:$A$127,0)),"-") -> 1.385255804 | AC100: =_xlfn.IFNA(INDEX('VoT7'!$V$38:$V$127,MATCH('Annual Parameters'!B100,'VoT7'!$A$38:$A$127,0)),"-") -> 144.3622911 | AD100: =_xlfn.IFNA(INDEX('VoT7'!$AF$38:$AF$127,MATCH('Annual Parameters'!B100,'VoT7'!$A$38:$A$127,0)),"-") -> 1.413615559 | AE100: =_xlfn.IFNA(INDEX('VoT7'!$AG$38:$AG$127,MATCH('Annual Parameters'!B100,'VoT7'!$A$38:$A$127,0)),"-") -> 143.7590821 | AF100: =_xlfn.IFNA(INDEX('VoT7'!$E$38:$E$127,MATCH('Annual Parameters'!B100,'VoT7'!$A$38:$A$127,0)),"-") -> 1.167860205 | AG100: =_xlfn.IFNA(INDEX('VoT7'!$J$38:$J$127,MATCH('Annual Parameters'!B100,'VoT7'!$A$38:$A$127,0)),"-") -> 0.425319431 | AH100: =_xlfn.IFNA(INDEX('VoT7'!$F$38:$F$127,MATCH('Annual Parameters'!B100,'VoT7'!$A$38:$A$127,0)),"-") -> 125.8206214 | AI100: =_xlfn.IFNA(INDEX('VoT7'!$K$38:$K$127,MATCH('Annual Parameters'!B100,'VoT7'!$A$38:$A$127,0)),"-") -> 108.1420379 | AJ100: =IF('Annual Parameters Source'!J97="","-",'Annual Parameters Source'!J97) -> 0.7570745478 | AK100: =IF('Annual Parameters Source'!K97="","-",'Annual Parameters Source'!K97) -> -0.2420369932
B101: 2046 | D101: =IF('Annual Parameters Source'!D98="","-",'Annual Parameters Source'!D98/VLOOKUP($B$14,'Annual Parameters Source'!$B$42:$D$152,3,1)*100) -> 170.6743531 | E101: =IF('Annual Parameters Source'!E98="","-",VLOOKUP($B$16,'Annual Parameters Source'!$B$42:$AH$156,33,FALSE)/VLOOKUP($B$16,'Annual Parameters Source'!$B$42:$AH$156,4,FALSE)*'Annual Parameters Source'!E98) -> 4142537.398 | F101: =IF('Annual Parameters Source'!F98="","-",'Annual Parameters Source'!F98) -> 1.768653038 | G101: =IF('Annual Parameters Source'!G98="","-",'Annual Parameters Source'!G98) -> 273.3983587 | H101: =IF('Annual Parameters Source'!H98="","-",'Annual Parameters Source'!H98) -> - | I101: =IF('Annual Parameters Source'!I98="","-",'Annual Parameters Source'!I98) -> 0.3085255418 | J101: =IF('Annual Parameters Source'!L98="","-",'Annual Parameters Source'!L98) -> 130.7589695 | K101: =IF('Annual Parameters Source'!M98="","-",'Annual Parameters Source'!M98) -> - | L101: =IF('Annual Parameters Source'!N98="","-",'Annual Parameters Source'!N98) -> 0.3085255418 | M101: =IF('Annual Parameters Source'!O98="","-",'Annual Parameters Source'!O98) -> 135.10722 | N101: =IF('Annual Parameters Source'!P98="","-",'Annual Parameters Source'!P98) -> - | O101: =IF('Annual Parameters Source'!Q98="","-",'Annual Parameters Source'!Q98) -> 1.455636486 | P101: =IF('Annual Parameters Source'!R98="","-",'Annual Parameters Source'!R98) -> 209.0857397 | Q101: =IF('Annual Parameters Source'!S98="","-",'Annual Parameters Source'!S98) -> - | R101: =IF('Annual Parameters Source'!T98="","-",'Annual Parameters Source'!T98) -> 1.455636486 | S101: =IF('Annual Parameters Source'!U98="","-",'Annual Parameters Source'!U98) -> 184.1502607 | T101: =IF('Annual Parameters Source'!V98="","-",'Annual Parameters Source'!V98) -> 1.455636486 | U101: =IF('Annual Parameters Source'!W98="","-",'Annual Parameters Source'!W98) -> 1.455636486 | V101: =IF('Annual Parameters Source'!X98="","-",'Annual Parameters Source'!X98) -> 162.6391919 | W101: =IF('Annual Parameters Source'!Y98="","-",'Annual Parameters Source'!Y98) -> 162.6391919 | X101: =IF('Annual Parameters Source'!AD98="","-",'Annual Parameters Source'!AD98) -> 1.5 | Y101: =IF('Annual Parameters Source'!AE98="","-",'Annual Parameters Source'!AE98) -> 1.5 | Z101: =IF('Annual Parameters Source'!AF98="","-",'Annual Parameters Source'!AF98) -> 161.7935781 | AA101: =IF('Annual Parameters Source'!AG98="","-",'Annual Parameters Source'!AG98) -> 161.7935781 | AB101: =_xlfn.IFNA(INDEX('VoT7'!$U$38:$U$127,MATCH('Annual Parameters'!B101,'VoT7'!$A$38:$A$127,0)),"-") -> 1.382274299 | AC101: =_xlfn.IFNA(INDEX('VoT7'!$V$38:$V$127,MATCH('Annual Parameters'!B101,'VoT7'!$A$38:$A$127,0)),"-") -> 146.3577739 | AD101: =_xlfn.IFNA(INDEX('VoT7'!$AF$38:$AF$127,MATCH('Annual Parameters'!B101,'VoT7'!$A$38:$A$127,0)),"-") -> 1.414819682 | AE101: =_xlfn.IFNA(INDEX('VoT7'!$AG$38:$AG$127,MATCH('Annual Parameters'!B101,'VoT7'!$A$38:$A$127,0)),"-") -> 145.7930139 | AF101: =_xlfn.IFNA(INDEX('VoT7'!$E$38:$E$127,MATCH('Annual Parameters'!B101,'VoT7'!$A$38:$A$127,0)),"-") -> 1.171694356 | AG101: =_xlfn.IFNA(INDEX('VoT7'!$J$38:$J$127,MATCH('Annual Parameters'!B101,'VoT7'!$A$38:$A$127,0)),"-") -> 0.429870898 | AH101: =_xlfn.IFNA(INDEX('VoT7'!$F$38:$F$127,MATCH('Annual Parameters'!B101,'VoT7'!$A$38:$A$127,0)),"-") -> 127.2948545 | AI101: =_xlfn.IFNA(INDEX('VoT7'!$K$38:$K$127,MATCH('Annual Parameters'!B101,'VoT7'!$A$38:$A$127,0)),"-") -> 108.6069091 | AJ101: =IF('Annual Parameters Source'!J98="","-",'Annual Parameters Source'!J98) -> 0.7482927932 | AK101: =IF('Annual Parameters Source'!K98="","-",'Annual Parameters Source'!K98) -> -0.2551008821
B102: 2047 | D102: =IF('Annual Parameters Source'!D99="","-",'Annual Parameters Source'!D99/VLOOKUP($B$14,'Annual Parameters Source'!$B$42:$D$152,3,1)*100) -> 174.5998633 | E102: =IF('Annual Parameters Source'!E99="","-",VLOOKUP($B$16,'Annual Parameters Source'!$B$42:$AH$156,33,FALSE)/VLOOKUP($B$16,'Annual Parameters Source'!$B$42:$AH$156,4,FALSE)*'Annual Parameters Source'!E99) -> 4215099.242 | F102: =IF('Annual Parameters Source'!F99="","-",'Annual Parameters Source'!F99) -> 1.75162797 | G102: =IF('Annual Parameters Source'!G99="","-",'Annual Parameters Source'!G99) -> 278.1872808 | H102: =IF('Annual Parameters Source'!H99="","-",'Annual Parameters Source'!H99) -> - | I102: =IF('Annual Parameters Source'!I99="","-",'Annual Parameters Source'!I99) -> 0.3003717503 | J102: =IF('Annual Parameters Source'!L99="","-",'Annual Parameters Source'!L99) -> 131.1517326 | K102: =IF('Annual Parameters Source'!M99="","-",'Annual Parameters Source'!M99) -> - | L102: =IF('Annual Parameters Source'!N99="","-",'Annual Parameters Source'!N99) -> 0.3003717503 | M102: =IF('Annual Parameters Source'!O99="","-",'Annual Parameters Source'!O99) -> 135.5130439 | N102: =IF('Annual Parameters Source'!P99="","-",'Annual Parameters Source'!P99) -> - | O102: =IF('Annual Parameters Source'!Q99="","-",'Annual Parameters Source'!Q99) -> 1.446910111 | P102: =IF('Annual Parameters Source'!R99="","-",'Annual Parameters Source'!R99) -> 212.1110224 | Q102: =IF('Annual Parameters Source'!S99="","-",'Annual Parameters Source'!S99) -> - | R102: =IF('Annual Parameters Source'!T99="","-",'Annual Parameters Source'!T99) -> 1.446910111 | S102: =IF('Annual Parameters Source'!U99="","-",'Annual Parameters Source'!U99) -> 186.8147494 | T102: =IF('Annual Parameters Source'!V99="","-",'Annual Parameters Source'!V99) -> 1.446910111 | U102: =IF('Annual Parameters Source'!W99="","-",'Annual Parameters Source'!W99) -> 1.446910111 | V102: =IF('Annual Parameters Source'!X99="","-",'Annual Parameters Source'!X99) -> 164.9924348 | W102: =IF('Annual Parameters Source'!Y99="","-",'Annual Parameters Source'!Y99) -> 164.9924348 | X102: =IF('Annual Parameters Source'!AD99="","-",'Annual Parameters Source'!AD99) -> 1.5 | Y102: =IF('Annual Parameters Source'!AE99="","-",'Annual Parameters Source'!AE99) -> 1.5 | Z102: =IF('Annual Parameters Source'!AF99="","-",'Annual Parameters Source'!AF99) -> 164.2204818 | AA102: =IF('Annual Parameters Source'!AG99="","-",'Annual Parameters Source'!AG99) -> 164.2204818 | AB102: =_xlfn.IFNA(INDEX('VoT7'!$U$38:$U$127,MATCH('Annual Parameters'!B102,'VoT7'!$A$38:$A$127,0)),"-") -> 1.376930587 | AC102: =_xlfn.IFNA(INDEX('VoT7'!$V$38:$V$127,MATCH('Annual Parameters'!B102,'VoT7'!$A$38:$A$127,0)),"-") -> 148.3730189 | AD102: =_xlfn.IFNA(INDEX('VoT7'!$AF$38:$AF$127,MATCH('Annual Parameters'!B102,'VoT7'!$A$38:$A$127,0)),"-") -> 1.416008017 | AE102: =_xlfn.IFNA(INDEX('VoT7'!$AG$38:$AG$127,MATCH('Annual Parameters'!B102,'VoT7'!$A$38:$A$127,0)),"-") -> 147.8574546 | AF102: =_xlfn.IFNA(INDEX('VoT7'!$E$38:$E$127,MATCH('Annual Parameters'!B102,'VoT7'!$A$38:$A$127,0)),"-") -> 1.175496545 | AG102: =_xlfn.IFNA(INDEX('VoT7'!$J$38:$J$127,MATCH('Annual Parameters'!B102,'VoT7'!$A$38:$A$127,0)),"-") -> 0.4344513814 | AH102: =_xlfn.IFNA(INDEX('VoT7'!$F$38:$F$127,MATCH('Annual Parameters'!B102,'VoT7'!$A$38:$A$127,0)),"-") -> 128.7912011 | AI102: =_xlfn.IFNA(INDEX('VoT7'!$K$38:$K$127,MATCH('Annual Parameters'!B102,'VoT7'!$A$38:$A$127,0)),"-") -> 109.0787533 | AJ102: =IF('Annual Parameters Source'!J99="","-",'Annual Parameters Source'!J99) -> 0.7391960048 | AK102: =IF('Annual Parameters Source'!K99="","-",'Annual Parameters Source'!K99) -> -0.2686648547
B103: 2048 | D103: =IF('Annual Parameters Source'!D100="","-",'Annual Parameters Source'!D100/VLOOKUP($B$14,'Annual Parameters Source'!$B$42:$D$152,3,1)*100) -> 178.6156601 | E103: =IF('Annual Parameters Source'!E100="","-",VLOOKUP($B$16,'Annual Parameters Source'!$B$42:$AH$156,33,FALSE)/VLOOKUP($B$16,'Annual Parameters Source'!$B$42:$AH$156,4,FALSE)*'Annual Parameters Source'!E100) -> 4288266.219 | F103: =IF('Annual Parameters Source'!F100="","-",'Annual Parameters Source'!F100) -> 1.735830478 | G103: =IF('Annual Parameters Source'!G100="","-",'Annual Parameters Source'!G100) -> 283.0161404 | H103: =IF('Annual Parameters Source'!H100="","-",'Annual Parameters Source'!H100) -> - | I103: =IF('Annual Parameters Source'!I100="","-",'Annual Parameters Source'!I100) -> 0.2902973614 | J103: =IF('Annual Parameters Source'!L100="","-",'Annual Parameters Source'!L100) -> 131.5324626 | K103: =IF('Annual Parameters Source'!M100="","-",'Annual Parameters Source'!M100) -> - | L103: =IF('Annual Parameters Source'!N100="","-",'Annual Parameters Source'!N100) -> 0.2902973614 | M103: =IF('Annual Parameters Source'!O100="","-",'Annual Parameters Source'!O100) -> 135.9064347 | N103: =IF('Annual Parameters Source'!P100="","-",'Annual Parameters Source'!P100) -> - | O103: =IF('Annual Parameters Source'!Q100="","-",'Annual Parameters Source'!Q100) -> 1.441348918 | P103: =IF('Annual Parameters Source'!R100="","-",'Annual Parameters Source'!R100) -> 215.1682823 | Q103: =IF('Annual Parameters Source'!S100="","-",'Annual Parameters Source'!S100) -> - | R103: =IF('Annual Parameters Source'!T100="","-",'Annual Parameters Source'!T100) -> 1.441348918 | S103: =IF('Annual Parameters Source'!U100="","-",'Annual Parameters Source'!U100) -> 189.5074018 | T103: =IF('Annual Parameters Source'!V100="","-",'Annual Parameters Source'!V100) -> 1.441348918 | U103: =IF('Annual Parameters Source'!W100="","-",'Annual Parameters Source'!W100) -> 1.441348918 | V103: =IF('Annual Parameters Source'!X100="","-",'Annual Parameters Source'!X100) -> 167.3705514 | W103: =IF('Annual Parameters Source'!Y100="","-",'Annual Parameters Source'!Y100) -> 167.3705514 | X103: =IF('Annual Parameters Source'!AD100="","-",'Annual Parameters Source'!AD100) -> 1.5 | Y103: =IF('Annual Parameters Source'!AE100="","-",'Annual Parameters Source'!AE100) -> 1.5 | Z103: =IF('Annual Parameters Source'!AF100="","-",'Annual Parameters Source'!AF100) -> 166.683789 | AA103: =IF('Annual Parameters Source'!AG100="","-",'Annual Parameters Source'!AG100) -> 166.683789 | AB103: =_xlfn.IFNA(INDEX('VoT7'!$U$38:$U$127,MATCH('Annual Parameters'!B103,'VoT7'!$A$38:$A$127,0)),"-") -> 1.373909611 | AC103: =_xlfn.IFNA(INDEX('VoT7'!$V$38:$V$127,MATCH('Annual Parameters'!B103,'VoT7'!$A$38:$A$127,0)),"-") -> 150.41153 | AD103: =_xlfn.IFNA(INDEX('VoT7'!$AF$38:$AF$127,MATCH('Annual Parameters'!B103,'VoT7'!$A$38:$A$127,0)),"-") -> 1.417180744 | AE103: =_xlfn.IFNA(INDEX('VoT7'!$AG$38:$AG$127,MATCH('Annual Parameters'!B103,'VoT7'!$A$38:$A$127,0)),"-") -> 149.952862 | AF103: =_xlfn.IFNA(INDEX('VoT7'!$E$38:$E$127,MATCH('Annual Parameters'!B103,'VoT7'!$A$38:$A$127,0)),"-") -> 1.179266753 | AG103: =_xlfn.IFNA(INDEX('VoT7'!$J$38:$J$127,MATCH('Annual Parameters'!B103,'VoT7'!$A$38:$A$127,0)),"-") -> 0.4390606471 | AH103: =_xlfn.IFNA(INDEX('VoT7'!$F$38:$F$127,MATCH('Annual Parameters'!B103,'VoT7'!$A$38:$A$127,0)),"-") -> 130.309993 | AI103: =_xlfn.IFNA(INDEX('VoT7'!$K$38:$K$127,MATCH('Annual Parameters'!B103,'VoT7'!$A$38:$A$127,0)),"-") -> 109.5576752 | AJ103: =IF('Annual Parameters Source'!J100="","-",'Annual Parameters Source'!J100) -> 0.7284026336 | AK103: =IF('Annual Parameters Source'!K100="","-",'Annual Parameters Source'!K100) -> -0.2840883397
B104: 2049 | D104: =IF('Annual Parameters Source'!D101="","-",'Annual Parameters Source'!D101/VLOOKUP($B$14,'Annual Parameters Source'!$B$42:$D$152,3,1)*100) -> 182.7238203 | E104: =IF('Annual Parameters Source'!E101="","-",VLOOKUP($B$16,'Annual Parameters Source'!$B$42:$AH$156,33,FALSE)/VLOOKUP($B$16,'Annual Parameters Source'!$B$42:$AH$156,4,FALSE)*'Annual Parameters Source'!E101) -> 4361892.764 | F104: =IF('Annual Parameters Source'!F101="","-",'Annual Parameters Source'!F101) -> 1.716930365 | G104: =IF('Annual Parameters Source'!G101="","-",'Annual Parameters Source'!G101) -> 287.8753304 | H104: =IF('Annual Parameters Source'!H101="","-",'Annual Parameters Source'!H101) -> - | I104: =IF('Annual Parameters Source'!I101="","-",'Annual Parameters Source'!I101) -> 0.2780679416 | J104: =IF('Annual Parameters Source'!L101="","-",'Annual Parameters Source'!L101) -> 131.8982122 | K104: =IF('Annual Parameters Source'!M101="","-",'Annual Parameters Source'!M101) -> - | L104: =IF('Annual Parameters Source'!N101="","-",'Annual Parameters Source'!N101) -> 0.2780679416 | M104: =IF('Annual Parameters Source'!O101="","-",'Annual Parameters Source'!O101) -> 136.2843469 | N104: =IF('Annual Parameters Source'!P101="","-",'Annual Parameters Source'!P101) -> - | O104: =IF('Annual Parameters Source'!Q101="","-",'Annual Parameters Source'!Q101) -> 1.434872503 | P104: =IF('Annual Parameters Source'!R101="","-",'Annual Parameters Source'!R101) -> 218.2556728 | Q104: =IF('Annual Parameters Source'!S101="","-",'Annual Parameters Source'!S101) -> - | R104: =IF('Annual Parameters Source'!T101="","-",'Annual Parameters Source'!T101) -> 1.434872503 | S104: =IF('Annual Parameters Source'!U101="","-",'Annual Parameters Source'!U101) -> 192.2265914 | T104: =IF('Annual Parameters Source'!V101="","-",'Annual Parameters Source'!V101) -> 1.434872503 | U104: =IF('Annual Parameters Source'!W101="","-",'Annual Parameters Source'!W101) -> 1.434872503 | V104: =IF('Annual Parameters Source'!X101="","-",'Annual Parameters Source'!X101) -> 169.7721055 | W104: =IF('Annual Parameters Source'!Y101="","-",'Annual Parameters Source'!Y101) -> 169.7721055 | X104: =IF('Annual Parameters Source'!AD101="","-",'Annual Parameters Source'!AD101) -> 1.5 | Y104: =IF('Annual Parameters Source'!AE101="","-",'Annual Parameters Source'!AE101) -> 1.5 | Z104: =IF('Annual Parameters Source'!AF101="","-",'Annual Parameters Source'!AF101) -> 169.1840458 | AA104: =IF('Annual Parameters Source'!AG101="","-",'Annual Parameters Source'!AG101) -> 169.1840458 | AB104: =_xlfn.IFNA(INDEX('VoT7'!$U$38:$U$127,MATCH('Annual Parameters'!B104,'VoT7'!$A$38:$A$127,0)),"-") -> 1.370186077 | AC104: =_xlfn.IFNA(INDEX('VoT7'!$V$38:$V$127,MATCH('Annual Parameters'!B104,'VoT7'!$A$38:$A$127,0)),"-") -> 152.4724479 | AD104: =_xlfn.IFNA(INDEX('VoT7'!$AF$38:$AF$127,MATCH('Annual Parameters'!B104,'VoT7'!$A$38:$A$127,0)),"-") -> 1.418338042 | AE104: =_xlfn.IFNA(INDEX('VoT7'!$AG$38:$AG$127,MATCH('Annual Parameters'!B104,'VoT7'!$A$38:$A$127,0)),"-") -> 152.0797005 | AF104: =_xlfn.IFNA(INDEX('VoT7'!$E$38:$E$127,MATCH('Annual Parameters'!B104,'VoT7'!$A$38:$A$127,0)),"-") -> 1.18300497 | AG104: =_xlfn.IFNA(INDEX('VoT7'!$J$38:$J$127,MATCH('Annual Parameters'!B104,'VoT7'!$A$38:$A$127,0)),"-") -> 0.4436984515 | AH104: =_xlfn.IFNA(INDEX('VoT7'!$F$38:$F$127,MATCH('Annual Parameters'!B104,'VoT7'!$A$38:$A$127,0)),"-") -> 131.8515666 | AI104: =_xlfn.IFNA(INDEX('VoT7'!$K$38:$K$127,MATCH('Annual Parameters'!B104,'VoT7'!$A$38:$A$127,0)),"-") -> 110.0437809 | AJ104: =IF('Annual Parameters Source'!J101="","-",'Annual Parameters Source'!J101) -> 0.7157065161 | AK104: =IF('Annual Parameters Source'!K101="","-",'Annual Parameters Source'!K101) -> -0.3016654247
B105: 2050 | D105: =IF('Annual Parameters Source'!D102="","-",'Annual Parameters Source'!D102/VLOOKUP($B$14,'Annual Parameters Source'!$B$42:$D$152,3,1)*100) -> 186.9264682 | E105: =IF('Annual Parameters Source'!E102="","-",VLOOKUP($B$16,'Annual Parameters Source'!$B$42:$AH$156,33,FALSE)/VLOOKUP($B$16,'Annual Parameters Source'!$B$42:$AH$156,4,FALSE)*'Annual Parameters Source'!E102) -> 4436175.503 | F105: =IF('Annual Parameters Source'!F102="","-",'Annual Parameters Source'!F102) -> 1.702993227 | G105: =IF('Annual Parameters Source'!G102="","-",'Annual Parameters Source'!G102) -> 292.7778278 | H105: =IF('Annual Parameters Source'!H102="","-",'Annual Parameters Source'!H102) -> - | I105: =IF('Annual Parameters Source'!I102="","-",'Annual Parameters Source'!I102) -> 0.2650591717 | J105: =IF('Annual Parameters Source'!L102="","-",'Annual Parameters Source'!L102) -> 132.2478205 | K105: =IF('Annual Parameters Source'!M102="","-",'Annual Parameters Source'!M102) -> - | L105: =IF('Annual Parameters Source'!N102="","-",'Annual Parameters Source'!N102) -> 0.2650591717 | M105: =IF('Annual Parameters Source'!O102="","-",'Annual Parameters Source'!O102) -> 136.6455811 | N105: =IF('Annual Parameters Source'!P102="","-",'Annual Parameters Source'!P102) -> - | O105: =IF('Annual Parameters Source'!Q102="","-",'Annual Parameters Source'!Q102) -> 1.434132755 | P105: =IF('Annual Parameters Source'!R102="","-",'Annual Parameters Source'!R102) -> 221.3857489 | Q105: =IF('Annual Parameters Source'!S102="","-",'Annual Parameters Source'!S102) -> - | R105: =IF('Annual Parameters Source'!T102="","-",'Annual Parameters Source'!T102) -> 1.434132755 | S105: =IF('Annual Parameters Source'!U102="","-",'Annual Parameters Source'!U102) -> 194.9833759 | T105: =IF('Annual Parameters Source'!V102="","-",'Annual Parameters Source'!V102) -> 1.434132755 | U105: =IF('Annual Parameters Source'!W102="","-",'Annual Parameters Source'!W102) -> 1.434132755 | V105: =IF('Annual Parameters Source'!X102="","-",'Annual Parameters Source'!X102) -> 172.2068628 | W105: =IF('Annual Parameters Source'!Y102="","-",'Annual Parameters Source'!Y102) -> 172.2068628 | X105: =IF('Annual Parameters Source'!AD102="","-",'Annual Parameters Source'!AD102) -> 1.5 | Y105: =IF('Annual Parameters Source'!AE102="","-",'Annual Parameters Source'!AE102) -> 1.5 | Z105: =IF('Annual Parameters Source'!AF102="","-",'Annual Parameters Source'!AF102) -> 171.7218065 | AA105: =IF('Annual Parameters Source'!AG102="","-",'Annual Parameters Source'!AG102) -> 171.7218065 | AB105: =_xlfn.IFNA(INDEX('VoT7'!$U$38:$U$127,MATCH('Annual Parameters'!B105,'VoT7'!$A$38:$A$127,0)),"-") -> 1.370705511 | AC105: =_xlfn.IFNA(INDEX('VoT7'!$V$38:$V$127,MATCH('Annual Parameters'!B105,'VoT7'!$A$38:$A$127,0)),"-") -> 154.5623961 | AD105: =_xlfn.IFNA(INDEX('VoT7'!$AF$38:$AF$127,MATCH('Annual Parameters'!B105,'VoT7'!$A$38:$A$127,0)),"-") -> 1.419480086 | AE105: =_xlfn.IFNA(INDEX('VoT7'!$AG$38:$AG$127,MATCH('Annual Parameters'!B105,'VoT7'!$A$38:$A$127,0)),"-") -> 154.2384416 | AF105: =_xlfn.IFNA(INDEX('VoT7'!$E$38:$E$127,MATCH('Annual Parameters'!B105,'VoT7'!$A$38:$A$127,0)),"-") -> 1.186711192 | AG105: =_xlfn.IFNA(INDEX('VoT7'!$J$38:$J$127,MATCH('Annual Parameters'!B105,'VoT7'!$A$38:$A$127,0)),"-") -> 0.4483645417 | AH105: =_xlfn.IFNA(INDEX('VoT7'!$F$38:$F$127,MATCH('Annual Parameters'!B105,'VoT7'!$A$38:$A$127,0)),"-") -> 133.4162639 | AI105: =_xlfn.IFNA(INDEX('VoT7'!$K$38:$K$127,MATCH('Annual Parameters'!B105,'VoT7'!$A$38:$A$127,0)),"-") -> 110.5371782 | AJ105: =IF('Annual Parameters Source'!J102="","-",'Annual Parameters Source'!J102) -> 0.702668024 | AK105: =IF('Annual Parameters Source'!K102="","-",'Annual Parameters Source'!K102) -> -0.3202139569
B106: 2051 | D106: =IF('Annual Parameters Source'!D103="","-",'Annual Parameters Source'!D103/VLOOKUP($B$14,'Annual Parameters Source'!$B$42:$D$152,3,1)*100) -> 191.2257769 | E106: =IF('Annual Parameters Source'!E103="","-",VLOOKUP($B$16,'Annual Parameters Source'!$B$42:$AH$156,33,FALSE)/VLOOKUP($B$16,'Annual Parameters Source'!$B$42:$AH$156,4,FALSE)*'Annual Parameters Source'!E103) -> 4511380.289 | F106: =IF('Annual Parameters Source'!F103="","-",'Annual Parameters Source'!F103) -> 1.69526175 | G106: =IF('Annual Parameters Source'!G103="","-",'Annual Parameters Source'!G103) -> 297.7411783 | H106: =IF('Annual Parameters Source'!H103="","-",'Annual Parameters Source'!H103) -> - | I106: =IF('Annual Parameters Source'!I103="","-",'Annual Parameters Source'!I103) -> 0.2515223533 | J106: =IF('Annual Parameters Source'!L103="","-",'Annual Parameters Source'!L103) -> 132.5804533 | K106: =IF('Annual Parameters Source'!M103="","-",'Annual Parameters Source'!M103) -> - | L106: =IF('Annual Parameters Source'!N103="","-",'Annual Parameters Source'!N103) -> 0.2515223533 | M106: =IF('Annual Parameters Source'!O103="","-",'Annual Parameters Source'!O103) -> 136.9892753 | N106: =IF('Annual Parameters Source'!P103="","-",'Annual Parameters Source'!P103) -> - | O106: =IF('Annual Parameters Source'!Q103="","-",'Annual Parameters Source'!Q103) -> 1.44011718 | P106: =IF('Annual Parameters Source'!R103="","-",'Annual Parameters Source'!R103) -> 224.5739631 | Q106: =IF('Annual Parameters Source'!S103="","-",'Annual Parameters Source'!S103) -> - | R106: =IF('Annual Parameters Source'!T103="","-",'Annual Parameters Source'!T103) -> 1.44011718 | S106: =IF('Annual Parameters Source'!U103="","-",'Annual Parameters Source'!U103) -> 197.791365 | T106: =IF('Annual Parameters Source'!V103="","-",'Annual Parameters Source'!V103) -> 1.44011718 | U106: =IF('Annual Parameters Source'!W103="","-",'Annual Parameters Source'!W103) -> 1.44011718 | V106: =IF('Annual Parameters Source'!X103="","-",'Annual Parameters Source'!X103) -> 174.6868434 | W106: =IF('Annual Parameters Source'!Y103="","-",'Annual Parameters Source'!Y103) -> 174.6868434 | X106: =IF('Annual Parameters Source'!AD103="","-",'Annual Parameters Source'!AD103) -> 1.5 | Y106: =IF('Annual Parameters Source'!AE103="","-",'Annual Parameters Source'!AE103) -> 1.5 | Z106: =IF('Annual Parameters Source'!AF103="","-",'Annual Parameters Source'!AF103) -> 174.2976336 | AA106: =IF('Annual Parameters Source'!AG103="","-",'Annual Parameters Source'!AG103) -> 174.2976336 | AB106: =_xlfn.IFNA(INDEX('VoT7'!$U$38:$U$127,MATCH('Annual Parameters'!B106,'VoT7'!$A$38:$A$127,0)),"-") -> 1.37621391 | AC106: =_xlfn.IFNA(INDEX('VoT7'!$V$38:$V$127,MATCH('Annual Parameters'!B106,'VoT7'!$A$38:$A$127,0)),"-") -> 156.6895053 | AD106: =_xlfn.IFNA(INDEX('VoT7'!$AF$38:$AF$127,MATCH('Annual Parameters'!B106,'VoT7'!$A$38:$A$127,0)),"-") -> 1.420607053 | AE106: =_xlfn.IFNA(INDEX('VoT7'!$AG$38:$AG$127,MATCH('Annual Parameters'!B106,'VoT7'!$A$38:$A$127,0)),"-") -> 156.4295638 | AF106: =_xlfn.IFNA(INDEX('VoT7'!$E$38:$E$127,MATCH('Annual Parameters'!B106,'VoT7'!$A$38:$A$127,0)),"-") -> 1.190385423 | AG106: =_xlfn.IFNA(INDEX('VoT7'!$J$38:$J$127,MATCH('Annual Parameters'!B106,'VoT7'!$A$38:$A$127,0)),"-") -> 0.4530586555 | AH106: =_xlfn.IFNA(INDEX('VoT7'!$F$38:$F$127,MATCH('Annual Parameters'!B106,'VoT7'!$A$38:$A$127,0)),"-") -> 135.0044317 | AI106: =_xlfn.IFNA(INDEX('VoT7'!$K$38:$K$127,MATCH('Annual Parameters'!B106,'VoT7'!$A$38:$A$127,0)),"-") -> 111.0379764 | AJ106: =IF('Annual Parameters Source'!J103="","-",'Annual Parameters Source'!J103) -> 0.6896233105 | AK106: =IF('Annual Parameters Source'!K103="","-",'Annual Parameters Source'!K103) -> -0.3394649658
B107: 2052 | D107: =IF('Annual Parameters Source'!D104="","-",'Annual Parameters Source'!D104/VLOOKUP($B$14,'Annual Parameters Source'!$B$42:$D$152,3,1)*100) -> 195.6239698 | E107: =IF('Annual Parameters Source'!E104="","-",VLOOKUP($B$16,'Annual Parameters Source'!$B$42:$AH$156,33,FALSE)/VLOOKUP($B$16,'Annual Parameters Source'!$B$42:$AH$156,4,FALSE)*'Annual Parameters Source'!E104) -> 4587383.73 | F107: =IF('Annual Parameters Source'!F104="","-",'Annual Parameters Source'!F104) -> 1.684704823 | G107: =IF('Annual Parameters Source'!G104="","-",'Annual Parameters Source'!G104) -> 302.7572383 | H107: =IF('Annual Parameters Source'!H104="","-",'Annual Parameters Source'!H104) -> - | I107: =IF('Annual Parameters Source'!I104="","-",'Annual Parameters Source'!I104) -> 0.237864562 | J107: =IF('Annual Parameters Source'!L104="","-",'Annual Parameters Source'!L104) -> 132.8958152 | K107: =IF('Annual Parameters Source'!M104="","-",'Annual Parameters Source'!M104) -> - | L107: =IF('Annual Parameters Source'!N104="","-",'Annual Parameters Source'!N104) -> 0.237864562 | M107: =IF('Annual Parameters Source'!O104="","-",'Annual Parameters Source'!O104) -> 137.3151242 | N107: =IF('Annual Parameters Source'!P104="","-",'Annual Parameters Source'!P104) -> - | O107: =IF('Annual Parameters Source'!Q104="","-",'Annual Parameters Source'!Q104) -> 1.443406907 | P107: =IF('Annual Parameters Source'!R104="","-",'Annual Parameters Source'!R104) -> 227.8154792 | Q107: =IF('Annual Parameters Source'!S104="","-",'Annual Parameters Source'!S104) -> - | R107: =IF('Annual Parameters Source'!T104="","-",'Annual Parameters Source'!T104) -> 1.443406907 | S107: =IF('Annual Parameters Source'!U104="","-",'Annual Parameters Source'!U104) -> 200.6462992 | T107: =IF('Annual Parameters Source'!V104="","-",'Annual Parameters Source'!V104) -> 1.443406907 | U107: =IF('Annual Parameters Source'!W104="","-",'Annual Parameters Source'!W104) -> 1.443406907 | V107: =IF('Annual Parameters Source'!X104="","-",'Annual Parameters Source'!X104) -> 177.2082854 | W107: =IF('Annual Parameters Source'!Y104="","-",'Annual Parameters Source'!Y104) -> 177.2082854 | X107: =IF('Annual Parameters Source'!AD104="","-",'Annual Parameters Source'!AD104) -> 1.5 | Y107: =IF('Annual Parameters Source'!AE104="","-",'Annual Parameters Source'!AE104) -> 1.5 | Z107: =IF('Annual Parameters Source'!AF104="","-",'Annual Parameters Source'!AF104) -> 176.9120981 | AA107: =IF('Annual Parameters Source'!AG104="","-",'Annual Parameters Source'!AG104) -> 176.9120981 | AB107: =_xlfn.IFNA(INDEX('VoT7'!$U$38:$U$127,MATCH('Annual Parameters'!B107,'VoT7'!$A$38:$A$127,0)),"-") -> 1.379710817 | AC107: =_xlfn.IFNA(INDEX('VoT7'!$V$38:$V$127,MATCH('Annual Parameters'!B107,'VoT7'!$A$38:$A$127,0)),"-") -> 158.8513674 | AD107: =_xlfn.IFNA(INDEX('VoT7'!$AF$38:$AF$127,MATCH('Annual Parameters'!B107,'VoT7'!$A$38:$A$127,0)),"-") -> 1.421719117 | AE107: =_xlfn.IFNA(INDEX('VoT7'!$AG$38:$AG$127,MATCH('Annual Parameters'!B107,'VoT7'!$A$38:$A$127,0)),"-") -> 158.6535528 | AF107: =_xlfn.IFNA(INDEX('VoT7'!$E$38:$E$127,MATCH('Annual Parameters'!B107,'VoT7'!$A$38:$A$127,0)),"-") -> 1.194027673 | AG107: =_xlfn.IFNA(INDEX('VoT7'!$J$38:$J$127,MATCH('Annual Parameters'!B107,'VoT7'!$A$38:$A$127,0)),"-") -> 0.457780521 | AH107: =_xlfn.IFNA(INDEX('VoT7'!$F$38:$F$127,MATCH('Annual Parameters'!B107,'VoT7'!$A$38:$A$127,0)),"-") -> 136.616422 | AI107: =_xlfn.IFNA(INDEX('VoT7'!$K$38:$K$127,MATCH('Annual Parameters'!B107,'VoT7'!$A$38:$A$127,0)),"-") -> 111.5462866 | AJ107: =IF('Annual Parameters Source'!J104="","-",'Annual Parameters Source'!J104) -> 0.6770094483 | AK107: =IF('Annual Parameters Source'!K104="","-",'Annual Parameters Source'!K104) -> -0.3591198424
B108: 2053 | D108: =IF('Annual Parameters Source'!D105="","-",'Annual Parameters Source'!D105/VLOOKUP($B$14,'Annual Parameters Source'!$B$42:$D$152,3,1)*100) -> 200.1233211 | E108: =IF('Annual Parameters Source'!E105="","-",VLOOKUP($B$16,'Annual Parameters Source'!$B$42:$AH$156,33,FALSE)/VLOOKUP($B$16,'Annual Parameters Source'!$B$42:$AH$156,4,FALSE)*'Annual Parameters Source'!E105) -> 4663826.007 | F108: =IF('Annual Parameters Source'!F105="","-",'Annual Parameters Source'!F105) -> 1.666358881 | G108: =IF('Annual Parameters Source'!G105="","-",'Annual Parameters Source'!G105) -> 307.8022605 | H108: =IF('Annual Parameters Source'!H105="","-",'Annual Parameters Source'!H105) -> - | I108: =IF('Annual Parameters Source'!I105="","-",'Annual Parameters Source'!I105) -> 0.224296432 | J108: =IF('Annual Parameters Source'!L105="","-",'Annual Parameters Source'!L105) -> 133.1938958 | K108: =IF('Annual Parameters Source'!M105="","-",'Annual Parameters Source'!M105) -> - | L108: =IF('Annual Parameters Source'!N105="","-",'Annual Parameters Source'!N105) -> 0.224296432 | M108: =IF('Annual Parameters Source'!O105="","-",'Annual Parameters Source'!O105) -> 137.6231171 | N108: =IF('Annual Parameters Source'!P105="","-",'Annual Parameters Source'!P105) -> - | O108: =IF('Annual Parameters Source'!Q105="","-",'Annual Parameters Source'!Q105) -> 1.438835193 | P108: =IF('Annual Parameters Source'!R105="","-",'Annual Parameters Source'!R105) -> 231.0933685 | Q108: =IF('Annual Parameters Source'!S105="","-",'Annual Parameters Source'!S105) -> - | R108: =IF('Annual Parameters Source'!T105="","-",'Annual Parameters Source'!T105) -> 1.438835193 | S108: =IF('Annual Parameters Source'!U105="","-",'Annual Parameters Source'!U105) -> 203.5332688 | T108: =IF('Annual Parameters Source'!V105="","-",'Annual Parameters Source'!V105) -> 1.438835193 | U108: =IF('Annual Parameters Source'!W105="","-",'Annual Parameters Source'!W105) -> 1.438835193 | V108: =IF('Annual Parameters Source'!X105="","-",'Annual Parameters Source'!X105) -> 179.7580206 | W108: =IF('Annual Parameters Source'!Y105="","-",'Annual Parameters Source'!Y105) -> 179.7580206 | X108: =IF('Annual Parameters Source'!AD105="","-",'Annual Parameters Source'!AD105) -> 1.5 | Y108: =IF('Annual Parameters Source'!AE105="","-",'Annual Parameters Source'!AE105) -> 1.5 | Z108: =IF('Annual Parameters Source'!AF105="","-",'Annual Parameters Source'!AF105) -> 179.5657796 | AA108: =IF('Annual Parameters Source'!AG105="","-",'Annual Parameters Source'!AG105) -> 179.5657796 | AB108: =_xlfn.IFNA(INDEX('VoT7'!$U$38:$U$127,MATCH('Annual Parameters'!B108,'VoT7'!$A$38:$A$127,0)),"-") -> 1.377341773 | AC108: =_xlfn.IFNA(INDEX('VoT7'!$V$38:$V$127,MATCH('Annual Parameters'!B108,'VoT7'!$A$38:$A$127,0)),"-") -> 161.0392936 | AD108: =_xlfn.IFNA(INDEX('VoT7'!$AF$38:$AF$127,MATCH('Annual Parameters'!B108,'VoT7'!$A$38:$A$127,0)),"-") -> 1.42281645 | AE108: =_xlfn.IFNA(INDEX('VoT7'!$AG$38:$AG$127,MATCH('Annual Parameters'!B108,'VoT7'!$A$38:$A$127,0)),"-") -> 160.9109016 | AF108: =_xlfn.IFNA(INDEX('VoT7'!$E$38:$E$127,MATCH('Annual Parameters'!B108,'VoT7'!$A$38:$A$127,0)),"-") -> 1.197637959 | AG108: =_xlfn.IFNA(INDEX('VoT7'!$J$38:$J$127,MATCH('Annual Parameters'!B108,'VoT7'!$A$38:$A$127,0)),"-") -> 0.4625298573 | AH108: =_xlfn.IFNA(INDEX('VoT7'!$F$38:$F$127,MATCH('Annual Parameters'!B108,'VoT7'!$A$38:$A$127,0)),"-") -> 138.2525921 | AI108: =_xlfn.IFNA(INDEX('VoT7'!$K$38:$K$127,MATCH('Annual Parameters'!B108,'VoT7'!$A$38:$A$127,0)),"-") -> 112.0622215 | AJ108: =IF('Annual Parameters Source'!J105="","-",'Annual Parameters Source'!J105) -> 0.664931121 | AK108: =IF('Annual Parameters Source'!K105="","-",'Annual Parameters Source'!K105) -> -0.379009067
B109: 2054 | D109: =IF('Annual Parameters Source'!D106="","-",'Annual Parameters Source'!D106/VLOOKUP($B$14,'Annual Parameters Source'!$B$42:$D$152,3,1)*100) -> 204.7261575 | E109: =IF('Annual Parameters Source'!E106="","-",VLOOKUP($B$16,'Annual Parameters Source'!$B$42:$AH$156,33,FALSE)/VLOOKUP($B$16,'Annual Parameters Source'!$B$42:$AH$156,4,FALSE)*'Annual Parameters Source'!E106) -> 4740701.758 | F109: =IF('Annual Parameters Source'!F106="","-",'Annual Parameters Source'!F106) -> 1.648340894 | G109: =IF('Annual Parameters Source'!G106="","-",'Annual Parameters Source'!G106) -> 312.875891 | H109: =IF('Annual Parameters Source'!H106="","-",'Annual Parameters Source'!H106) -> - | I109: =IF('Annual Parameters Source'!I106="","-",'Annual Parameters Source'!I106) -> 0.2109999507 | J109: =IF('Annual Parameters Source'!L106="","-",'Annual Parameters Source'!L106) -> 133.4749349 | K109: =IF('Annual Parameters Source'!M106="","-",'Annual Parameters Source'!M106) -> - | L109: =IF('Annual Parameters Source'!N106="","-",'Annual Parameters Source'!N106) -> 0.2109999507 | M109: =IF('Annual Parameters Source'!O106="","-",'Annual Parameters Source'!O106) -> 137.9135018 | N109: =IF('Annual Parameters Source'!P106="","-",'Annual Parameters Source'!P106) -> - | O109: =IF('Annual Parameters Source'!Q106="","-",'Annual Parameters Source'!Q106) -> 1.434314541 | P109: =IF('Annual Parameters Source'!R106="","-",'Annual Parameters Source'!R106) -> 234.4079743 | Q109: =IF('Annual Parameters Source'!S106="","-",'Annual Parameters Source'!S106) -> - | R109: =IF('Annual Parameters Source'!T106="","-",'Annual Parameters Source'!T106) -> 1.434314541 | S109: =IF('Annual Parameters Source'!U106="","-",'Annual Parameters Source'!U106) -> 206.4525761 | T109: =IF('Annual Parameters Source'!V106="","-",'Annual Parameters Source'!V106) -> 1.434314541 | U109: =IF('Annual Parameters Source'!W106="","-",'Annual Parameters Source'!W106) -> 1.434314541 | V109: =IF('Annual Parameters Source'!X106="","-",'Annual Parameters Source'!X106) -> 182.336316 | W109: =IF('Annual Parameters Source'!Y106="","-",'Annual Parameters Source'!Y106) -> 182.336316 | X109: =IF('Annual Parameters Source'!AD106="","-",'Annual Parameters Source'!AD106) -> 1.5 | Y109: =IF('Annual Parameters Source'!AE106="","-",'Annual Parameters Source'!AE106) -> 1.5 | Z109: =IF('Annual Parameters Source'!AF106="","-",'Annual Parameters Source'!AF106) -> 182.2592663 | AA109: =IF('Annual Parameters Source'!AG106="","-",'Annual Parameters Source'!AG106) -> 182.2592663 | AB109: =_xlfn.IFNA(INDEX('VoT7'!$U$38:$U$127,MATCH('Annual Parameters'!B109,'VoT7'!$A$38:$A$127,0)),"-") -> 1.374991311 | AC109: =_xlfn.IFNA(INDEX('VoT7'!$V$38:$V$127,MATCH('Annual Parameters'!B109,'VoT7'!$A$38:$A$127,0)),"-") -> 163.2535699 | AD109: =_xlfn.IFNA(INDEX('VoT7'!$AF$38:$AF$127,MATCH('Annual Parameters'!B109,'VoT7'!$A$38:$A$127,0)),"-") -> 1.423899225 | AE109: =_xlfn.IFNA(INDEX('VoT7'!$AG$38:$AG$127,MATCH('Annual Parameters'!B109,'VoT7'!$A$38:$A$127,0)),"-") -> 163.2021107 | AF109: =_xlfn.IFNA(INDEX('VoT7'!$E$38:$E$127,MATCH('Annual Parameters'!B109,'VoT7'!$A$38:$A$127,0)),"-") -> 1.201216306 | AG109: =_xlfn.IFNA(INDEX('VoT7'!$J$38:$J$127,MATCH('Annual Parameters'!B109,'VoT7'!$A$38:$A$127,0)),"-") -> 0.4673063736 | AH109: =_xlfn.IFNA(INDEX('VoT7'!$F$38:$F$127,MATCH('Annual Parameters'!B109,'VoT7'!$A$38:$A$127,0)),"-") -> 139.9133048 | AI109: =_xlfn.IFNA(INDEX('VoT7'!$K$38:$K$127,MATCH('Annual Parameters'!B109,'VoT7'!$A$38:$A$127,0)),"-") -> 112.5858954 | AJ109: =IF('Annual Parameters Source'!J106="","-",'Annual Parameters Source'!J106) -> 0.653634343 | AK109: =IF('Annual Parameters Source'!K106="","-",'Annual Parameters Source'!K106) -> -0.398987204
